{"text_format":"1","workbook":"xlsx","n_sheets":11,"sheets":["ورقة2","ورقة1","تقرير المقاولين جاز","توزيع يومى على المقاولين","ضيف","علوان","مجدى","ربيع معدات","ربيع سولار","صلاح","شريف"],"not_rendered":{"charts":0,"images":0,"macros":1,"external_links":0,"defined_names":6,"comments":0,"pivot_tables":0},"unopened":[],"bounds":{"document_bytes":16777216,"sheet_cells":100000,"rows_first":2000,"rows_last":500,"rows_between":2000,"halvings":0,"cell_chars":16384,"cell_head_chars":4096},"cells_cut":0,"cells_raw":0,"read":"whole","date_system":"1900"}

{"sheet":"ورقة2","index":0,"n_rows":19,"n_cols":6,"rows_kept":19,"cut":false,"hidden":false,"merged":[[1,1,1,5],[1,0,5,0]]}
[]
["مسلسل","تصفية مقاولين المعدات"]
[null,"من تاريخ","الى تاريخ","السعر 1","السعر 2","السعر 3"]
[]
[null,"اسم صاحب المعدة",null,"نوع المعدة"]
[null,"اسم مقول التسويات","العدد","الوحدة","الفئة","القيمة"]
[1]
[2]
[3]
[4]
[5]
[6]
[7]
[8]
[9]
[10]
[null,"مهندس /","اسم المقاول /","المحاسب /",null,"يعتمد"]
[null,"التوقيع  /","التوقيع /","محاسب / رضا الخطيب",null,"مدير الموقع م  /  باسم بسونى"]
[null,null,null,null,null,"التوقيع"]

{"sheet":"ورقة1","index":1,"n_rows":14,"n_cols":5,"rows_kept":14,"cut":false,"hidden":false,"merged":[]}
[null,"اسم صاحب المعدة","السائق","المعدة","المقاول"]
[null,"ضيف","محمد","ليزر صغير260","رجب"]
[null,"علوان","محمود","لودر كبير","عمر"]
[null,"مجدى","هيثم ","لودر صغير","خالد"]
[null,"صلاح","احمد","سيارة مياه كبيرة375","السيد"]
[null,"ربيع معدات","إبراهيم ضيف","سيارة مياه صغيرة300","حلمى"]
[null,"ربيع سولار","محمد عيادة ضيف","جرار مياه175","حلمى25"]
[null,"شريف","احمد جمعه /احمد مرضى","هراس صغير","جابر"]
[null,null,"احمد جمعه","هراس كبير","رجب"]
[null,null,"احمد رمزى","سيارة م3 بسعر2.75","محمود"]
[null,null,"فارس126.374","ليزر كبير 270","عنتر"]
[null,null,"شغل من خارج الكلاستر (الحاج حماد)","سيارة مياه كبيرة وش500","اشرف شوقى"]
[null,null,null,null,"انور"]
[null,null,null,null,"الشركة"]

{"sheet":"تقرير المقاولين جاز","index":2,"n_rows":22,"n_cols":8,"rows_kept":22,"cut":false,"hidden":false,"merged":[[6,1,7,6]]}
[]
[null,"رقم الاذن","المعدة","اسم المقاول","اسم السائق","المقاول","التاريخ","التاريخ"]
[null,null,null,"ضيف",null,null,{"$f":"\">=\"&B6","v":">=44273"},{"$f":"\"<=\"&C6","v":"<=44285"}]
[]
[null,"من تاريخ","الى تاريخ"]
[null,"2021-03-18","2021-03-30"]
[null,"تقرير تفصيلى لتوزيع اليومى",null,null,null,null,null,{"$f":"SUBTOTAL(9,G10:G1000)","v":78.5}]
[]
[null,"اليوم","التاريخ","المعدة","اسم المقاول","اسم السائق","الساعات","المقاول"]
[null,"2021-03-21","2021-03-21","ليزر كبير 270","ضيف",null,9.5,"محمود"]
[null,"2021-03-18","2021-03-18","ليزر صغير260","ضيف",null,5,"انور"]
[null,"2021-03-20","2021-03-20","ليزر صغير260","ضيف",null,5,"انور"]
[null,"2021-03-21","2021-03-21","ليزر صغير260","ضيف",null,8,"انور"]
[null,"2021-03-22","2021-03-22","ليزر صغير260","ضيف",null,6,"انور"]
[null,"2021-03-23","2021-03-23","ليزر صغير260","ضيف",null,6.5,"انور"]
[null,"2021-03-24","2021-03-24","ليزر صغير260","ضيف",null,6.5,"انور"]
[null,"2021-03-18","2021-03-18","ليزر صغير260","ضيف",null,5,"محمود"]
[null,"2021-03-20","2021-03-20","ليزر صغير260","ضيف",null,3,"محمود"]
[null,"2021-03-21","2021-03-21","ليزر صغير260","ضيف",null,8.5,"محمود"]
[null,"2021-03-22","2021-03-22","ليزر صغير260","ضيف",null,4.5,"محمود"]
[null,"2021-03-23","2021-03-23","ليزر صغير260","ضيف",null,5,"محمود"]
[null,"2021-03-24","2021-03-24","ليزر صغير260","ضيف",null,6,"محمود"]

{"sheet":"توزيع يومى على المقاولين","index":3,"n_rows":5086,"n_cols":11,"rows_kept":5086,"cut":false,"hidden":false,"merged":[]}
[null,null,null,null,"شركة ال حماد للمقاولات",null,null,null,null,"مشروع التسويات باللاهون"]
[]
[null,null,null,null,"بيان يومى تفصيلى بتوزيع المعدات على المقاولين"]
[]
[null,null,null,null,null,null,null,null,"عدد الساعات",{"$f":"SUBTOTAL(9,J7:J999)","v":84371.5}]
[null,null,null,null,"اليوم","التاريخ","المعدة","اسم المقاول","اسم السائق","الساعات","المقاول"]
[null,null,null,null,{"$f":"F7","v":"2020-12-30"},"2020-12-30","ليزر صغير260","ضيف",null,10.5,"جابر"]
[null,null,null,null,"2020-12-31","2020-12-31","ليزر صغير260","ضيف",null,{"$f":"8+3","v":11},"جابر"]
[null,null,null,null,"2020-12-31","2020-12-31","ليزر صغير260","ضيف",null,7,"حلمى25"]
[null,null,null,null,"2020-12-31","2020-12-31","ليزر صغير260","ضيف",null,3,"عنتر"]
[null,null,null,null,"2021-01-02","2021-01-02","ليزر صغير260","ضيف",null,14,"جابر"]
[null,null,null,null,"2021-01-02","2021-01-02","ليزر صغير260","ضيف",null,4,"حلمى25"]
[null,null,null,null,"2021-01-03","2021-01-03","ليزر صغير260","ضيف",null,22.75,"جابر"]
[null,null,null,null,"2021-01-03","2021-01-03","ليزر صغير260","ضيف",null,7.5,"حلمى25"]
[null,null,null,null,"2021-01-04","2021-01-04","ليزر صغير260","ضيف",null,{"$f":"8.75+7","v":15.75},"جابر"]
[null,null,null,null,"2021-01-05","2021-01-05","ليزر صغير260","ضيف",null,{"$f":"8+5","v":13},"جابر"]
[null,null,null,null,"2021-01-05","2021-01-05","ليزر صغير260","ضيف",null,6.5,"حلمى25"]
[null,null,null,null,"2021-01-06","2021-01-06","ليزر صغير260","ضيف",null,{"$f":"5.75+6","v":11.75},"جابر"]
[null,null,null,null,"2021-01-07","2021-01-07","ليزر صغير260","ضيف",null,{"$f":"1+2","v":3},"جابر"]
[null,null,null,null,"2021-01-07","2021-01-07","ليزر صغير260","ضيف",null,4.5,"حلمى25"]
[null,null,null,null,"2021-01-09","2021-01-09","ليزر صغير260","ضيف",null,{"$f":"2+2","v":4},"جابر"]
[null,null,null,null,"2021-01-09","2021-01-09","ليزر صغير260","ضيف",null,2,"حلمى25"]
[null,null,null,null,"2021-01-10","2021-01-10","ليزر صغير260","ضيف",null,{"$f":"8.25+8","v":16.25},"جابر"]
[null,null,null,null,"2021-01-10","2021-01-10","ليزر صغير260","ضيف",null,7.5,"حلمى25"]
[null,null,null,null,"2021-01-11","2021-01-11","ليزر صغير260","ضيف",null,{"$f":"5.5+3+8.5+1.75","v":18.75},"جابر"]
[null,null,null,null,"2021-01-11","2021-01-11","ليزر صغير260","ضيف",null,3,"حلمى25"]
[null,null,null,null,"2021-01-12","2021-01-12","ليزر صغير260","ضيف",null,{"$f":"9.25+7.25+9.5","v":26},"جابر"]
[null,null,null,null,"2021-01-13","2021-01-13","ليزر صغير260","ضيف",null,{"$f":"7+9.5","v":16.5},"جابر"]
[null,null,null,null,"2021-01-13","2021-01-13","ليزر صغير260","ضيف",null,7,"حلمى25"]
[null,null,null,null,"2021-01-16","2021-01-16","ليزر صغير260","ضيف",null,8,"حلمى25"]
[null,null,null,null,"2021-01-17","2021-01-17","ليزر صغير260","ضيف",null,9,"حلمى25"]
[null,null,null,null,"2021-01-17","2021-01-17","ليزر صغير260","ضيف",null,11,"جابر"]
[null,null,null,null,"2021-01-18","2021-01-18","ليزر صغير260","ضيف",null,6,"حلمى25"]
[null,null,null,null,"2021-01-18","2021-01-18","ليزر صغير260","ضيف",null,8,"جابر"]
[null,null,null,null,"2021-01-19","2021-01-19","ليزر صغير260","ضيف",null,3,"جابر"]
[null,null,null,null,"2021-01-20","2021-01-20","ليزر صغير260","ضيف",null,9.25,"جابر"]
[null,null,null,null,"2021-02-13","2021-02-13","ليزر صغير260","ضيف",null,2,"جابر"]
[null,null,null,null,"2021-02-14","2021-02-14","ليزر صغير260","ضيف",null,8,"جابر"]
[null,null,null,null,{"$f":"F39","v":"2021-02-15"},"2021-02-15","ليزر صغير260","ضيف",null,5.5,"جابر"]
[null,null,null,null,"2021-02-16","2021-02-16","ليزر صغير260","ضيف",null,7,"جابر"]
[null,null,null,null,"2021-02-17","2021-02-17","ليزر صغير260","ضيف",null,4.5,"جابر"]
[null,null,null,null,"2021-02-20","2021-02-20","ليزر صغير260","ضيف",null,7,"جابر"]
[null,null,null,null,"2021-02-21","2021-02-21","ليزر صغير260","ضيف",null,{"$f":"8.25+5","v":13.25},"جابر"]
[null,null,null,null,"2021-02-22","2021-02-22","ليزر صغير260","ضيف",null,{"$f":"8.25+8.5","v":16.75},"جابر"]
[null,null,null,null,"2021-02-23","2021-02-23","ليزر صغير260","ضيف","احمد جمعه /احمد مرضى",5,"عنتر"]
[null,null,null,null,"2021-02-23","2021-02-23","ليزر صغير260","ضيف",null,{"$f":"8.5+6.5","v":15},"جابر"]
[null,null,null,null,"2021-02-24","2021-02-24","ليزر صغير260","ضيف",null,{"$f":"7.5+7.5","v":15},"جابر"]
[null,null,null,null,"2021-02-25","2021-02-25","ليزر صغير260","ضيف","احمد جمعه /احمد مرضى",2.5,"عنتر"]
[null,null,null,null,"2021-02-27","2021-02-27","ليزر صغير260","ضيف","محمد عيادة ضيف",6.5,"جابر"]
[null,null,null,null,"2021-02-27","2021-02-27","ليزر صغير260","ضيف","احمد جمعه /احمد مرضى",5,"عنتر"]
[null,null,null,null,"2021-02-28","2021-02-28","ليزر صغير260","ضيف","محمد عيادة ضيف",9.5,"جابر"]
[null,null,null,null,"2021-02-28","2021-02-28","ليزر صغير260","ضيف","احمد جمعه",2,"جابر"]
[null,null,null,null,"2021-02-28","2021-02-28","ليزر صغير260","ضيف","احمد جمعه /احمد مرضى",9,"عنتر"]
[null,null,null,null,"2021-02-28","2021-02-28","لودر كبير","علوان",null,65.5,"عنتر"]
[null,null,null,null,"2021-03-01","2021-03-01","ليزر كبير 270","ضيف","إبراهيم ضيف",8,"جابر"]
[null,null,null,null,"2021-03-01","2021-03-01","ليزر صغير260","ضيف","محمد عيادة ضيف",8.5,"جابر"]
[null,null,null,null,"2021-03-01","2021-03-01","ليزر صغير260","ضيف","احمد جمعه /احمد مرضى",7,"عنتر"]
[null,null,null,null,"2021-03-01","2021-03-01","ليزر صغير260","ضيف","احمد جمعه /احمد مرضى",7.5,"عنتر"]
[null,null,null,null,"2021-03-02","2021-03-02","ليزر كبير 270","ضيف","إبراهيم ضيف",5.75,"جابر"]
[null,null,null,null,"2021-03-02","2021-03-02","ليزر صغير260","ضيف","محمد عيادة ضيف",5.75,"جابر"]
[null,null,null,null,"2021-03-02","2021-03-02","ليزر صغير260","ضيف","احمد جمعه",9.5,"عنتر"]
[null,null,null,null,"2021-03-02","2021-03-02","ليزر صغير260","ضيف","احمد رمزى",9.5,"عنتر"]
[null,null,null,null,"2021-03-03","2021-03-03","ليزر كبير 270","ضيف","إبراهيم ضيف",9,"جابر"]
[null,null,null,null,"2021-03-03","2021-03-03","ليزر صغير260","ضيف","احمد جمعه",4,"جابر"]
[null,null,null,null,"2021-03-03","2021-03-03","ليزر صغير260","ضيف","احمد جمعه",10.5,"عنتر"]
[null,null,null,null,"2021-03-03","2021-03-03","ليزر صغير260","ضيف","احمد رمزى",5,"عنتر"]
[null,null,null,null,"2021-03-04","2021-03-04","ليزر صغير260","ضيف","احمد جمعه",6,"عنتر"]
[null,null,null,null,"2021-03-04","2021-03-04","ليزر صغير260","ضيف","احمد رمزى",6,"عنتر"]
[null,null,null,null,"2021-03-04","2021-03-04","سيارة مياه كبيرة وش500","مجدى",null,4,"جابر"]
[null,null,null,null,"2021-03-04","2021-03-04","سيارة مياه كبيرة وش500","مجدى",null,2,"عنتر"]
[null,null,null,null,{"$f":"F71","v":"2021-03-04"},"2021-03-04","سيارة مياه كبيرة375","مجدى",null,23,"عنتر"]
[null,null,null,null,"2021-03-04","2021-03-04","سيارة مياه كبيرة375","مجدى",null,44,"جابر"]
[null,null,null,null,"2021-03-04","2021-03-04","هراس كبير","صلاح","فارس126.374",{"$f":"6+8+8+5","v":27},"عنتر"]
[null,null,null,null,"2021-03-04","2021-03-04","هراس كبير","صلاح","فارس126.374",2,"جابر"]
[null,null,null,null,"2021-03-07","2021-03-07","لودر كبير","علوان",null,93,"عنتر"]
[null,null,null,null,"2021-03-07","2021-03-07","سيارة م3 بسعر2.75","ربيع معدات",null,14979,"عنتر"]
[null,null,null,null,"2021-03-07","2021-03-07","سيارة م3 بسعر2.75","ربيع سولار",null,1695,"عنتر"]
[null,null,null,null,"2021-03-07","2021-03-07","سيارة م3 بسعر2.75","ربيع معدات",null,14949,"جابر"]
[null,null,null,null,"2021-03-07","2021-03-07","سيارة م3 بسعر2.75","ربيع سولار",null,1985,"جابر"]
[null,null,null,null,"2021-03-07","2021-03-07","سيارة م3 بسعر2.75","ربيع معدات",null,757,"اشرف شوقى"]
[null,null,null,null,"2021-03-02","2021-03-02","لودر كبير","علوان",null,11,"انور"]
[null,null,null,null,"2021-03-03","2021-03-03","لودر كبير","علوان",null,4,"انور"]
[null,null,null,null,"2021-03-07","2021-03-07","لودر كبير","علوان",null,4.5,"انور"]
[null,null,null,null,"2021-03-08","2021-03-08","لودر كبير","علوان",null,7,"انور"]
[null,null,null,null,"2021-03-09","2021-03-09","لودر كبير","علوان",null,7.5,"انور"]
[null,null,null,null,"2021-03-10","2021-03-10","لودر كبير","علوان",null,8,"انور"]
[null,null,null,null,"2021-03-10","2021-03-10","لودر كبير","علوان",null,9.5,"عنتر"]
[null,null,null,null,"2021-03-05","2021-03-05","ليزر كبير 270","ضيف",null,6,"جابر"]
[null,null,null,null,"2021-03-06","2021-03-06","ليزر كبير 270","ضيف",null,5,"جابر"]
[null,null,null,null,"2021-03-07","2021-03-07","ليزر كبير 270","ضيف",null,5,"جابر"]
[null,null,null,null,"2021-03-09","2021-03-09","ليزر كبير 270","ضيف",null,9.5,"جابر"]
[null,null,null,null,"2021-03-10","2021-03-10","ليزر كبير 270","ضيف",null,8.5,"جابر"]
[null,null,null,null,"2021-03-06","2021-03-06","ليزر صغير260","ضيف",null,6,"عنتر"]
[null,null,null,null,"2021-03-07","2021-03-07","ليزر صغير260","ضيف",null,9,"عنتر"]
[null,null,null,null,"2021-03-08","2021-03-08","ليزر صغير260","ضيف",null,5,"عنتر"]
[null,null,null,null,"2021-03-09","2021-03-09","ليزر صغير260","ضيف",null,8,"عنتر"]
[null,null,null,null,"2021-03-10","2021-03-10","ليزر صغير260","ضيف",null,9.5,"عنتر"]
[null,null,null,null,"2021-03-06","2021-03-06","هراس كبير","صلاح",null,8,"عنتر"]
[null,null,null,null,"2021-03-07","2021-03-07","هراس كبير","صلاح",null,9,"عنتر"]
[null,null,null,null,"2021-03-08","2021-03-08","هراس كبير","صلاح",null,9,"عنتر"]
[null,null,null,null,{"$f":"F101","v":"2021-03-09"},"2021-03-09","هراس كبير","صلاح",null,9,"جابر"]
[null,null,null,null,"2021-03-10","2021-03-10","هراس كبير","صلاح",null,6.5,"جابر"]
[null,null,null,null,"2021-03-11","2021-03-11","هراس كبير","صلاح",null,2.75,"جابر"]
[null,null,null,null,"2021-03-11","2021-03-11","سيارة مياه كبيرة وش500","مجدى",null,3,"جابر"]
[null,null,null,null,"2021-03-11","2021-03-11","سيارة مياه كبيرة وش500","مجدى",null,8,"عنتر"]
[null,null,null,null,"2021-03-11","2021-03-11","سيارة مياه كبيرة375","مجدى",null,14,"جابر"]
[null,null,null,null,"2021-03-11","2021-03-11","سيارة مياه كبيرة375","مجدى",null,20,"عنتر"]
[null,null,null,null,"2021-03-09","2021-03-09","هراس صغير","شريف",null,8,"جابر"]
[null,null,null,null,"2021-03-10","2021-03-10","هراس صغير","شريف",null,5.5,"جابر"]
[null,null,null,null,"2021-03-11","2021-03-11","هراس صغير","شريف",null,3,"جابر"]
[null,null,null,null,"2021-03-13","2021-03-13","هراس صغير","شريف",null,7.5,"جابر"]
[null,null,null,null,"2021-03-14","2021-03-14","هراس صغير","شريف",null,9,"جابر"]
[null,null,null,null,"2021-03-15","2021-03-15","هراس صغير","شريف",null,4.5,"عنتر"]
[null,null,null,null,"2021-03-16","2021-03-16","هراس صغير","شريف",null,3.5,"انور"]
[null,null,null,null,"2021-03-17","2021-03-17","هراس صغير","شريف",null,7,"الشركة"]
[null,null,null,null,"2021-03-17","2021-03-17","هراس صغير","شريف",null,1,"انور"]
[null,null,null,null,"2021-03-18","2021-03-18","هراس صغير","شريف",null,4,"الشركة"]
[null,null,null,null,"2021-03-13","2021-03-13","هراس كبير","صلاح",null,8.5,"جابر"]
[null,null,null,null,"2021-03-14","2021-03-14","هراس كبير","صلاح",null,9,"جابر"]
[null,null,null,null,"2021-03-15","2021-03-15","هراس كبير","صلاح",null,7.75,"عنتر"]
[null,null,null,null,"2021-03-15","2021-03-15","هراس كبير","صلاح",null,1.25,"جابر"]
[null,null,null,null,"2021-03-16","2021-03-16","هراس كبير","صلاح",null,3,"جابر"]
[null,null,null,null,"2021-03-16","2021-03-16","هراس كبير","صلاح",null,3.5,"انور"]
[null,null,null,null,"2021-03-17","2021-03-17","هراس كبير","صلاح",null,1,"انور"]
[null,null,null,null,"2021-03-17","2021-03-17","هراس كبير","صلاح",null,7,"الشركة"]
[null,null,null,null,"2021-03-18","2021-03-18","هراس كبير","صلاح",null,4,"الشركة"]
[null,null,null,null,"2021-03-13","2021-03-13","لودر كبير","علوان",null,4.5,"انور"]
[null,null,null,null,"2021-03-14","2021-03-14","لودر كبير","علوان",null,7,"انور"]
[null,null,null,null,"2021-03-15","2021-03-15","لودر كبير","علوان",null,8,"انور"]
[null,null,null,null,"2021-03-17","2021-03-17","لودر كبير","علوان",null,6,"انور"]
[null,null,null,null,"2021-03-18","2021-03-18","لودر كبير","علوان",null,8.5,"انور"]
[null,null,null,null,"2021-03-16","2021-03-16","سيارة مياه كبيرة375","مجدى",null,6,"انور"]
[null,null,null,null,{"$f":"F133","v":"2021-03-16"},"2021-03-16","سيارة مياه كبيرة375","مجدى",null,6,"عنتر"]
[null,null,null,null,"2021-03-16","2021-03-16","سيارة مياه كبيرة375","مجدى",null,17,"جابر"]
[null,null,null,null,{"$f":"F135","v":"2021-03-17"},"2021-03-17","ليزر صغير260","ضيف",null,8,"محمود"]
[null,null,null,null,"2021-03-14","2021-03-14","ليزر صغير260","ضيف",null,6.5,"انور"]
[null,null,null,null,"2021-03-14","2021-03-14","ليزر صغير260","ضيف",null,4.5,"انور"]
[null,null,null,null,"2021-03-15","2021-03-15","ليزر صغير260","ضيف",null,9.5,"انور"]
[null,null,null,null,"2021-03-16","2021-03-16","ليزر صغير260","ضيف",null,6,"انور"]
[null,null,null,null,"2021-03-17","2021-03-17","ليزر صغير260","ضيف",null,9.5,"انور"]
[null,null,null,null,"2021-03-11","2021-03-11","ليزر كبير 270","ضيف",null,5,"جابر"]
[null,null,null,null,"2021-03-13","2021-03-13","ليزر كبير 270","ضيف",null,8,"جابر"]
[null,null,null,null,"2021-03-14","2021-03-14","ليزر كبير 270","ضيف",null,6,"جابر"]
[null,null,null,null,"2021-03-17","2021-03-17",null,"ربيع معدات",null,8605.5,"انور"]
[null,null,null,null,"2021-03-17","2021-03-17",null,"ربيع سولار",null,613,"انور"]
[null,null,null,null,"2021-03-20","2021-03-20",null,"ربيع معدات",null,37088,"محمود"]
[null,null,null,null,"2021-03-20","2021-03-20",null,"ربيع سولار",null,2354,"محمود"]
[null,null,null,null,"2021-03-21","2021-03-21","ليزر كبير 270","ضيف",null,9.5,"محمود"]
[null,null,null,null,"2021-03-18","2021-03-18","ليزر صغير260","ضيف",null,5,"انور"]
[null,null,null,null,"2021-03-20","2021-03-20","ليزر صغير260","ضيف",null,5,"انور"]
[null,null,null,null,"2021-03-21","2021-03-21","ليزر صغير260","ضيف",null,8,"انور"]
[null,null,null,null,"2021-03-22","2021-03-22","ليزر صغير260","ضيف",null,6,"انور"]
[null,null,null,null,"2021-03-23","2021-03-23","ليزر صغير260","ضيف",null,6.5,"انور"]
[null,null,null,null,"2021-03-24","2021-03-24","ليزر صغير260","ضيف",null,6.5,"انور"]
[null,null,null,null,"2021-03-18","2021-03-18","ليزر صغير260","ضيف",null,5,"محمود"]
[null,null,null,null,"2021-03-20","2021-03-20","ليزر صغير260","ضيف",null,3,"محمود"]
[null,null,null,null,"2021-03-21","2021-03-21","ليزر صغير260","ضيف",null,8.5,"محمود"]
[null,null,null,null,"2021-03-22","2021-03-22","ليزر صغير260","ضيف",null,4.5,"محمود"]
[null,null,null,null,"2021-03-23","2021-03-23","ليزر صغير260","ضيف",null,5,"محمود"]
[null,null,null,null,"2021-03-24","2021-03-24","ليزر صغير260","ضيف",null,6,"محمود"]
[null,null,null,null,"2021-03-21","2021-03-21","لودر كبير","علوان",null,2.5,"انور"]
[null,null,null,null,"2021-03-22","2021-03-22","لودر كبير","علوان",null,9,"انور"]
[null,null,null,null,"2021-03-23","2021-03-23","لودر كبير","علوان",null,4.5,"انور"]
[null,null,null,null,"2021-03-24","2021-03-24","لودر كبير","علوان",null,1.5,"انور"]
[null,null,null,null,"2021-03-20","2021-03-20","لودر كبير","علوان","شغل من خارج الكلاستر (الحاج حماد)",6.25,"انور"]
[null,null,null,null,"2021-03-21","2021-03-21","لودر كبير","علوان","شغل من خارج الكلاستر (الحاج حماد)",4,"انور"]
[null,null,null,null,"2021-03-22","2021-03-22","لودر كبير","علوان","شغل من خارج الكلاستر (الحاج حماد)",0,"انور"]
[null,null,null,null,"2021-03-23","2021-03-23","لودر كبير","علوان","شغل من خارج الكلاستر (الحاج حماد)",4,"انور"]
[null,null,null,null,"2021-03-24","2021-03-24","لودر كبير","علوان","شغل من خارج الكلاستر (الحاج حماد)",8,"انور"]
[null,null,null,null,"2021-03-25","2021-03-25","لودر كبير","علوان","شغل من خارج الكلاستر (الحاج حماد)",6,"انور"]
[null,null,null,null,"00:00:00"]
[null,null,null,null,"00:00:00"]
[null,null,null,null,"00:00:00"]
[null,null,null,null,"00:00:00"]
[null,null,null,null,"00:00:00"]
[null,null,null,null,"00:00:00"]
[null,null,null,null,"00:00:00"]
[null,null,null,null,"00:00:00"]
[null,null,null,null,"00:00:00"]
[null,null,null,null,"00:00:00"]
[null,null,null,null,"00:00:00"]
[null,null,null,null,"00:00:00"]
[null,null,null,null,"00:00:00"]
[null,null,null,null,"00:00:00"]
[null,null,null,null,"00:00:00"]
[null,null,null,null,"00:00:00"]
[null,null,null,null,"00:00:00"]
[null,null,null,null,"00:00:00"]
[null,null,null,null,"00:00:00"]
[null,null,null,null,"00:00:00"]
[null,null,null,null,"00:00:00"]
[null,null,null,null,"00:00:00"]
[null,null,null,null,"00:00:00"]
[null,null,null,null,"00:00:00"]
[null,null,null,null,"00:00:00"]
[null,null,null,null,"00:00:00"]
[null,null,null,null,"00:00:00"]
[null,null,null,null,"00:00:00"]
[null,null,null,null,{"$f":"F199","v":"00:00:00"}]
[null,null,null,null,"00:00:00"]
[null,null,null,null,"00:00:00"]
[null,null,null,null,"00:00:00"]
[null,null,null,null,"00:00:00"]
[null,null,null,null,"00:00:00"]
[null,null,null,null,"00:00:00"]
[null,null,null,null,"00:00:00"]
[null,null,null,null,"00:00:00"]
[null,null,null,null,"00:00:00"]
[null,null,null,null,"00:00:00"]
[null,null,null,null,"00:00:00"]
[null,null,null,null,"00:00:00"]
[null,null,null,null,"00:00:00"]
[null,null,null,null,"00:00:00"]
[null,null,null,null,"00:00:00"]
[null,null,null,null,"00:00:00"]
[null,null,null,null,"00:00:00"]
[null,null,null,null,"00:00:00"]
[null,null,null,null,"00:00:00"]
[null,null,null,null,"00:00:00"]
[null,null,null,null,"00:00:00"]
[null,null,null,null,"00:00:00"]
[null,null,null,null,"00:00:00"]
[null,null,null,null,"00:00:00"]
[null,null,null,null,"00:00:00"]
[null,null,null,null,"00:00:00"]
[null,null,null,null,"00:00:00"]
[null,null,null,null,"00:00:00"]
[null,null,null,null,"00:00:00"]
[null,null,null,null,"00:00:00"]
[null,null,null,null,"00:00:00"]
[null,null,null,null,"00:00:00"]
[null,null,null,null,"00:00:00"]
[null,null,null,null,"00:00:00"]
[null,null,null,null,"00:00:00"]
[null,null,null,null,"00:00:00"]
[null,null,null,null,"00:00:00"]
[null,null,null,null,"00:00:00"]
[null,null,null,null,"00:00:00"]
[null,null,null,null,"00:00:00"]
[null,null,null,null,"00:00:00"]
[null,null,null,null,"00:00:00"]
[null,null,null,null,"00:00:00"]
[null,null,null,null,"00:00:00"]
[null,null,null,null,"00:00:00"]
[null,null,null,null,"00:00:00"]
[null,null,null,null,"00:00:00"]
[null,null,null,null,"00:00:00"]
[null,null,null,null,"00:00:00"]
[null,null,null,null,"00:00:00"]
[null,null,null,null,"00:00:00"]
[null,null,null,null,"00:00:00"]
[null,null,null,null,"00:00:00"]
[null,null,null,null,"00:00:00"]
[null,null,null,null,"00:00:00"]
[null,null,null,null,"00:00:00"]
[null,null,null,null,"00:00:00"]
[null,null,null,null,"00:00:00"]
[null,null,null,null,"00:00:00"]
[null,null,null,null,"00:00:00"]
[null,null,null,null,"00:00:00"]
[null,null,null,null,"00:00:00"]
[null,null,null,null,"00:00:00"]
[null,null,null,null,{"$f":"F263","v":"00:00:00"}]
[null,null,null,null,"00:00:00"]
[null,null,null,null,"00:00:00"]
[null,null,null,null,"00:00:00"]
[null,null,null,null,"00:00:00"]
[null,null,null,null,"00:00:00"]
[null,null,null,null,"00:00:00"]
[null,null,null,null,"00:00:00"]
[null,null,null,null,"00:00:00"]
[null,null,null,null,"00:00:00"]
[null,null,null,null,"00:00:00"]
[null,null,null,null,"00:00:00"]
[null,null,null,null,"00:00:00"]
[null,null,null,null,"00:00:00"]
[null,null,null,null,"00:00:00"]
[null,null,null,null,"00:00:00"]
[null,null,null,null,"00:00:00"]
[null,null,null,null,"00:00:00"]
[null,null,null,null,"00:00:00"]
[null,null,null,null,"00:00:00"]
[null,null,null,null,"00:00:00"]
[null,null,null,null,"00:00:00"]
[null,null,null,null,"00:00:00"]
[null,null,null,null,"00:00:00"]
[null,null,null,null,"00:00:00"]
[null,null,null,null,"00:00:00"]
[null,null,null,null,"00:00:00"]
[null,null,null,null,"00:00:00"]
[null,null,null,null,"00:00:00"]
[null,null,null,null,"00:00:00"]
[null,null,null,null,"00:00:00"]
[null,null,null,null,"00:00:00"]
[null,null,null,null,"00:00:00"]
[null,null,null,null,"00:00:00"]
[null,null,null,null,"00:00:00"]
[null,null,null,null,"00:00:00"]
[null,null,null,null,"00:00:00"]
[null,null,null,null,"00:00:00"]
[null,null,null,null,"00:00:00"]
[null,null,null,null,"00:00:00"]
[null,null,null,null,"00:00:00"]
[null,null,null,null,"00:00:00"]
[null,null,null,null,"00:00:00"]
[null,null,null,null,"00:00:00"]
[null,null,null,null,"00:00:00"]
[null,null,null,null,"00:00:00"]
[null,null,null,null,"00:00:00"]
[null,null,null,null,"00:00:00"]
[null,null,null,null,"00:00:00"]
[null,null,null,null,"00:00:00"]
[null,null,null,null,"00:00:00"]
[null,null,null,null,"00:00:00"]
[null,null,null,null,"00:00:00"]
[null,null,null,null,"00:00:00"]
[null,null,null,null,"00:00:00"]
[null,null,null,null,"00:00:00"]
[null,null,null,null,"00:00:00"]
[null,null,null,null,"00:00:00"]
[null,null,null,null,"00:00:00"]
[null,null,null,null,"00:00:00"]
[null,null,null,null,"00:00:00"]
[null,null,null,null,"00:00:00"]
[null,null,null,null,"00:00:00"]
[null,null,null,null,"00:00:00"]
[null,null,null,null,{"$f":"F327","v":"00:00:00"}]
[null,null,null,null,"00:00:00"]
[null,null,null,null,"00:00:00"]
[null,null,null,null,"00:00:00"]
[null,null,null,null,"00:00:00"]
[null,null,null,null,"00:00:00"]
[null,null,null,null,"00:00:00"]
[null,null,null,null,"00:00:00"]
[null,null,null,null,"00:00:00"]
[null,null,null,null,"00:00:00"]
[null,null,null,null,"00:00:00"]
[null,null,null,null,"00:00:00"]
[null,null,null,null,"00:00:00"]
[null,null,null,null,"00:00:00"]
[null,null,null,null,"00:00:00"]
[null,null,null,null,"00:00:00"]
[null,null,null,null,"00:00:00"]
[null,null,null,null,"00:00:00"]
[null,null,null,null,"00:00:00"]
[null,null,null,null,"00:00:00"]
[null,null,null,null,"00:00:00"]
[null,null,null,null,"00:00:00"]
[null,null,null,null,"00:00:00"]
[null,null,null,null,"00:00:00"]
[null,null,null,null,"00:00:00"]
[null,null,null,null,"00:00:00"]
[null,null,null,null,"00:00:00"]
[null,null,null,null,"00:00:00"]
[null,null,null,null,"00:00:00"]
[null,null,null,null,"00:00:00"]
[null,null,null,null,"00:00:00"]
[null,null,null,null,"00:00:00"]
[null,null,null,null,"00:00:00"]
[null,null,null,null,"00:00:00"]
[null,null,null,null,"00:00:00"]
[null,null,null,null,"00:00:00"]
[null,null,null,null,"00:00:00"]
[null,null,null,null,"00:00:00"]
[null,null,null,null,"00:00:00"]
[null,null,null,null,"00:00:00"]
[null,null,null,null,"00:00:00"]
[null,null,null,null,"00:00:00"]
[null,null,null,null,"00:00:00"]
[null,null,null,null,"00:00:00"]
[null,null,null,null,"00:00:00"]
[null,null,null,null,"00:00:00"]
[null,null,null,null,"00:00:00"]
[null,null,null,null,"00:00:00"]
[null,null,null,null,"00:00:00"]
[null,null,null,null,"00:00:00"]
[null,null,null,null,"00:00:00"]
[null,null,null,null,"00:00:00"]
[null,null,null,null,"00:00:00"]
[null,null,null,null,"00:00:00"]
[null,null,null,null,"00:00:00"]
[null,null,null,null,"00:00:00"]
[null,null,null,null,"00:00:00"]
[null,null,null,null,"00:00:00"]
[null,null,null,null,"00:00:00"]
[null,null,null,null,"00:00:00"]
[null,null,null,null,"00:00:00"]
[null,null,null,null,"00:00:00"]
[null,null,null,null,"00:00:00"]
[null,null,null,null,"00:00:00"]
[null,null,null,null,{"$f":"F391","v":"00:00:00"}]
[null,null,null,null,"00:00:00"]
[null,null,null,null,"00:00:00"]
[null,null,null,null,"00:00:00"]
[null,null,null,null,"00:00:00"]
[null,null,null,null,"00:00:00"]
[null,null,null,null,"00:00:00"]
[null,null,null,null,"00:00:00"]
[null,null,null,null,"00:00:00"]
[null,null,null,null,"00:00:00"]
[null,null,null,null,"00:00:00"]
[null,null,null,null,"00:00:00"]
[null,null,null,null,"00:00:00"]
[null,null,null,null,"00:00:00"]
[null,null,null,null,"00:00:00"]
[null,null,null,null,"00:00:00"]
[null,null,null,null,"00:00:00"]
[null,null,null,null,"00:00:00"]
[null,null,null,null,"00:00:00"]
[null,null,null,null,"00:00:00"]
[null,null,null,null,"00:00:00"]
[null,null,null,null,"00:00:00"]
[null,null,null,null,"00:00:00"]
[null,null,null,null,"00:00:00"]
[null,null,null,null,"00:00:00"]
[null,null,null,null,"00:00:00"]
[null,null,null,null,"00:00:00"]
[null,null,null,null,"00:00:00"]
[null,null,null,null,"00:00:00"]
[null,null,null,null,"00:00:00"]
[null,null,null,null,"00:00:00"]
[null,null,null,null,"00:00:00"]
[null,null,null,null,"00:00:00"]
[null,null,null,null,"00:00:00"]
[null,null,null,null,"00:00:00"]
[null,null,null,null,"00:00:00"]
[null,null,null,null,"00:00:00"]
[null,null,null,null,"00:00:00"]
[null,null,null,null,"00:00:00"]
[null,null,null,null,"00:00:00"]
[null,null,null,null,"00:00:00"]
[null,null,null,null,"00:00:00"]
[null,null,null,null,"00:00:00"]
[null,null,null,null,"00:00:00"]
[null,null,null,null,"00:00:00"]
[null,null,null,null,"00:00:00"]
[null,null,null,null,"00:00:00"]
[null,null,null,null,"00:00:00"]
[null,null,null,null,"00:00:00"]
[null,null,null,null,"00:00:00"]
[null,null,null,null,"00:00:00"]
[null,null,null,null,"00:00:00"]
[null,null,null,null,"00:00:00"]
[null,null,null,null,"00:00:00"]
[null,null,null,null,"00:00:00"]
[null,null,null,null,"00:00:00"]
[null,null,null,null,"00:00:00"]
[null,null,null,null,"00:00:00"]
[null,null,null,null,"00:00:00"]
[null,null,null,null,"00:00:00"]
[null,null,null,null,"00:00:00"]
[null,null,null,null,"00:00:00"]
[null,null,null,null,"00:00:00"]
[null,null,null,null,"00:00:00"]
[null,null,null,null,{"$f":"F455","v":"00:00:00"}]
[null,null,null,null,"00:00:00"]
[null,null,null,null,"00:00:00"]
[null,null,null,null,"00:00:00"]
[null,null,null,null,"00:00:00"]
[null,null,null,null,"00:00:00"]
[null,null,null,null,"00:00:00"]
[null,null,null,null,"00:00:00"]
[null,null,null,null,"00:00:00"]
[null,null,null,null,"00:00:00"]
[null,null,null,null,"00:00:00"]
[null,null,null,null,"00:00:00"]
[null,null,null,null,"00:00:00"]
[null,null,null,null,"00:00:00"]
[null,null,null,null,"00:00:00"]
[null,null,null,null,"00:00:00"]
[null,null,null,null,"00:00:00"]
[null,null,null,null,"00:00:00"]
[null,null,null,null,"00:00:00"]
[null,null,null,null,"00:00:00"]
[null,null,null,null,"00:00:00"]
[null,null,null,null,"00:00:00"]
[null,null,null,null,"00:00:00"]
[null,null,null,null,"00:00:00"]
[null,null,null,null,"00:00:00"]
[null,null,null,null,"00:00:00"]
[null,null,null,null,"00:00:00"]
[null,null,null,null,"00:00:00"]
[null,null,null,null,"00:00:00"]
[null,null,null,null,"00:00:00"]
[null,null,null,null,"00:00:00"]
[null,null,null,null,"00:00:00"]
[null,null,null,null,"00:00:00"]
[null,null,null,null,"00:00:00"]
[null,null,null,null,"00:00:00"]
[null,null,null,null,"00:00:00"]
[null,null,null,null,"00:00:00"]
[null,null,null,null,"00:00:00"]
[null,null,null,null,"00:00:00"]
[null,null,null,null,"00:00:00"]
[null,null,null,null,"00:00:00"]
[null,null,null,null,"00:00:00"]
[null,null,null,null,"00:00:00"]
[null,null,null,null,"00:00:00"]
[null,null,null,null,"00:00:00"]
[null,null,null,null,"00:00:00"]
[null,null,null,null,"00:00:00"]
[null,null,null,null,"00:00:00"]
[null,null,null,null,"00:00:00"]
[null,null,null,null,"00:00:00"]
[null,null,null,null,"00:00:00"]
[null,null,null,null,"00:00:00"]
[null,null,null,null,"00:00:00"]
[null,null,null,null,"00:00:00"]
[null,null,null,null,"00:00:00"]
[null,null,null,null,"00:00:00"]
[null,null,null,null,"00:00:00"]
[null,null,null,null,"00:00:00"]
[null,null,null,null,"00:00:00"]
[null,null,null,null,"00:00:00"]
[null,null,null,null,"00:00:00"]
[null,null,null,null,"00:00:00"]
[null,null,null,null,"00:00:00"]
[null,null,null,null,"00:00:00"]
[null,null,null,null,{"$f":"F519","v":"00:00:00"}]
[null,null,null,null,"00:00:00"]
[null,null,null,null,"00:00:00"]
[null,null,null,null,"00:00:00"]
[null,null,null,null,"00:00:00"]
[null,null,null,null,"00:00:00"]
[null,null,null,null,"00:00:00"]
[null,null,null,null,"00:00:00"]
[null,null,null,null,"00:00:00"]
[null,null,null,null,"00:00:00"]
[null,null,null,null,"00:00:00"]
[null,null,null,null,"00:00:00"]
[null,null,null,null,"00:00:00"]
[null,null,null,null,"00:00:00"]
[null,null,null,null,"00:00:00"]
[null,null,null,null,"00:00:00"]
[null,null,null,null,"00:00:00"]
[null,null,null,null,"00:00:00"]
[null,null,null,null,"00:00:00"]
[null,null,null,null,"00:00:00"]
[null,null,null,null,"00:00:00"]
[null,null,null,null,"00:00:00"]
[null,null,null,null,"00:00:00"]
[null,null,null,null,"00:00:00"]
[null,null,null,null,"00:00:00"]
[null,null,null,null,"00:00:00"]
[null,null,null,null,"00:00:00"]
[null,null,null,null,"00:00:00"]
[null,null,null,null,"00:00:00"]
[null,null,null,null,"00:00:00"]
[null,null,null,null,"00:00:00"]
[null,null,null,null,"00:00:00"]
[null,null,null,null,"00:00:00"]
[null,null,null,null,"00:00:00"]
[null,null,null,null,"00:00:00"]
[null,null,null,null,"00:00:00"]
[null,null,null,null,"00:00:00"]
[null,null,null,null,"00:00:00"]
[null,null,null,null,"00:00:00"]
[null,null,null,null,"00:00:00"]
[null,null,null,null,"00:00:00"]
[null,null,null,null,"00:00:00"]
[null,null,null,null,"00:00:00"]
[null,null,null,null,"00:00:00"]
[null,null,null,null,"00:00:00"]
[null,null,null,null,"00:00:00"]
[null,null,null,null,"00:00:00"]
[null,null,null,null,"00:00:00"]
[null,null,null,null,"00:00:00"]
[null,null,null,null,"00:00:00"]
[null,null,null,null,"00:00:00"]
[null,null,null,null,"00:00:00"]
[null,null,null,null,"00:00:00"]
[null,null,null,null,"00:00:00"]
[null,null,null,null,"00:00:00"]
[null,null,null,null,"00:00:00"]
[null,null,null,null,"00:00:00"]
[null,null,null,null,"00:00:00"]
[null,null,null,null,"00:00:00"]
[null,null,null,null,"00:00:00"]
[null,null,null,null,"00:00:00"]
[null,null,null,null,"00:00:00"]
[null,null,null,null,"00:00:00"]
[null,null,null,null,"00:00:00"]
[null,null,null,null,{"$f":"F583","v":"00:00:00"}]
[null,null,null,null,"00:00:00"]
[null,null,null,null,"00:00:00"]
[null,null,null,null,"00:00:00"]
[null,null,null,null,"00:00:00"]
[null,null,null,null,"00:00:00"]
[null,null,null,null,"00:00:00"]
[null,null,null,null,"00:00:00"]
[null,null,null,null,"00:00:00"]
[null,null,null,null,"00:00:00"]
[null,null,null,null,"00:00:00"]
[null,null,null,null,"00:00:00"]
[null,null,null,null,"00:00:00"]
[null,null,null,null,"00:00:00"]
[null,null,null,null,"00:00:00"]
[null,null,null,null,"00:00:00"]
[null,null,null,null,"00:00:00"]
[null,null,null,null,"00:00:00"]
[null,null,null,null,"00:00:00"]
[null,null,null,null,"00:00:00"]
[null,null,null,null,"00:00:00"]
[null,null,null,null,"00:00:00"]
[null,null,null,null,"00:00:00"]
[null,null,null,null,"00:00:00"]
[null,null,null,null,"00:00:00"]
[null,null,null,null,"00:00:00"]
[null,null,null,null,"00:00:00"]
[null,null,null,null,"00:00:00"]
[null,null,null,null,"00:00:00"]
[null,null,null,null,"00:00:00"]
[null,null,null,null,"00:00:00"]
[null,null,null,null,"00:00:00"]
[null,null,null,null,"00:00:00"]
[null,null,null,null,"00:00:00"]
[null,null,null,null,"00:00:00"]
[null,null,null,null,"00:00:00"]
[null,null,null,null,"00:00:00"]
[null,null,null,null,"00:00:00"]
[null,null,null,null,"00:00:00"]
[null,null,null,null,"00:00:00"]
[null,null,null,null,"00:00:00"]
[null,null,null,null,"00:00:00"]
[null,null,null,null,"00:00:00"]
[null,null,null,null,"00:00:00"]
[null,null,null,null,"00:00:00"]
[null,null,null,null,"00:00:00"]
[null,null,null,null,"00:00:00"]
[null,null,null,null,"00:00:00"]
[null,null,null,null,"00:00:00"]
[null,null,null,null,"00:00:00"]
[null,null,null,null,"00:00:00"]
[null,null,null,null,"00:00:00"]
[null,null,null,null,"00:00:00"]
[null,null,null,null,"00:00:00"]
[null,null,null,null,"00:00:00"]
[null,null,null,null,"00:00:00"]
[null,null,null,null,"00:00:00"]
[null,null,null,null,"00:00:00"]
[null,null,null,null,"00:00:00"]
[null,null,null,null,"00:00:00"]
[null,null,null,null,"00:00:00"]
[null,null,null,null,"00:00:00"]
[null,null,null,null,"00:00:00"]
[null,null,null,null,"00:00:00"]
[null,null,null,null,{"$f":"F647","v":"00:00:00"}]
[null,null,null,null,"00:00:00"]
[null,null,null,null,"00:00:00"]
[null,null,null,null,"00:00:00"]
[null,null,null,null,"00:00:00"]
[null,null,null,null,"00:00:00"]
[null,null,null,null,"00:00:00"]
[null,null,null,null,"00:00:00"]
[null,null,null,null,"00:00:00"]
[null,null,null,null,"00:00:00"]
[null,null,null,null,"00:00:00"]
[null,null,null,null,"00:00:00"]
[null,null,null,null,"00:00:00"]
[null,null,null,null,"00:00:00"]
[null,null,null,null,"00:00:00"]
[null,null,null,null,"00:00:00"]
[null,null,null,null,"00:00:00"]
[null,null,null,null,"00:00:00"]
[null,null,null,null,"00:00:00"]
[null,null,null,null,"00:00:00"]
[null,null,null,null,"00:00:00"]
[null,null,null,null,"00:00:00"]
[null,null,null,null,"00:00:00"]
[null,null,null,null,"00:00:00"]
[null,null,null,null,"00:00:00"]
[null,null,null,null,"00:00:00"]
[null,null,null,null,"00:00:00"]
[null,null,null,null,"00:00:00"]
[null,null,null,null,"00:00:00"]
[null,null,null,null,"00:00:00"]
[null,null,null,null,"00:00:00"]
[null,null,null,null,"00:00:00"]
[null,null,null,null,"00:00:00"]
[null,null,null,null,"00:00:00"]
[null,null,null,null,"00:00:00"]
[null,null,null,null,"00:00:00"]
[null,null,null,null,"00:00:00"]
[null,null,null,null,"00:00:00"]
[null,null,null,null,"00:00:00"]
[null,null,null,null,"00:00:00"]
[null,null,null,null,"00:00:00"]
[null,null,null,null,"00:00:00"]
[null,null,null,null,"00:00:00"]
[null,null,null,null,"00:00:00"]
[null,null,null,null,"00:00:00"]
[null,null,null,null,"00:00:00"]
[null,null,null,null,"00:00:00"]
[null,null,null,null,"00:00:00"]
[null,null,null,null,"00:00:00"]
[null,null,null,null,"00:00:00"]
[null,null,null,null,"00:00:00"]
[null,null,null,null,"00:00:00"]
[null,null,null,null,"00:00:00"]
[null,null,null,null,"00:00:00"]
[null,null,null,null,"00:00:00"]
[null,null,null,null,"00:00:00"]
[null,null,null,null,"00:00:00"]
[null,null,null,null,"00:00:00"]
[null,null,null,null,"00:00:00"]
[null,null,null,null,"00:00:00"]
[null,null,null,null,"00:00:00"]
[null,null,null,null,{"$f":"F708","v":"00:00:00"}]
[null,null,null,null,{"$f":"F709","v":"00:00:00"}]
[null,null,null,null,{"$f":"F710","v":"00:00:00"}]
[null,null,null,null,{"$f":"F711","v":"00:00:00"}]
[null,null,null,null,{"$f":"F712","v":"00:00:00"}]
[null,null,null,null,"00:00:00"]
[null,null,null,null,{"$f":"F714","v":"00:00:00"}]
[null,null,null,null,{"$f":"F715","v":"00:00:00"}]
[null,null,null,null,"00:00:00"]
[null,null,null,null,"00:00:00"]
[null,null,null,null,"00:00:00"]
[null,null,null,null,"00:00:00"]
[null,null,null,null,"00:00:00"]
[null,null,null,null,"00:00:00"]
[null,null,null,null,"00:00:00"]
[null,null,null,null,"00:00:00"]
[null,null,null,null,"00:00:00"]
[null,null,null,null,"00:00:00"]
[null,null,null,null,"00:00:00"]
[null,null,null,null,"00:00:00"]
[null,null,null,null,"00:00:00"]
[null,null,null,null,"00:00:00"]
[null,null,null,null,"00:00:00"]
[null,null,null,null,"00:00:00"]
[null,null,null,null,"00:00:00"]
[null,null,null,null,"00:00:00"]
[null,null,null,null,"00:00:00"]
[null,null,null,null,"00:00:00"]
[null,null,null,null,"00:00:00"]
[null,null,null,null,"00:00:00"]
[null,null,null,null,"00:00:00"]
[null,null,null,null,"00:00:00"]
[]
[]
[]
[]
[]
[]
[]
[]
[]
[]
[]
[]
[]
[]
[]
[]
[]
[]
[]
[]
[]
[]
[]
[]
[]
[]
[]
[]
[]
[]
[]
[]
[]
[]
[]
[]
[]
[]
[]
[]
[]
[]
[]
[]
[]
[]
[]
[]
[]
[]
[]
[]
[]
[]
[]
[]
[]
[]
[]
[]
[]
[]
[]
[]
[]
[]
[]
[]
[]
[]
[]
[]
[]
[]
[]
[]
[]
[]
[]
[]
[]
[]
[]
[]
[]
[]
[]
[]
[]
[]
[]
[]
[]
[]
[]
[]
[]
[]
[]
[]
[]
[]
[]
[]
[]
[]
[]
[]
[]
[]
[]
[]
[]
[]
[]
[]
[]
[]
[]
[]
[]
[]
[]
[]
[]
[]
[]
[]
[]
[]
[]
[]
[]
[]
[]
[]
[]
[]
[]
[]
[]
[]
[]
[]
[]
[]
[]
[]
[]
[]
[]
[]
[]
[]
[]
[]
[]
[]
[]
[]
[]
[]
[]
[]
[]
[]
[]
[]
[]
[]
[]
[]
[]
[]
[]
[]
[]
[]
[]
[]
[]
[]
[]
[]
[]
[]
[]
[]
[]
[]
[]
[]
[]
[]
[]
[]
[]
[]
[]
[]
[]
[]
[]
[]
[]
[]
[]
[]
[]
[]
[]
[]
[]
[]
[]
[]
[]
[]
[]
[]
[]
[]
[]
[]
[]
[]
[]
[]
[]
[]
[]
[]
[]
[]
[]
[]
[]
[]
[]
[]
[]
[]
[]
[]
[]
[]
[]
[]
[]
[]
[]
[]
[]
[]
[]
[]
[]
[]
[]
[]
[]
[]
[]
[]
[]
[]
[]
[]
[]
[]
[]
[]
[]
[]
[]
[]
[]
[]
[]
[]
[]
[]
[]
[]
[]
[]
[]
[]
[]
[]
[]
[]
[]
[]
[]
[]
[]
[]
[]
[]
[]
[]
[]
[]
[]
[]
[]
[]
[]
[]
[]
[]
[]
[]
[]
[]
[]
[]
[]
[]
[]
[]
[]
[]
[]
[]
[]
[]
[]
[]
[]
[]
[]
[]
[]
[]
[]
[]
[]
[]
[]
[]
[]
[]
[]
[]
[]
[]
[]
[]
[]
[]
[]
[]
[]
[]
[]
[]
[]
[]
[]
[]
[]
[]
[]
[]
[]
[]
[]
[]
[]
[]
[]
[]
[]
[]
[]
[]
[]
[]
[]
[]
[]
[]
[]
[]
[]
[]
[]
[]
[]
[]
[]
[]
[]
[]
[]
[]
[]
[]
[]
[]
[]
[]
[]
[]
[]
[]
[]
[]
[]
[]
[]
[]
[]
[]
[]
[]
[]
[]
[]
[]
[]
[]
[]
[]
[]
[]
[]
[]
[]
[]
[]
[]
[]
[]
[]
[]
[]
[]
[]
[]
[]
[]
[]
[]
[]
[]
[]
[]
[]
[]
[]
[]
[]
[]
[]
[]
[]
[]
[]
[]
[]
[]
[]
[]
[]
[]
[]
[]
[]
[]
[]
[]
[]
[]
[]
[]
[]
[]
[]
[]
[]
[]
[]
[]
[]
[]
[]
[]
[]
[]
[]
[]
[]
[]
[]
[]
[]
[]
[]
[]
[]
[]
[]
[]
[]
[]
[]
[]
[]
[]
[]
[]
[]
[]
[]
[]
[]
[]
[]
[]
[]
[]
[]
[]
[]
[]
[]
[]
[]
[]
[]
[]
[]
[]
[]
[]
[]
[]
[]
[]
[]
[]
[]
[]
[]
[]
[]
[]
[]
[]
[]
[]
[]
[]
[]
[]
[]
[]
[]
[]
[]
[]
[]
[]
[]
[]
[]
[]
[]
[]
[]
[]
[]
[]
[]
[]
[]
[]
[]
[]
[]
[]
[]
[]
[]
[]
[]
[]
[]
[]
[]
[]
[]
[]
[]
[]
[]
[]
[]
[]
[]
[]
[]
[]
[]
[]
[]
[]
[]
[]
[]
[]
[]
[]
[]
[]
[]
[]
[]
[]
[]
[]
[]
[]
[]
[]
[]
[]
[]
[]
[]
[]
[]
[]
[]
[]
[]
[]
[]
[]
[]
[]
[]
[]
[]
[]
[]
[]
[]
[]
[]
[]
[]
[]
[]
[]
[]
[]
[]
[]
[]
[]
[]
[]
[]
[]
[]
[]
[]
[]
[]
[]
[]
[]
[]
[]
[]
[]
[]
[]
[]
[]
[]
[]
[]
[]
[]
[]
[]
[]
[]
[]
[]
[]
[]
[]
[]
[]
[]
[]
[]
[]
[]
[]
[]
[]
[]
[]
[]
[]
[]
[]
[]
[]
[]
[]
[]
[]
[]
[]
[]
[]
[]
[]
[]
[]
[]
[]
[]
[]
[]
[]
[]
[]
[]
[]
[]
[]
[]
[]
[]
[]
[]
[]
[]
[]
[]
[]
[]
[]
[]
[]
[]
[]
[]
[]
[]
[]
[]
[]
[]
[]
[]
[]
[]
[]
[]
[]
[]
[]
[]
[]
[]
[]
[]
[]
[]
[]
[]
[]
[]
[]
[]
[]
[]
[]
[]
[]
[]
[]
[]
[]
[]
[]
[]
[]
[]
[]
[]
[]
[]
[]
[]
[]
[]
[]
[]
[]
[]
[]
[]
[]
[]
[]
[]
[]
[]
[]
[]
[]
[]
[]
[]
[]
[]
[]
[]
[]
[]
[]
[]
[]
[]
[]
[]
[]
[]
[]
[]
[]
[]
[]
[]
[]
[]
[]
[]
[]
[]
[]
[]
[]
[]
[]
[]
[]
[]
[]
[]
[]
[]
[]
[]
[]
[]
[]
[]
[]
[]
[]
[]
[]
[]
[]
[]
[]
[]
[]
[]
[]
[]
[]
[]
[]
[]
[]
[]
[]
[]
[]
[]
[]
[]
[]
[]
[]
[]
[]
[]
[]
[]
[]
[]
[]
[]
[]
[]
[]
[]
[]
[]
[]
[]
[]
[]
[]
[]
[]
[]
[]
[]
[]
[]
[]
[]
[]
[]
[]
[]
[]
[]
[]
[]
[]
[]
[]
[]
[]
[]
[]
[]
[]
[]
[]
[]
[]
[]
[]
[]
[]
[]
[]
[]
[]
[]
[]
[]
[]
[]
[]
[]
[]
[]
[]
[]
[]
[]
[]
[]
[]
[]
[]
[]
[]
[]
[]
[]
[]
[]
[]
[]
[]
[]
[]
[]
[]
[]
[]
[]
[]
[]
[]
[]
[]
[]
[]
[]
[]
[]
[]
[]
[]
[]
[]
[]
[]
[]
[]
[]
[]
[]
[]
[]
[]
[]
[]
[]
[]
[]
[]
[]
[]
[]
[]
[]
[]
[]
[]
[]
[]
[]
[]
[]
[]
[]
[]
[]
[]
[]
[]
[]
[]
[]
[]
[]
[]
[]
[]
[]
[]
[]
[]
[]
[]
[]
[]
[]
[]
[]
[]
[]
[]
[]
[]
[]
[]
[]
[]
[]
[]
[]
[]
[]
[]
[]
[]
[]
[]
[]
[]
[]
[]
[]
[]
[]
[]
[]
[]
[]
[]
[]
[]
[]
[]
[]
[]
[]
[]
[]
[]
[]
[]
[]
[]
[]
[]
[]
[]
[]
[]
[]
[]
[]
[]
[]
[]
[]
[]
[]
[]
[]
[]
[]
[]
[]
[]
[]
[]
[]
[]
[]
[]
[]
[]
[]
[]
[]
[]
[]
[]
[]
[]
[]
[]
[]
[]
[]
[]
[]
[]
[]
[]
[]
[]
[]
[]
[]
[]
[]
[]
[]
[]
[]
[]
[]
[]
[]
[]
[]
[]
[]
[]
[]
[]
[]
[]
[]
[]
[]
[]
[]
[]
[]
[]
[]
[]
[]
[]
[]
[]
[]
[]
[]
[]
[]
[]
[]
[]
[]
[]
[]
[]
[]
[]
[]
[]
[]
[]
[]
[]
[]
[]
[]
[]
[]
[]
[]
[]
[]
[]
[]
[]
[]
[]
[]
[]
[]
[]
[]
[]
[]
[]
[]
[]
[]
[]
[]
[]
[]
[]
[]
[]
[]
[]
[]
[]
[]
[]
[]
[]
[]
[]
[]
[]
[]
[]
[]
[]
[]
[]
[]
[]
[]
[]
[]
[]
[]
[]
[]
[]
[]
[]
[]
[]
[]
[]
[]
[]
[]
[]
[]
[]
[]
[]
[]
[]
[]
[]
[]
[]
[]
[]
[]
[]
[]
[]
[]
[]
[]
[]
[]
[]
[]
[]
[]
[]
[]
[]
[]
[]
[]
[]
[]
[]
[]
[]
[]
[]
[]
[]
[]
[]
[]
[]
[]
[]
[]
[]
[]
[]
[]
[]
[]
[]
[]
[]
[]
[]
[]
[]
[]
[]
[]
[]
[]
[]
[]
[]
[]
[]
[]
[]
[]
[]
[]
[]
[]
[]
[]
[]
[]
[]
[]
[]
[]
[]
[]
[]
[]
[]
[]
[]
[]
[]
[]
[]
[]
[]
[]
[]
[]
[]
[]
[]
[]
[]
[]
[]
[]
[]
[]
[]
[]
[]
[]
[]
[]
[]
[]
[]
[]
[]
[]
[]
[]
[]
[]
[]
[]
[]
[]
[]
[]
[]
[]
[]
[]
[]
[]
[]
[]
[]
[]
[]
[]
[]
[]
[]
[]
[]
[]
[]
[]
[]
[]
[]
[]
[]
[]
[]
[]
[]
[]
[]
[]
[]
[]
[]
[]
[]
[]
[]
[]
[]
[]
[]
[]
[]
[]
[]
[]
[]
[]
[]
[]
[]
[]
[]
[]
[]
[]
[]
[]
[]
[]
[]
[]
[]
[]
[]
[]
[]
[]
[]
[]
[]
[]
[]
[]
[]
[]
[]
[]
[]
[]
[]
[]
[]
[]
[]
[]
[]
[]
[]
[]
[]
[]
[]
[]
[]
[]
[]
[]
[]
[]
[]
[]
[]
[]
[]
[]
[]
[]
[]
[]
[]
[]
[]
[]
[]
[]
[]
[]
[]
[]
[]
[]
[]
[]
[]
[]
[]
[]
[]
[]
[]
[]
[]
[]
[]
[]
[]
[]
[]
[]
[]
[]
[]
[]
[]
[]
[]
[]
[]
[]
[]
[]
[]
[]
[]
[]
[]
[]
[]
[]
[]
[]
[]
[]
[]
[]
[]
[]
[]
[]
[]
[]
[]
[]
[]
[]
[]
[]
[]
[]
[]
[]
[]
[]
[]
[]
[]
[]
[]
[]
[]
[]
[]
[]
[]
[]
[]
[]
[]
[]
[]
[]
[]
[]
[]
[]
[]
[]
[]
[]
[]
[]
[]
[]
[]
[]
[]
[]
[]
[]
[]
[]
[]
[]
[]
[]
[]
[]
[]
[]
[]
[]
[]
[]
[]
[]
[]
[]
[]
[]
[]
[]
[]
[]
[]
[]
[]
[]
[]
[]
[]
[]
[]
[]
[]
[]
[]
[]
[]
[]
[]
[]
[]
[]
[]
[]
[]
[]
[]
[]
[]
[]
[]
[]
[]
[]
[]
[]
[]
[]
[]
[]
[]
[]
[]
[]
[]
[]
[]
[]
[]
[]
[]
[]
[]
[]
[]
[]
[]
[]
[]
[]
[]
[]
[]
[]
[]
[]
[]
[]
[]
[]
[]
[]
[]
[]
[]
[]
[]
[]
[]
[]
[]
[]
[]
[]
[]
[]
[]
[]
[]
[]
[]
[]
[]
[]
[]
[]
[]
[]
[]
[]
[]
[]
[]
[]
[]
[]
[]
[]
[]
[]
[]
[]
[]
[]
[]
[]
[]
[]
[]
[]
[]
[]
[]
[]
[]
[]
[]
[]
[]
[]
[]
[]
[]
[]
[]
[]
[]
[]
[]
[]
[]
[]
[]
[]
[]
[]
[]
[]
[]
[]
[]
[]
[]
[]
[]
[]
[]
[]
[]
[]
[]
[]
[]
[]
[]
[]
[]
[]
[]
[]
[]
[]
[]
[]
[]
[]
[]
[]
[]
[]
[]
[]
[]
[]
[]
[]
[]
[]
[]
[]
[]
[]
[]
[]
[]
[]
[]
[]
[]
[]
[]
[]
[]
[]
[]
[]
[]
[]
[]
[]
[]
[]
[]
[]
[]
[]
[]
[]
[]
[]
[]
[]
[]
[]
[]
[]
[]
[]
[]
[]
[]
[]
[]
[]
[]
[]
[]
[]
[]
[]
[]
[]
[]
[]
[]
[]
[]
[]
[]
[]
[]
[]
[]
[]
[null,null,null,null,null,null,null,null,null,{"$f":"IFERROR(IF(H2653<>\"\",7.05,\"\"),\"\")","v":""},{"$f":"IF(OR(I2653=\"\",J2653=\"\"),\"\",PRODUCT(I2653,J2653))","v":""}]
[null,null,null,null,null,null,null,null,null,"",""]
[null,null,null,null,null,null,null,null,null,"",""]
[null,null,null,null,null,null,null,null,null,"",""]
[null,null,null,null,null,null,null,null,null,"",""]
[null,null,null,null,null,null,null,null,null,"",""]
[null,null,null,null,null,null,null,null,null,"",""]
[null,null,null,null,null,null,null,null,null,"",""]
[null,null,null,null,null,null,null,null,null,"",""]
[null,null,null,null,null,null,null,null,null,"",""]
[null,null,null,null,null,null,null,null,null,"",""]
[null,null,null,null,null,null,null,null,null,"",""]
[null,null,null,null,null,null,null,null,null,"",""]
[null,null,null,null,null,null,null,null,null,"",""]
[null,null,null,null,null,null,null,null,null,"",""]
[null,null,null,null,null,null,null,null,null,"",""]
[null,null,null,null,null,null,null,null,null,"",""]
[null,null,null,null,null,null,null,null,null,"",""]
[null,null,null,null,null,null,null,null,null,"",""]
[null,null,null,null,null,null,null,null,null,"",""]
[null,null,null,null,null,null,null,null,null,"",""]
[null,null,null,null,null,null,null,null,null,"",""]
[null,null,null,null,null,null,null,null,null,"",""]
[null,null,null,null,null,null,null,null,null,"",""]
[null,null,null,null,null,null,null,null,null,"",""]
[null,null,null,null,null,null,null,null,null,"",""]
[null,null,null,null,null,null,null,null,null,"",""]
[null,null,null,null,null,null,null,null,null,"",""]
[null,null,null,null,null,null,null,null,null,"",""]
[null,null,null,null,null,null,null,null,null,"",""]
[null,null,null,null,null,null,null,null,null,"",""]
[null,null,null,null,null,null,null,null,null,"",""]
[null,null,null,null,null,null,null,null,null,"",""]
[null,null,null,null,null,null,null,null,null,"",""]
[null,null,null,null,null,null,null,null,null,"",""]
[null,null,null,null,null,null,null,null,null,"",""]
[null,null,null,null,null,null,null,null,null,"",""]
[null,null,null,null,null,null,null,null,null,"",""]
[null,null,null,null,null,null,null,null,null,"",""]
[null,null,null,null,null,null,null,null,null,"",""]
[null,null,null,null,null,null,null,null,null,"",""]
[null,null,null,null,null,null,null,null,null,"",""]
[null,null,null,null,null,null,null,null,null,"",""]
[null,null,null,null,null,null,null,null,null,"",{"$f":"IF(OR(I2696=\"\",J2696=\"\"),\"\",PRODUCT(I2696,J2696))","v":""}]
[null,null,null,null,null,null,null,null,null,"",""]
[null,null,null,null,null,null,null,null,null,"",""]
[null,null,null,null,null,null,null,null,null,"",""]
[null,null,null,null,null,null,null,null,null,"",""]
[null,null,null,null,null,null,null,null,null,"",""]
[null,null,null,null,null,null,null,null,null,"",""]
[null,null,null,null,null,null,null,null,null,"",""]
[null,null,null,null,null,null,null,null,null,"",""]
[null,null,null,null,null,null,null,null,null,"",""]
[null,null,null,null,null,null,null,null,null,"",""]
[null,null,null,null,null,null,null,null,null,"",""]
[null,null,null,null,null,null,null,null,null,"",""]
[null,null,null,null,null,null,null,null,null,"",""]
[null,null,null,null,null,null,null,null,null,"",""]
[null,null,null,null,null,null,null,null,null,"",""]
[null,null,null,null,null,null,null,null,null,"",""]
[null,null,null,null,null,null,null,null,null,"",""]
[null,null,null,null,null,null,null,null,null,"",""]
[null,null,null,null,null,null,null,null,null,"",""]
[null,null,null,null,null,null,null,null,null,"",""]
[null,null,null,null,null,null,null,null,null,{"$f":"IFERROR(IF(H2717<>\"\",7.05,\"\"),\"\")","v":""},""]
[null,null,null,null,null,null,null,null,null,"",""]
[null,null,null,null,null,null,null,null,null,"",""]
[null,null,null,null,null,null,null,null,null,"",""]
[null,null,null,null,null,null,null,null,null,"",""]
[null,null,null,null,null,null,null,null,null,"",""]
[null,null,null,null,null,null,null,null,null,"",""]
[null,null,null,null,null,null,null,null,null,"",""]
[null,null,null,null,null,null,null,null,null,"",""]
[null,null,null,null,null,null,null,null,null,"",""]
[null,null,null,null,null,null,null,null,null,"",""]
[null,null,null,null,null,null,null,null,null,"",""]
[null,null,null,null,null,null,null,null,null,"",""]
[null,null,null,null,null,null,null,null,null,"",""]
[null,null,null,null,null,null,null,null,null,"",""]
[null,null,null,null,null,null,null,null,null,"",""]
[null,null,null,null,null,null,null,null,null,"",""]
[null,null,null,null,null,null,null,null,null,"",""]
[null,null,null,null,null,null,null,null,null,"",""]
[null,null,null,null,null,null,null,null,null,"",""]
[null,null,null,null,null,null,null,null,null,"",""]
[null,null,null,null,null,null,null,null,null,"",""]
[null,null,null,null,null,null,null,null,null,"",""]
[null,null,null,null,null,null,null,null,null,"",""]
[null,null,null,null,null,null,null,null,null,"",""]
[null,null,null,null,null,null,null,null,null,"",""]
[null,null,null,null,null,null,null,null,null,"",""]
[null,null,null,null,null,null,null,null,null,"",""]
[null,null,null,null,null,null,null,null,null,"",""]
[null,null,null,null,null,null,null,null,null,"",""]
[null,null,null,null,null,null,null,null,null,"",""]
[null,null,null,null,null,null,null,null,null,"",""]
[null,null,null,null,null,null,null,null,null,"",""]
[null,null,null,null,null,null,null,null,null,"",""]
[null,null,null,null,null,null,null,null,null,"",""]
[null,null,null,null,null,null,null,null,null,"",""]
[null,null,null,null,null,null,null,null,null,"",""]
[null,null,null,null,null,null,null,null,null,"",""]
[null,null,null,null,null,null,null,null,null,"",""]
[null,null,null,null,null,null,null,null,null,"",""]
[null,null,null,null,null,null,null,null,null,"",""]
[null,null,null,null,null,null,null,null,null,"",""]
[null,null,null,null,null,null,null,null,null,"",""]
[null,null,null,null,null,null,null,null,null,"",{"$f":"IF(OR(I2760=\"\",J2760=\"\"),\"\",PRODUCT(I2760,J2760))","v":""}]
[null,null,null,null,null,null,null,null,null,"",""]
[null,null,null,null,null,null,null,null,null,"",""]
[null,null,null,null,null,null,null,null,null,"",""]
[null,null,null,null,null,null,null,null,null,"",""]
[null,null,null,null,null,null,null,null,null,"",""]
[null,null,null,null,null,null,null,null,null,"",""]
[null,null,null,null,null,null,null,null,null,"",""]
[null,null,null,null,null,null,null,null,null,"",""]
[null,null,null,null,null,null,null,null,null,"",""]
[null,null,null,null,null,null,null,null,null,"",""]
[null,null,null,null,null,null,null,null,null,"",""]
[null,null,null,null,null,null,null,null,null,"",""]
[null,null,null,null,null,null,null,null,null,"",""]
[null,null,null,null,null,null,null,null,null,"",""]
[null,null,null,null,null,null,null,null,null,"",""]
[null,null,null,null,null,null,null,null,null,"",""]
[null,null,null,null,null,null,null,null,null,"",""]
[null,null,null,null,null,null,null,null,null,"",""]
[null,null,null,null,null,null,null,null,null,"",""]
[null,null,null,null,null,null,null,null,null,"",""]
[null,null,null,null,null,null,null,null,null,{"$f":"IFERROR(IF(H2781<>\"\",7.05,\"\"),\"\")","v":""},""]
[null,null,null,null,null,null,null,null,null,"",""]
[null,null,null,null,null,null,null,null,null,"",""]
[null,null,null,null,null,null,null,null,null,"",""]
[null,null,null,null,null,null,null,null,null,"",""]
[null,null,null,null,null,null,null,null,null,"",""]
[null,null,null,null,null,null,null,null,null,"",""]
[null,null,null,null,null,null,null,null,null,"",""]
[null,null,null,null,null,null,null,null,null,"",""]
[null,null,null,null,null,null,null,null,null,"",""]
[null,null,null,null,null,null,null,null,null,"",""]
[null,null,null,null,null,null,null,null,null,"",""]
[null,null,null,null,null,null,null,null,null,"",""]
[null,null,null,null,null,null,null,null,null,"",""]
[null,null,null,null,null,null,null,null,null,"",""]
[null,null,null,null,null,null,null,null,null,"",""]
[null,null,null,null,null,null,null,null,null,"",""]
[null,null,null,null,null,null,null,null,null,"",""]
[null,null,null,null,null,null,null,null,null,"",""]
[null,null,null,null,null,null,null,null,null,"",""]
[null,null,null,null,null,null,null,null,null,"",""]
[null,null,null,null,null,null,null,null,null,"",""]
[null,null,null,null,null,null,null,null,null,"",""]
[null,null,null,null,null,null,null,null,null,"",""]
[null,null,null,null,null,null,null,null,null,"",""]
[null,null,null,null,null,null,null,null,null,"",""]
[null,null,null,null,null,null,null,null,null,"",""]
[null,null,null,null,null,null,null,null,null,"",""]
[null,null,null,null,null,null,null,null,null,"",""]
[null,null,null,null,null,null,null,null,null,"",""]
[null,null,null,null,null,null,null,null,null,"",""]
[null,null,null,null,null,null,null,null,null,"",""]
[null,null,null,null,null,null,null,null,null,"",""]
[null,null,null,null,null,null,null,null,null,"",""]
[null,null,null,null,null,null,null,null,null,"",""]
[null,null,null,null,null,null,null,null,null,"",""]
[null,null,null,null,null,null,null,null,null,"",""]
[null,null,null,null,null,null,null,null,null,"",""]
[null,null,null,null,null,null,null,null,null,"",""]
[null,null,null,null,null,null,null,null,null,"",""]
[null,null,null,null,null,null,null,null,null,"",""]
[null,null,null,null,null,null,null,null,null,"",""]
[null,null,null,null,null,null,null,null,null,"",""]
[null,null,null,null,null,null,null,null,null,"",{"$f":"IF(OR(I2824=\"\",J2824=\"\"),\"\",PRODUCT(I2824,J2824))","v":""}]
[null,null,null,null,null,null,null,null,null,"",""]
[null,null,null,null,null,null,null,null,null,"",""]
[null,null,null,null,null,null,null,null,null,"",""]
[null,null,null,null,null,null,null,null,null,"",""]
[null,null,null,null,null,null,null,null,null,"",""]
[null,null,null,null,null,null,null,null,null,"",""]
[null,null,null,null,null,null,null,null,null,"",""]
[null,null,null,null,null,null,null,null,null,"",""]
[null,null,null,null,null,null,null,null,null,"",""]
[null,null,null,null,null,null,null,null,null,"",""]
[null,null,null,null,null,null,null,null,null,"",""]
[null,null,null,null,null,null,null,null,null,"",""]
[null,null,null,null,null,null,null,null,null,"",""]
[null,null,null,null,null,null,null,null,null,"",""]
[null,null,null,null,null,null,null,null,null,"",""]
[null,null,null,null,null,null,null,null,null,"",""]
[null,null,null,null,null,null,null,null,null,"",""]
[null,null,null,null,null,null,null,null,null,"",""]
[null,null,null,null,null,null,null,null,null,"",""]
[null,null,null,null,null,null,null,null,null,"",""]
[null,null,null,null,null,null,null,null,null,{"$f":"IFERROR(IF(H2845<>\"\",7.05,\"\"),\"\")","v":""},""]
[null,null,null,null,null,null,null,null,null,"",""]
[null,null,null,null,null,null,null,null,null,"",""]
[null,null,null,null,null,null,null,null,null,"",""]
[null,null,null,null,null,null,null,null,null,"",""]
[null,null,null,null,null,null,null,null,null,"",""]
[null,null,null,null,null,null,null,null,null,"",""]
[null,null,null,null,null,null,null,null,null,"",""]
[null,null,null,null,null,null,null,null,null,"",""]
[null,null,null,null,null,null,null,null,null,"",""]
[null,null,null,null,null,null,null,null,null,"",""]
[null,null,null,null,null,null,null,null,null,"",""]
[null,null,null,null,null,null,null,null,null,"",""]
[null,null,null,null,null,null,null,null,null,"",""]
[null,null,null,null,null,null,null,null,null,"",""]
[null,null,null,null,null,null,null,null,null,"",""]
[null,null,null,null,null,null,null,null,null,"",""]
[null,null,null,null,null,null,null,null,null,"",""]
[null,null,null,null,null,null,null,null,null,"",""]
[null,null,null,null,null,null,null,null,null,"",""]
[null,null,null,null,null,null,null,null,null,"",""]
[null,null,null,null,null,null,null,null,null,"",""]
[null,null,null,null,null,null,null,null,null,"",""]
[null,null,null,null,null,null,null,null,null,"",""]
[null,null,null,null,null,null,null,null,null,"",""]
[null,null,null,null,null,null,null,null,null,"",""]
[null,null,null,null,null,null,null,null,null,"",""]
[null,null,null,null,null,null,null,null,null,"",""]
[null,null,null,null,null,null,null,null,null,"",""]
[null,null,null,null,null,null,null,null,null,"",""]
[null,null,null,null,null,null,null,null,null,"",""]
[null,null,null,null,null,null,null,null,null,"",""]
[null,null,null,null,null,null,null,null,null,"",""]
[null,null,null,null,null,null,null,null,null,"",""]
[null,null,null,null,null,null,null,null,null,"",""]
[null,null,null,null,null,null,null,null,null,"",""]
[null,null,null,null,null,null,null,null,null,"",""]
[null,null,null,null,null,null,null,null,null,"",""]
[null,null,null,null,null,null,null,null,null,"",""]
[null,null,null,null,null,null,null,null,null,"",""]
[null,null,null,null,null,null,null,null,null,"",""]
[null,null,null,null,null,null,null,null,null,"",""]
[null,null,null,null,null,null,null,null,null,"",""]
[null,null,null,null,null,null,null,null,null,"",{"$f":"IF(OR(I2888=\"\",J2888=\"\"),\"\",PRODUCT(I2888,J2888))","v":""}]
[null,null,null,null,null,null,null,null,null,"",""]
[null,null,null,null,null,null,null,null,null,"",""]
[null,null,null,null,null,null,null,null,null,"",""]
[null,null,null,null,null,null,null,null,null,"",""]
[null,null,null,null,null,null,null,null,null,"",""]
[null,null,null,null,null,null,null,null,null,"",""]
[null,null,null,null,null,null,null,null,null,"",""]
[null,null,null,null,null,null,null,null,null,"",""]
[null,null,null,null,null,null,null,null,null,"",""]
[null,null,null,null,null,null,null,null,null,"",""]
[null,null,null,null,null,null,null,null,null,"",""]
[null,null,null,null,null,null,null,null,null,"",""]
[null,null,null,null,null,null,null,null,null,"",""]
[null,null,null,null,null,null,null,null,null,"",""]
[null,null,null,null,null,null,null,null,null,"",""]
[null,null,null,null,null,null,null,null,null,"",""]
[null,null,null,null,null,null,null,null,null,"",""]
[null,null,null,null,null,null,null,null,null,"",""]
[null,null,null,null,null,null,null,null,null,"",""]
[null,null,null,null,null,null,null,null,null,"",""]
[null,null,null,null,null,null,null,null,null,{"$f":"IFERROR(IF(H2909<>\"\",7.05,\"\"),\"\")","v":""},""]
[null,null,null,null,null,null,null,null,null,"",""]
[null,null,null,null,null,null,null,null,null,"",""]
[null,null,null,null,null,null,null,null,null,"",""]
[null,null,null,null,null,null,null,null,null,"",""]
[null,null,null,null,null,null,null,null,null,"",""]
[null,null,null,null,null,null,null,null,null,"",""]
[null,null,null,null,null,null,null,null,null,"",""]
[null,null,null,null,null,null,null,null,null,"",""]
[null,null,null,null,null,null,null,null,null,"",""]
[null,null,null,null,null,null,null,null,null,"",""]
[null,null,null,null,null,null,null,null,null,"",""]
[null,null,null,null,null,null,null,null,null,"",""]
[null,null,null,null,null,null,null,null,null,"",""]
[null,null,null,null,null,null,null,null,null,"",""]
[null,null,null,null,null,null,null,null,null,"",""]
[null,null,null,null,null,null,null,null,null,"",""]
[null,null,null,null,null,null,null,null,null,"",""]
[null,null,null,null,null,null,null,null,null,"",""]
[null,null,null,null,null,null,null,null,null,"",""]
[null,null,null,null,null,null,null,null,null,"",""]
[null,null,null,null,null,null,null,null,null,"",""]
[null,null,null,null,null,null,null,null,null,"",""]
[null,null,null,null,null,null,null,null,null,"",""]
[null,null,null,null,null,null,null,null,null,"",""]
[null,null,null,null,null,null,null,null,null,"",""]
[null,null,null,null,null,null,null,null,null,"",""]
[null,null,null,null,null,null,null,null,null,"",""]
[null,null,null,null,null,null,null,null,null,"",""]
[null,null,null,null,null,null,null,null,null,"",""]
[null,null,null,null,null,null,null,null,null,"",""]
[null,null,null,null,null,null,null,null,null,"",""]
[null,null,null,null,null,null,null,null,null,"",""]
[null,null,null,null,null,null,null,null,null,"",""]
[null,null,null,null,null,null,null,null,null,"",""]
[null,null,null,null,null,null,null,null,null,"",""]
[null,null,null,null,null,null,null,null,null,"",""]
[null,null,null,null,null,null,null,null,null,"",""]
[null,null,null,null,null,null,null,null,null,"",""]
[null,null,null,null,null,null,null,null,null,"",""]
[null,null,null,null,null,null,null,null,null,"",""]
[null,null,null,null,null,null,null,null,null,"",""]
[null,null,null,null,null,null,null,null,null,"",""]
[null,null,null,null,null,null,null,null,null,"",{"$f":"IF(OR(I2952=\"\",J2952=\"\"),\"\",PRODUCT(I2952,J2952))","v":""}]
[null,null,null,null,null,null,null,null,null,"",""]
[null,null,null,null,null,null,null,null,null,"",""]
[null,null,null,null,null,null,null,null,null,"",""]
[null,null,null,null,null,null,null,null,null,"",""]
[null,null,null,null,null,null,null,null,null,"",""]
[null,null,null,null,null,null,null,null,null,"",""]
[null,null,null,null,null,null,null,null,null,"",""]
[null,null,null,null,null,null,null,null,null,"",""]
[null,null,null,null,null,null,null,null,null,"",""]
[null,null,null,null,null,null,null,null,null,"",""]
[null,null,null,null,null,null,null,null,null,"",""]
[null,null,null,null,null,null,null,null,null,"",""]
[null,null,null,null,null,null,null,null,null,"",""]
[null,null,null,null,null,null,null,null,null,"",""]
[null,null,null,null,null,null,null,null,null,"",""]
[null,null,null,null,null,null,null,null,null,"",""]
[null,null,null,null,null,null,null,null,null,"",""]
[null,null,null,null,null,null,null,null,null,"",""]
[null,null,null,null,null,null,null,null,null,"",""]
[null,null,null,null,null,null,null,null,null,"",""]
[null,null,null,null,null,null,null,null,null,{"$f":"IFERROR(IF(H2973<>\"\",7.05,\"\"),\"\")","v":""},""]
[null,null,null,null,null,null,null,null,null,"",""]
[null,null,null,null,null,null,null,null,null,"",""]
[null,null,null,null,null,null,null,null,null,"",""]
[null,null,null,null,null,null,null,null,null,"",""]
[null,null,null,null,null,null,null,null,null,"",""]
[null,null,null,null,null,null,null,null,null,"",""]
[null,null,null,null,null,null,null,null,null,"",""]
[null,null,null,null,null,null,null,null,null,"",""]
[null,null,null,null,null,null,null,null,null,"",""]
[null,null,null,null,null,null,null,null,null,"",""]
[null,null,null,null,null,null,null,null,null,"",""]
[null,null,null,null,null,null,null,null,null,"",""]
[null,null,null,null,null,null,null,null,null,"",""]
[null,null,null,null,null,null,null,null,null,"",""]
[null,null,null,null,null,null,null,null,null,"",""]
[null,null,null,null,null,null,null,null,null,"",""]
[null,null,null,null,null,null,null,null,null,"",""]
[null,null,null,null,null,null,null,null,null,"",""]
[null,null,null,null,null,null,null,null,null,"",""]
[null,null,null,null,null,null,null,null,null,"",""]
[null,null,null,null,null,null,null,null,null,"",""]
[null,null,null,null,null,null,null,null,null,"",""]
[null,null,null,null,null,null,null,null,null,"",""]
[null,null,null,null,null,null,null,null,null,"",""]
[null,null,null,null,null,null,null,null,null,"",""]
[null,null,null,null,null,null,null,null,null,"",""]
[null,null,null,null,null,null,null,null,null,"",""]
[null,null,null,null,null,null,null,null,null,"",""]
[null,null,null,null,null,null,null,null,null,"",""]
[null,null,null,null,null,null,null,null,null,"",""]
[null,null,null,null,null,null,null,null,null,"",""]
[null,null,null,null,null,null,null,null,null,"",""]
[null,null,null,null,null,null,null,null,null,"",""]
[null,null,null,null,null,null,null,null,null,"",""]
[null,null,null,null,null,null,null,null,null,"",""]
[null,null,null,null,null,null,null,null,null,"",""]
[null,null,null,null,null,null,null,null,null,"",""]
[null,null,null,null,null,null,null,null,null,"",""]
[null,null,null,null,null,null,null,null,null,"",""]
[null,null,null,null,null,null,null,null,null,"",""]
[null,null,null,null,null,null,null,null,null,"",""]
[null,null,null,null,null,null,null,null,null,"",""]
[null,null,null,null,null,null,null,null,null,"",{"$f":"IF(OR(I3016=\"\",J3016=\"\"),\"\",PRODUCT(I3016,J3016))","v":""}]
[null,null,null,null,null,null,null,null,null,"",""]
[null,null,null,null,null,null,null,null,null,"",""]
[null,null,null,null,null,null,null,null,null,"",""]
[null,null,null,null,null,null,null,null,null,"",""]
[null,null,null,null,null,null,null,null,null,"",""]
[null,null,null,null,null,null,null,null,null,"",""]
[null,null,null,null,null,null,null,null,null,"",""]
[null,null,null,null,null,null,null,null,null,"",""]
[null,null,null,null,null,null,null,null,null,"",""]
[null,null,null,null,null,null,null,null,null,"",""]
[null,null,null,null,null,null,null,null,null,"",""]
[null,null,null,null,null,null,null,null,null,"",""]
[null,null,null,null,null,null,null,null,null,"",""]
[null,null,null,null,null,null,null,null,null,"",""]
[null,null,null,null,null,null,null,null,null,"",""]
[null,null,null,null,null,null,null,null,null,"",""]
[null,null,null,null,null,null,null,null,null,"",""]
[null,null,null,null,null,null,null,null,null,"",""]
[null,null,null,null,null,null,null,null,null,"",""]
[null,null,null,null,null,null,null,null,null,"",""]
[null,null,null,null,null,null,null,null,null,{"$f":"IFERROR(IF(H3037<>\"\",7.05,\"\"),\"\")","v":""},""]
[null,null,null,null,null,null,null,null,null,"",""]
[null,null,null,null,null,null,null,null,null,"",""]
[null,null,null,null,null,null,null,null,null,"",""]
[null,null,null,null,null,null,null,null,null,"",""]
[null,null,null,null,null,null,null,null,null,"",""]
[null,null,null,null,null,null,null,null,null,"",""]
[null,null,null,null,null,null,null,null,null,"",""]
[null,null,null,null,null,null,null,null,null,"",""]
[null,null,null,null,null,null,null,null,null,"",""]
[null,null,null,null,null,null,null,null,null,"",""]
[null,null,null,null,null,null,null,null,null,"",""]
[null,null,null,null,null,null,null,null,null,"",""]
[null,null,null,null,null,null,null,null,null,"",""]
[null,null,null,null,null,null,null,null,null,"",""]
[null,null,null,null,null,null,null,null,null,"",""]
[null,null,null,null,null,null,null,null,null,"",""]
[null,null,null,null,null,null,null,null,null,"",""]
[null,null,null,null,null,null,null,null,null,"",""]
[null,null,null,null,null,null,null,null,null,"",""]
[null,null,null,null,null,null,null,null,null,"",""]
[null,null,null,null,null,null,null,null,null,"",""]
[null,null,null,null,null,null,null,null,null,"",""]
[null,null,null,null,null,null,null,null,null,"",""]
[null,null,null,null,null,null,null,null,null,"",""]
[null,null,null,null,null,null,null,null,null,"",""]
[null,null,null,null,null,null,null,null,null,"",""]
[null,null,null,null,null,null,null,null,null,"",""]
[null,null,null,null,null,null,null,null,null,"",""]
[null,null,null,null,null,null,null,null,null,"",""]
[null,null,null,null,null,null,null,null,null,"",""]
[null,null,null,null,null,null,null,null,null,"",""]
[null,null,null,null,null,null,null,null,null,"",""]
[null,null,null,null,null,null,null,null,null,"",""]
[null,null,null,null,null,null,null,null,null,"",""]
[null,null,null,null,null,null,null,null,null,"",""]
[null,null,null,null,null,null,null,null,null,"",""]
[null,null,null,null,null,null,null,null,null,"",""]
[null,null,null,null,null,null,null,null,null,"",""]
[null,null,null,null,null,null,null,null,null,"",""]
[null,null,null,null,null,null,null,null,null,"",""]
[null,null,null,null,null,null,null,null,null,"",""]
[null,null,null,null,null,null,null,null,null,"",""]
[null,null,null,null,null,null,null,null,null,"",{"$f":"IF(OR(I3080=\"\",J3080=\"\"),\"\",PRODUCT(I3080,J3080))","v":""}]
[null,null,null,null,null,null,null,null,null,"",""]
[null,null,null,null,null,null,null,null,null,"",""]
[null,null,null,null,null,null,null,null,null,"",""]
[null,null,null,null,null,null,null,null,null,"",""]
[null,null,null,null,null,null,null,null,null,"",""]
[null,null,null,null,null,null,null,null,null,"",""]
[null,null,null,null,null,null,null,null,null,"",""]
[null,null,null,null,null,null,null,null,null,"",""]
[null,null,null,null,null,null,null,null,null,"",""]
[null,null,null,null,null,null,null,null,null,"",""]
[null,null,null,null,null,null,null,null,null,"",""]
[null,null,null,null,null,null,null,null,null,"",""]
[null,null,null,null,null,null,null,null,null,"",""]
[null,null,null,null,null,null,null,null,null,"",""]
[null,null,null,null,null,null,null,null,null,"",""]
[null,null,null,null,null,null,null,null,null,"",""]
[null,null,null,null,null,null,null,null,null,"",""]
[null,null,null,null,null,null,null,null,null,"",""]
[null,null,null,null,null,null,null,null,null,"",""]
[null,null,null,null,null,null,null,null,null,"",""]
[null,null,null,null,null,null,null,null,null,{"$f":"IFERROR(IF(H3101<>\"\",7.05,\"\"),\"\")","v":""},""]
[null,null,null,null,null,null,null,null,null,"",""]
[null,null,null,null,null,null,null,null,null,"",""]
[null,null,null,null,null,null,null,null,null,"",""]
[null,null,null,null,null,null,null,null,null,"",""]
[null,null,null,null,null,null,null,null,null,"",""]
[null,null,null,null,null,null,null,null,null,"",""]
[null,null,null,null,null,null,null,null,null,"",""]
[null,null,null,null,null,null,null,null,null,"",""]
[null,null,null,null,null,null,null,null,null,"",""]
[null,null,null,null,null,null,null,null,null,"",""]
[null,null,null,null,null,null,null,null,null,"",""]
[null,null,null,null,null,null,null,null,null,"",""]
[null,null,null,null,null,null,null,null,null,"",""]
[null,null,null,null,null,null,null,null,null,"",""]
[null,null,null,null,null,null,null,null,null,"",""]
[null,null,null,null,null,null,null,null,null,"",""]
[null,null,null,null,null,null,null,null,null,"",""]
[null,null,null,null,null,null,null,null,null,"",""]
[null,null,null,null,null,null,null,null,null,"",""]
[null,null,null,null,null,null,null,null,null,"",""]
[null,null,null,null,null,null,null,null,null,"",""]
[null,null,null,null,null,null,null,null,null,"",""]
[null,null,null,null,null,null,null,null,null,"",""]
[null,null,null,null,null,null,null,null,null,"",""]
[null,null,null,null,null,null,null,null,null,"",""]
[null,null,null,null,null,null,null,null,null,"",""]
[null,null,null,null,null,null,null,null,null,"",""]
[null,null,null,null,null,null,null,null,null,"",""]
[null,null,null,null,null,null,null,null,null,"",""]
[null,null,null,null,null,null,null,null,null,"",""]
[null,null,null,null,null,null,null,null,null,"",""]
[null,null,null,null,null,null,null,null,null,"",""]
[null,null,null,null,null,null,null,null,null,"",""]
[null,null,null,null,null,null,null,null,null,"",""]
[null,null,null,null,null,null,null,null,null,"",""]
[null,null,null,null,null,null,null,null,null,"",""]
[null,null,null,null,null,null,null,null,null,"",""]
[null,null,null,null,null,null,null,null,null,"",""]
[null,null,null,null,null,null,null,null,null,"",""]
[null,null,null,null,null,null,null,null,null,"",""]
[null,null,null,null,null,null,null,null,null,"",""]
[null,null,null,null,null,null,null,null,null,"",""]
[null,null,null,null,null,null,null,null,null,"",{"$f":"IF(OR(I3144=\"\",J3144=\"\"),\"\",PRODUCT(I3144,J3144))","v":""}]
[null,null,null,null,null,null,null,null,null,"",""]
[null,null,null,null,null,null,null,null,null,"",""]
[null,null,null,null,null,null,null,null,null,"",""]
[null,null,null,null,null,null,null,null,null,"",""]
[null,null,null,null,null,null,null,null,null,"",""]
[null,null,null,null,null,null,null,null,null,"",""]
[null,null,null,null,null,null,null,null,null,"",""]
[null,null,null,null,null,null,null,null,null,"",""]
[null,null,null,null,null,null,null,null,null,"",""]
[null,null,null,null,null,null,null,null,null,"",""]
[null,null,null,null,null,null,null,null,null,"",""]
[null,null,null,null,null,null,null,null,null,"",""]
[null,null,null,null,null,null,null,null,null,"",""]
[null,null,null,null,null,null,null,null,null,"",""]
[null,null,null,null,null,null,null,null,null,"",""]
[null,null,null,null,null,null,null,null,null,"",""]
[null,null,null,null,null,null,null,null,null,"",""]
[null,null,null,null,null,null,null,null,null,"",""]
[null,null,null,null,null,null,null,null,null,"",""]
[null,null,null,null,null,null,null,null,null,"",""]
[null,null,null,null,null,null,null,null,null,{"$f":"IFERROR(IF(H3165<>\"\",7.05,\"\"),\"\")","v":""},""]
[null,null,null,null,null,null,null,null,null,"",""]
[null,null,null,null,null,null,null,null,null,"",""]
[null,null,null,null,null,null,null,null,null,"",""]
[null,null,null,null,null,null,null,null,null,"",""]
[null,null,null,null,null,null,null,null,null,"",""]
[null,null,null,null,null,null,null,null,null,"",""]
[null,null,null,null,null,null,null,null,null,"",""]
[null,null,null,null,null,null,null,null,null,"",""]
[null,null,null,null,null,null,null,null,null,"",""]
[null,null,null,null,null,null,null,null,null,"",""]
[null,null,null,null,null,null,null,null,null,"",""]
[null,null,null,null,null,null,null,null,null,"",""]
[null,null,null,null,null,null,null,null,null,"",""]
[null,null,null,null,null,null,null,null,null,"",""]
[null,null,null,null,null,null,null,null,null,"",""]
[null,null,null,null,null,null,null,null,null,"",""]
[null,null,null,null,null,null,null,null,null,"",""]
[null,null,null,null,null,null,null,null,null,"",""]
[null,null,null,null,null,null,null,null,null,"",""]
[null,null,null,null,null,null,null,null,null,"",""]
[null,null,null,null,null,null,null,null,null,"",""]
[null,null,null,null,null,null,null,null,null,"",""]
[null,null,null,null,null,null,null,null,null,"",""]
[null,null,null,null,null,null,null,null,null,"",""]
[null,null,null,null,null,null,null,null,null,"",""]
[null,null,null,null,null,null,null,null,null,"",""]
[null,null,null,null,null,null,null,null,null,"",""]
[null,null,null,null,null,null,null,null,null,"",""]
[null,null,null,null,null,null,null,null,null,"",""]
[null,null,null,null,null,null,null,null,null,"",""]
[null,null,null,null,null,null,null,null,null,"",""]
[null,null,null,null,null,null,null,null,null,"",""]
[null,null,null,null,null,null,null,null,null,"",""]
[null,null,null,null,null,null,null,null,null,"",""]
[null,null,null,null,null,null,null,null,null,"",""]
[null,null,null,null,null,null,null,null,null,"",""]
[null,null,null,null,null,null,null,null,null,"",""]
[null,null,null,null,null,null,null,null,null,"",""]
[null,null,null,null,null,null,null,null,null,"",""]
[null,null,null,null,null,null,null,null,null,"",""]
[null,null,null,null,null,null,null,null,null,"",""]
[null,null,null,null,null,null,null,null,null,"",""]
[null,null,null,null,null,null,null,null,null,"",{"$f":"IF(OR(I3208=\"\",J3208=\"\"),\"\",PRODUCT(I3208,J3208))","v":""}]
[null,null,null,null,null,null,null,null,null,"",""]
[null,null,null,null,null,null,null,null,null,"",""]
[null,null,null,null,null,null,null,null,null,"",""]
[null,null,null,null,null,null,null,null,null,"",""]
[null,null,null,null,null,null,null,null,null,"",""]
[null,null,null,null,null,null,null,null,null,"",""]
[null,null,null,null,null,null,null,null,null,"",""]
[null,null,null,null,null,null,null,null,null,"",""]
[null,null,null,null,null,null,null,null,null,"",""]
[null,null,null,null,null,null,null,null,null,"",""]
[null,null,null,null,null,null,null,null,null,"",""]
[null,null,null,null,null,null,null,null,null,"",""]
[null,null,null,null,null,null,null,null,null,"",""]
[null,null,null,null,null,null,null,null,null,"",""]
[null,null,null,null,null,null,null,null,null,"",""]
[null,null,null,null,null,null,null,null,null,"",""]
[null,null,null,null,null,null,null,null,null,"",""]
[null,null,null,null,null,null,null,null,null,"",""]
[null,null,null,null,null,null,null,null,null,"",""]
[null,null,null,null,null,null,null,null,null,"",""]
[null,null,null,null,null,null,null,null,null,{"$f":"IFERROR(IF(H3229<>\"\",7.05,\"\"),\"\")","v":""},""]
[null,null,null,null,null,null,null,null,null,"",""]
[null,null,null,null,null,null,null,null,null,"",""]
[null,null,null,null,null,null,null,null,null,"",""]
[null,null,null,null,null,null,null,null,null,"",""]
[null,null,null,null,null,null,null,null,null,"",""]
[null,null,null,null,null,null,null,null,null,"",""]
[null,null,null,null,null,null,null,null,null,"",""]
[null,null,null,null,null,null,null,null,null,"",""]
[null,null,null,null,null,null,null,null,null,"",""]
[null,null,null,null,null,null,null,null,null,"",""]
[null,null,null,null,null,null,null,null,null,"",""]
[null,null,null,null,null,null,null,null,null,"",""]
[null,null,null,null,null,null,null,null,null,"",""]
[null,null,null,null,null,null,null,null,null,"",""]
[null,null,null,null,null,null,null,null,null,"",""]
[null,null,null,null,null,null,null,null,null,"",""]
[null,null,null,null,null,null,null,null,null,"",""]
[null,null,null,null,null,null,null,null,null,"",""]
[null,null,null,null,null,null,null,null,null,"",""]
[null,null,null,null,null,null,null,null,null,"",""]
[null,null,null,null,null,null,null,null,null,"",""]
[null,null,null,null,null,null,null,null,null,"",""]
[null,null,null,null,null,null,null,null,null,"",""]
[null,null,null,null,null,null,null,null,null,"",""]
[null,null,null,null,null,null,null,null,null,"",""]
[null,null,null,null,null,null,null,null,null,"",""]
[null,null,null,null,null,null,null,null,null,"",""]
[null,null,null,null,null,null,null,null,null,"",""]
[null,null,null,null,null,null,null,null,null,"",""]
[null,null,null,null,null,null,null,null,null,"",""]
[null,null,null,null,null,null,null,null,null,"",""]
[null,null,null,null,null,null,null,null,null,"",""]
[null,null,null,null,null,null,null,null,null,"",""]
[null,null,null,null,null,null,null,null,null,"",""]
[null,null,null,null,null,null,null,null,null,"",""]
[null,null,null,null,null,null,null,null,null,"",""]
[null,null,null,null,null,null,null,null,null,"",""]
[null,null,null,null,null,null,null,null,null,"",""]
[null,null,null,null,null,null,null,null,null,"",""]
[null,null,null,null,null,null,null,null,null,"",""]
[null,null,null,null,null,null,null,null,null,"",""]
[null,null,null,null,null,null,null,null,null,"",""]
[null,null,null,null,null,null,null,null,null,"",{"$f":"IF(OR(I3272=\"\",J3272=\"\"),\"\",PRODUCT(I3272,J3272))","v":""}]
[null,null,null,null,null,null,null,null,null,"",""]
[null,null,null,null,null,null,null,null,null,"",""]
[null,null,null,null,null,null,null,null,null,"",""]
[null,null,null,null,null,null,null,null,null,"",""]
[null,null,null,null,null,null,null,null,null,"",""]
[null,null,null,null,null,null,null,null,null,"",""]
[null,null,null,null,null,null,null,null,null,"",""]
[null,null,null,null,null,null,null,null,null,"",""]
[null,null,null,null,null,null,null,null,null,"",""]
[null,null,null,null,null,null,null,null,null,"",""]
[null,null,null,null,null,null,null,null,null,"",""]
[null,null,null,null,null,null,null,null,null,"",""]
[null,null,null,null,null,null,null,null,null,"",""]
[null,null,null,null,null,null,null,null,null,"",""]
[null,null,null,null,null,null,null,null,null,"",""]
[null,null,null,null,null,null,null,null,null,"",""]
[null,null,null,null,null,null,null,null,null,"",""]
[null,null,null,null,null,null,null,null,null,"",""]
[null,null,null,null,null,null,null,null,null,"",""]
[null,null,null,null,null,null,null,null,null,"",""]
[null,null,null,null,null,null,null,null,null,{"$f":"IFERROR(IF(H3293<>\"\",7.05,\"\"),\"\")","v":""},""]
[null,null,null,null,null,null,null,null,null,"",""]
[null,null,null,null,null,null,null,null,null,"",""]
[null,null,null,null,null,null,null,null,null,"",""]
[null,null,null,null,null,null,null,null,null,"",""]
[null,null,null,null,null,null,null,null,null,"",""]
[null,null,null,null,null,null,null,null,null,"",""]
[null,null,null,null,null,null,null,null,null,"",""]
[null,null,null,null,null,null,null,null,null,"",""]
[null,null,null,null,null,null,null,null,null,"",""]
[null,null,null,null,null,null,null,null,null,"",""]
[null,null,null,null,null,null,null,null,null,"",""]
[null,null,null,null,null,null,null,null,null,"",""]
[null,null,null,null,null,null,null,null,null,"",""]
[null,null,null,null,null,null,null,null,null,"",""]
[null,null,null,null,null,null,null,null,null,"",""]
[null,null,null,null,null,null,null,null,null,"",""]
[null,null,null,null,null,null,null,null,null,"",""]
[null,null,null,null,null,null,null,null,null,"",""]
[null,null,null,null,null,null,null,null,null,"",""]
[null,null,null,null,null,null,null,null,null,"",""]
[null,null,null,null,null,null,null,null,null,"",""]
[null,null,null,null,null,null,null,null,null,"",""]
[null,null,null,null,null,null,null,null,null,"",""]
[null,null,null,null,null,null,null,null,null,"",""]
[null,null,null,null,null,null,null,null,null,"",""]
[null,null,null,null,null,null,null,null,null,"",""]
[null,null,null,null,null,null,null,null,null,"",""]
[null,null,null,null,null,null,null,null,null,"",""]
[null,null,null,null,null,null,null,null,null,"",""]
[null,null,null,null,null,null,null,null,null,"",""]
[null,null,null,null,null,null,null,null,null,"",""]
[null,null,null,null,null,null,null,null,null,"",""]
[null,null,null,null,null,null,null,null,null,"",""]
[null,null,null,null,null,null,null,null,null,"",""]
[null,null,null,null,null,null,null,null,null,"",""]
[null,null,null,null,null,null,null,null,null,"",""]
[null,null,null,null,null,null,null,null,null,"",""]
[null,null,null,null,null,null,null,null,null,"",""]
[null,null,null,null,null,null,null,null,null,"",""]
[null,null,null,null,null,null,null,null,null,"",""]
[null,null,null,null,null,null,null,null,null,"",""]
[null,null,null,null,null,null,null,null,null,"",""]
[null,null,null,null,null,null,null,null,null,"",{"$f":"IF(OR(I3336=\"\",J3336=\"\"),\"\",PRODUCT(I3336,J3336))","v":""}]
[null,null,null,null,null,null,null,null,null,"",""]
[null,null,null,null,null,null,null,null,null,"",""]
[null,null,null,null,null,null,null,null,null,"",""]
[null,null,null,null,null,null,null,null,null,"",""]
[null,null,null,null,null,null,null,null,null,"",""]
[null,null,null,null,null,null,null,null,null,"",""]
[null,null,null,null,null,null,null,null,null,"",""]
[null,null,null,null,null,null,null,null,null,"",""]
[null,null,null,null,null,null,null,null,null,"",""]
[null,null,null,null,null,null,null,null,null,"",""]
[null,null,null,null,null,null,null,null,null,"",""]
[null,null,null,null,null,null,null,null,null,"",""]
[null,null,null,null,null,null,null,null,null,"",""]
[null,null,null,null,null,null,null,null,null,"",""]
[null,null,null,null,null,null,null,null,null,"",""]
[null,null,null,null,null,null,null,null,null,"",""]
[null,null,null,null,null,null,null,null,null,"",""]
[null,null,null,null,null,null,null,null,null,"",""]
[null,null,null,null,null,null,null,null,null,"",""]
[null,null,null,null,null,null,null,null,null,"",""]
[null,null,null,null,null,null,null,null,null,{"$f":"IFERROR(IF(H3357<>\"\",7.05,\"\"),\"\")","v":""},""]
[null,null,null,null,null,null,null,null,null,"",""]
[null,null,null,null,null,null,null,null,null,"",""]
[null,null,null,null,null,null,null,null,null,"",""]
[null,null,null,null,null,null,null,null,null,"",""]
[null,null,null,null,null,null,null,null,null,"",""]
[null,null,null,null,null,null,null,null,null,"",""]
[null,null,null,null,null,null,null,null,null,"",""]
[null,null,null,null,null,null,null,null,null,"",""]
[null,null,null,null,null,null,null,null,null,"",""]
[null,null,null,null,null,null,null,null,null,"",""]
[null,null,null,null,null,null,null,null,null,"",""]
[null,null,null,null,null,null,null,null,null,"",""]
[null,null,null,null,null,null,null,null,null,"",""]
[null,null,null,null,null,null,null,null,null,"",""]
[null,null,null,null,null,null,null,null,null,"",""]
[null,null,null,null,null,null,null,null,null,"",""]
[null,null,null,null,null,null,null,null,null,"",""]
[null,null,null,null,null,null,null,null,null,"",""]
[null,null,null,null,null,null,null,null,null,"",""]
[null,null,null,null,null,null,null,null,null,"",""]
[null,null,null,null,null,null,null,null,null,"",""]
[null,null,null,null,null,null,null,null,null,"",""]
[null,null,null,null,null,null,null,null,null,"",""]
[null,null,null,null,null,null,null,null,null,"",""]
[null,null,null,null,null,null,null,null,null,"",""]
[null,null,null,null,null,null,null,null,null,"",""]
[null,null,null,null,null,null,null,null,null,"",""]
[null,null,null,null,null,null,null,null,null,"",""]
[null,null,null,null,null,null,null,null,null,"",""]
[null,null,null,null,null,null,null,null,null,"",""]
[null,null,null,null,null,null,null,null,null,"",""]
[null,null,null,null,null,null,null,null,null,"",""]
[null,null,null,null,null,null,null,null,null,"",""]
[null,null,null,null,null,null,null,null,null,"",""]
[null,null,null,null,null,null,null,null,null,"",""]
[null,null,null,null,null,null,null,null,null,"",""]
[null,null,null,null,null,null,null,null,null,"",""]
[null,null,null,null,null,null,null,null,null,"",""]
[null,null,null,null,null,null,null,null,null,"",""]
[null,null,null,null,null,null,null,null,null,"",""]
[null,null,null,null,null,null,null,null,null,"",""]
[null,null,null,null,null,null,null,null,null,"",""]
[null,null,null,null,null,null,null,null,null,"",{"$f":"IF(OR(I3400=\"\",J3400=\"\"),\"\",PRODUCT(I3400,J3400))","v":""}]
[null,null,null,null,null,null,null,null,null,"",""]
[null,null,null,null,null,null,null,null,null,"",""]
[null,null,null,null,null,null,null,null,null,"",""]
[null,null,null,null,null,null,null,null,null,"",""]
[null,null,null,null,null,null,null,null,null,"",""]
[null,null,null,null,null,null,null,null,null,"",""]
[null,null,null,null,null,null,null,null,null,"",""]
[null,null,null,null,null,null,null,null,null,"",""]
[null,null,null,null,null,null,null,null,null,"",""]
[null,null,null,null,null,null,null,null,null,"",""]
[null,null,null,null,null,null,null,null,null,"",""]
[null,null,null,null,null,null,null,null,null,"",""]
[null,null,null,null,null,null,null,null,null,"",""]
[null,null,null,null,null,null,null,null,null,"",""]
[null,null,null,null,null,null,null,null,null,"",""]
[null,null,null,null,null,null,null,null,null,"",""]
[null,null,null,null,null,null,null,null,null,"",""]
[null,null,null,null,null,null,null,null,null,"",""]
[null,null,null,null,null,null,null,null,null,"",""]
[null,null,null,null,null,null,null,null,null,"",""]
[null,null,null,null,null,null,null,null,null,{"$f":"IFERROR(IF(H3421<>\"\",7.05,\"\"),\"\")","v":""},""]
[null,null,null,null,null,null,null,null,null,"",""]
[null,null,null,null,null,null,null,null,null,"",""]
[null,null,null,null,null,null,null,null,null,"",""]
[null,null,null,null,null,null,null,null,null,"",""]
[null,null,null,null,null,null,null,null,null,"",""]
[null,null,null,null,null,null,null,null,null,"",""]
[null,null,null,null,null,null,null,null,null,"",""]
[null,null,null,null,null,null,null,null,null,"",""]
[null,null,null,null,null,null,null,null,null,"",""]
[null,null,null,null,null,null,null,null,null,"",""]
[null,null,null,null,null,null,null,null,null,"",""]
[null,null,null,null,null,null,null,null,null,"",""]
[null,null,null,null,null,null,null,null,null,"",""]
[null,null,null,null,null,null,null,null,null,"",""]
[null,null,null,null,null,null,null,null,null,"",""]
[null,null,null,null,null,null,null,null,null,"",""]
[null,null,null,null,null,null,null,null,null,"",""]
[null,null,null,null,null,null,null,null,null,"",""]
[null,null,null,null,null,null,null,null,null,"",""]
[null,null,null,null,null,null,null,null,null,"",""]
[null,null,null,null,null,null,null,null,null,"",""]
[null,null,null,null,null,null,null,null,null,"",""]
[null,null,null,null,null,null,null,null,null,"",""]
[null,null,null,null,null,null,null,null,null,"",""]
[null,null,null,null,null,null,null,null,null,"",""]
[null,null,null,null,null,null,null,null,null,"",""]
[null,null,null,null,null,null,null,null,null,"",""]
[null,null,null,null,null,null,null,null,null,"",""]
[null,null,null,null,null,null,null,null,null,"",""]
[null,null,null,null,null,null,null,null,null,"",""]
[null,null,null,null,null,null,null,null,null,"",""]
[null,null,null,null,null,null,null,null,null,"",""]
[null,null,null,null,null,null,null,null,null,"",""]
[null,null,null,null,null,null,null,null,null,"",""]
[null,null,null,null,null,null,null,null,null,"",""]
[null,null,null,null,null,null,null,null,null,"",""]
[null,null,null,null,null,null,null,null,null,"",""]
[null,null,null,null,null,null,null,null,null,"",""]
[null,null,null,null,null,null,null,null,null,"",""]
[null,null,null,null,null,null,null,null,null,"",""]
[null,null,null,null,null,null,null,null,null,"",""]
[null,null,null,null,null,null,null,null,null,"",""]
[null,null,null,null,null,null,null,null,null,"",{"$f":"IF(OR(I3464=\"\",J3464=\"\"),\"\",PRODUCT(I3464,J3464))","v":""}]
[null,null,null,null,null,null,null,null,null,"",""]
[null,null,null,null,null,null,null,null,null,"",""]
[null,null,null,null,null,null,null,null,null,"",""]
[null,null,null,null,null,null,null,null,null,"",""]
[null,null,null,null,null,null,null,null,null,"",""]
[null,null,null,null,null,null,null,null,null,"",""]
[null,null,null,null,null,null,null,null,null,"",""]
[null,null,null,null,null,null,null,null,null,"",""]
[null,null,null,null,null,null,null,null,null,"",""]
[null,null,null,null,null,null,null,null,null,"",""]
[null,null,null,null,null,null,null,null,null,"",""]
[null,null,null,null,null,null,null,null,null,"",""]
[null,null,null,null,null,null,null,null,null,"",""]
[null,null,null,null,null,null,null,null,null,"",""]
[null,null,null,null,null,null,null,null,null,"",""]
[null,null,null,null,null,null,null,null,null,"",""]
[null,null,null,null,null,null,null,null,null,"",""]
[null,null,null,null,null,null,null,null,null,"",""]
[null,null,null,null,null,null,null,null,null,"",""]
[null,null,null,null,null,null,null,null,null,"",""]
[null,null,null,null,null,null,null,null,null,{"$f":"IFERROR(IF(H3485<>\"\",7.05,\"\"),\"\")","v":""},""]
[null,null,null,null,null,null,null,null,null,"",""]
[null,null,null,null,null,null,null,null,null,"",""]
[null,null,null,null,null,null,null,null,null,"",""]
[null,null,null,null,null,null,null,null,null,"",""]
[null,null,null,null,null,null,null,null,null,"",""]
[null,null,null,null,null,null,null,null,null,"",""]
[null,null,null,null,null,null,null,null,null,"",""]
[null,null,null,null,null,null,null,null,null,"",""]
[null,null,null,null,null,null,null,null,null,"",""]
[null,null,null,null,null,null,null,null,null,"",""]
[null,null,null,null,null,null,null,null,null,"",""]
[null,null,null,null,null,null,null,null,null,"",""]
[null,null,null,null,null,null,null,null,null,"",""]
[null,null,null,null,null,null,null,null,null,"",""]
[null,null,null,null,null,null,null,null,null,"",""]
[null,null,null,null,null,null,null,null,null,"",""]
[null,null,null,null,null,null,null,null,null,"",""]
[null,null,null,null,null,null,null,null,null,"",""]
[null,null,null,null,null,null,null,null,null,"",""]
[null,null,null,null,null,null,null,null,null,"",""]
[null,null,null,null,null,null,null,null,null,"",""]
[null,null,null,null,null,null,null,null,null,"",""]
[null,null,null,null,null,null,null,null,null,"",""]
[null,null,null,null,null,null,null,null,null,"",""]
[null,null,null,null,null,null,null,null,null,"",""]
[null,null,null,null,null,null,null,null,null,"",""]
[null,null,null,null,null,null,null,null,null,"",""]
[null,null,null,null,null,null,null,null,null,"",""]
[null,null,null,null,null,null,null,null,null,"",""]
[null,null,null,null,null,null,null,null,null,"",""]
[null,null,null,null,null,null,null,null,null,"",""]
[null,null,null,null,null,null,null,null,null,"",""]
[null,null,null,null,null,null,null,null,null,"",""]
[null,null,null,null,null,null,null,null,null,"",""]
[null,null,null,null,null,null,null,null,null,"",""]
[null,null,null,null,null,null,null,null,null,"",""]
[null,null,null,null,null,null,null,null,null,"",""]
[null,null,null,null,null,null,null,null,null,"",""]
[null,null,null,null,null,null,null,null,null,"",""]
[null,null,null,null,null,null,null,null,null,"",""]
[null,null,null,null,null,null,null,null,null,"",""]
[null,null,null,null,null,null,null,null,null,"",""]
[null,null,null,null,null,null,null,null,null,"",{"$f":"IF(OR(I3528=\"\",J3528=\"\"),\"\",PRODUCT(I3528,J3528))","v":""}]
[null,null,null,null,null,null,null,null,null,"",""]
[null,null,null,null,null,null,null,null,null,"",""]
[null,null,null,null,null,null,null,null,null,"",""]
[null,null,null,null,null,null,null,null,null,"",""]
[null,null,null,null,null,null,null,null,null,"",""]
[null,null,null,null,null,null,null,null,null,"",""]
[null,null,null,null,null,null,null,null,null,"",""]
[null,null,null,null,null,null,null,null,null,"",""]
[null,null,null,null,null,null,null,null,null,"",""]
[null,null,null,null,null,null,null,null,null,"",""]
[null,null,null,null,null,null,null,null,null,"",""]
[null,null,null,null,null,null,null,null,null,"",""]
[null,null,null,null,null,null,null,null,null,"",""]
[null,null,null,null,null,null,null,null,null,"",""]
[null,null,null,null,null,null,null,null,null,"",""]
[null,null,null,null,null,null,null,null,null,"",""]
[null,null,null,null,null,null,null,null,null,"",""]
[null,null,null,null,null,null,null,null,null,"",""]
[null,null,null,null,null,null,null,null,null,"",""]
[null,null,null,null,null,null,null,null,null,"",""]
[null,null,null,null,null,null,null,null,null,{"$f":"IFERROR(IF(H3549<>\"\",7.05,\"\"),\"\")","v":""},""]
[null,null,null,null,null,null,null,null,null,"",""]
[null,null,null,null,null,null,null,null,null,"",""]
[null,null,null,null,null,null,null,null,null,"",""]
[null,null,null,null,null,null,null,null,null,"",""]
[null,null,null,null,null,null,null,null,null,"",""]
[null,null,null,null,null,null,null,null,null,"",""]
[null,null,null,null,null,null,null,null,null,"",""]
[null,null,null,null,null,null,null,null,null,"",""]
[null,null,null,null,null,null,null,null,null,"",""]
[null,null,null,null,null,null,null,null,null,"",""]
[null,null,null,null,null,null,null,null,null,"",""]
[null,null,null,null,null,null,null,null,null,"",""]
[null,null,null,null,null,null,null,null,null,"",""]
[null,null,null,null,null,null,null,null,null,"",""]
[null,null,null,null,null,null,null,null,null,"",""]
[null,null,null,null,null,null,null,null,null,"",""]
[null,null,null,null,null,null,null,null,null,"",""]
[null,null,null,null,null,null,null,null,null,"",""]
[null,null,null,null,null,null,null,null,null,"",""]
[null,null,null,null,null,null,null,null,null,"",""]
[null,null,null,null,null,null,null,null,null,"",""]
[null,null,null,null,null,null,null,null,null,"",""]
[null,null,null,null,null,null,null,null,null,"",""]
[null,null,null,null,null,null,null,null,null,"",""]
[null,null,null,null,null,null,null,null,null,"",""]
[null,null,null,null,null,null,null,null,null,"",""]
[null,null,null,null,null,null,null,null,null,"",""]
[null,null,null,null,null,null,null,null,null,"",""]
[null,null,null,null,null,null,null,null,null,"",""]
[null,null,null,null,null,null,null,null,null,"",""]
[null,null,null,null,null,null,null,null,null,"",""]
[null,null,null,null,null,null,null,null,null,"",""]
[null,null,null,null,null,null,null,null,null,"",""]
[null,null,null,null,null,null,null,null,null,"",""]
[null,null,null,null,null,null,null,null,null,"",""]
[null,null,null,null,null,null,null,null,null,"",""]
[null,null,null,null,null,null,null,null,null,"",""]
[null,null,null,null,null,null,null,null,null,"",""]
[null,null,null,null,null,null,null,null,null,"",""]
[null,null,null,null,null,null,null,null,null,"",""]
[null,null,null,null,null,null,null,null,null,"",""]
[null,null,null,null,null,null,null,null,null,"",""]
[null,null,null,null,null,null,null,null,null,"",{"$f":"IF(OR(I3592=\"\",J3592=\"\"),\"\",PRODUCT(I3592,J3592))","v":""}]
[null,null,null,null,null,null,null,null,null,"",""]
[null,null,null,null,null,null,null,null,null,"",""]
[null,null,null,null,null,null,null,null,null,"",""]
[null,null,null,null,null,null,null,null,null,"",""]
[null,null,null,null,null,null,null,null,null,"",""]
[null,null,null,null,null,null,null,null,null,"",""]
[null,null,null,null,null,null,null,null,null,"",""]
[null,null,null,null,null,null,null,null,null,"",""]
[null,null,null,null,null,null,null,null,null,"",""]
[null,null,null,null,null,null,null,null,null,"",""]
[null,null,null,null,null,null,null,null,null,"",""]
[null,null,null,null,null,null,null,null,null,"",""]
[null,null,null,null,null,null,null,null,null,"",""]
[null,null,null,null,null,null,null,null,null,"",""]
[null,null,null,null,null,null,null,null,null,"",""]
[null,null,null,null,null,null,null,null,null,"",""]
[null,null,null,null,null,null,null,null,null,"",""]
[null,null,null,null,null,null,null,null,null,"",""]
[null,null,null,null,null,null,null,null,null,"",""]
[null,null,null,null,null,null,null,null,null,"",""]
[null,null,null,null,null,null,null,null,null,{"$f":"IFERROR(IF(H3613<>\"\",7.05,\"\"),\"\")","v":""},""]
[null,null,null,null,null,null,null,null,null,"",""]
[null,null,null,null,null,null,null,null,null,"",""]
[null,null,null,null,null,null,null,null,null,"",""]
[null,null,null,null,null,null,null,null,null,"",""]
[null,null,null,null,null,null,null,null,null,"",""]
[null,null,null,null,null,null,null,null,null,"",""]
[null,null,null,null,null,null,null,null,null,"",""]
[null,null,null,null,null,null,null,null,null,"",""]
[null,null,null,null,null,null,null,null,null,"",""]
[null,null,null,null,null,null,null,null,null,"",""]
[null,null,null,null,null,null,null,null,null,"",""]
[null,null,null,null,null,null,null,null,null,"",""]
[null,null,null,null,null,null,null,null,null,"",""]
[null,null,null,null,null,null,null,null,null,"",""]
[null,null,null,null,null,null,null,null,null,"",""]
[null,null,null,null,null,null,null,null,null,"",""]
[null,null,null,null,null,null,null,null,null,"",""]
[null,null,null,null,null,null,null,null,null,"",""]
[null,null,null,null,null,null,null,null,null,"",""]
[null,null,null,null,null,null,null,null,null,"",""]
[null,null,null,null,null,null,null,null,null,"",""]
[null,null,null,null,null,null,null,null,null,"",""]
[null,null,null,null,null,null,null,null,null,"",""]
[null,null,null,null,null,null,null,null,null,"",""]
[null,null,null,null,null,null,null,null,null,"",""]
[null,null,null,null,null,null,null,null,null,"",""]
[null,null,null,null,null,null,null,null,null,"",""]
[null,null,null,null,null,null,null,null,null,"",""]
[null,null,null,null,null,null,null,null,null,"",""]
[null,null,null,null,null,null,null,null,null,"",""]
[null,null,null,null,null,null,null,null,null,"",""]
[null,null,null,null,null,null,null,null,null,"",""]
[null,null,null,null,null,null,null,null,null,"",""]
[null,null,null,null,null,null,null,null,null,"",""]
[null,null,null,null,null,null,null,null,null,"",""]
[null,null,null,null,null,null,null,null,null,"",""]
[null,null,null,null,null,null,null,null,null,"",""]
[null,null,null,null,null,null,null,null,null,"",""]
[null,null,null,null,null,null,null,null,null,"",""]
[null,null,null,null,null,null,null,null,null,null,""]
[null,null,null,null,null,null,null,null,null,null,""]
[null,null,null,null,null,null,null,null,null,null,""]
[null,null,null,null,null,null,null,null,null,null,{"$f":"IF(OR(I3656=\"\",J3656=\"\"),\"\",PRODUCT(I3656,J3656))","v":""}]
[null,null,null,null,null,null,null,null,null,null,""]
[null,null,null,null,null,null,null,null,null,null,""]
[null,null,null,null,null,null,null,null,null,null,""]
[null,null,null,null,null,null,null,null,null,null,""]
[null,null,null,null,null,null,null,null,null,null,""]
[null,null,null,null,null,null,null,null,null,null,""]
[null,null,null,null,null,null,null,null,null,null,""]
[null,null,null,null,null,null,null,null,null,null,""]
[null,null,null,null,null,null,null,null,null,null,""]
[null,null,null,null,null,null,null,null,null,null,""]
[null,null,null,null,null,null,null,null,null,null,""]
[null,null,null,null,null,null,null,null,null,null,""]
[null,null,null,null,null,null,null,null,null,null,""]
[null,null,null,null,null,null,null,null,null,null,""]
[null,null,null,null,null,null,null,null,null,null,""]
[null,null,null,null,null,null,null,null,null,null,""]
[null,null,null,null,null,null,null,null,null,null,""]
[null,null,null,null,null,null,null,null,null,null,""]
[null,null,null,null,null,null,null,null,null,null,""]
[null,null,null,null,null,null,null,null,null,null,""]
[null,null,null,null,null,null,null,null,null,null,""]
[null,null,null,null,null,null,null,null,null,null,""]
[null,null,null,null,null,null,null,null,null,null,""]
[null,null,null,null,null,null,null,null,null,null,""]
[null,null,null,null,null,null,null,null,null,null,""]
[null,null,null,null,null,null,null,null,null,null,""]
[null,null,null,null,null,null,null,null,null,null,""]
[null,null,null,null,null,null,null,null,null,null,""]
[null,null,null,null,null,null,null,null,null,null,""]
[null,null,null,null,null,null,null,null,null,null,""]
[null,null,null,null,null,null,null,null,null,null,""]
[null,null,null,null,null,null,null,null,null,null,""]
[null,null,null,null,null,null,null,null,null,null,""]
[null,null,null,null,null,null,null,null,null,null,""]
[null,null,null,null,null,null,null,null,null,null,""]
[null,null,null,null,null,null,null,null,null,null,""]
[null,null,null,null,null,null,null,null,null,null,""]
[null,null,null,null,null,null,null,null,null,null,""]
[null,null,null,null,null,null,null,null,null,null,""]
[null,null,null,null,null,null,null,null,null,null,""]
[null,null,null,null,null,null,null,null,null,null,""]
[null,null,null,null,null,null,null,null,null,null,""]
[null,null,null,null,null,null,null,null,null,null,""]
[null,null,null,null,null,null,null,null,null,null,""]
[null,null,null,null,null,null,null,null,null,null,""]
[null,null,null,null,null,null,null,null,null,null,""]
[null,null,null,null,null,null,null,null,null,null,""]
[null,null,null,null,null,null,null,null,null,null,""]
[null,null,null,null,null,null,null,null,null,null,""]
[null,null,null,null,null,null,null,null,null,null,""]
[null,null,null,null,null,null,null,null,null,null,""]
[null,null,null,null,null,null,null,null,null,null,""]
[null,null,null,null,null,null,null,null,null,null,""]
[null,null,null,null,null,null,null,null,null,null,""]
[null,null,null,null,null,null,null,null,null,null,""]
[null,null,null,null,null,null,null,null,null,null,""]
[null,null,null,null,null,null,null,null,null,null,""]
[null,null,null,null,null,null,null,null,null,null,""]
[null,null,null,null,null,null,null,null,null,null,""]
[null,null,null,null,null,null,null,null,null,null,""]
[null,null,null,null,null,null,null,null,null,null,""]
[null,null,null,null,null,null,null,null,null,null,""]
[null,null,null,null,null,null,null,null,null,null,""]
[null,null,null,null,null,null,null,null,null,null,{"$f":"IF(OR(I3720=\"\",J3720=\"\"),\"\",PRODUCT(I3720,J3720))","v":""}]
[null,null,null,null,null,null,null,null,null,null,""]
[null,null,null,null,null,null,null,null,null,null,""]
[null,null,null,null,null,null,null,null,null,null,""]
[null,null,null,null,null,null,null,null,null,null,""]
[null,null,null,null,null,null,null,null,null,null,""]
[null,null,null,null,null,null,null,null,null,null,""]
[null,null,null,null,null,null,null,null,null,null,""]
[null,null,null,null,null,null,null,null,null,null,""]
[null,null,null,null,null,null,null,null,null,null,""]
[null,null,null,null,null,null,null,null,null,null,""]
[null,null,null,null,null,null,null,null,null,null,""]
[null,null,null,null,null,null,null,null,null,null,""]
[null,null,null,null,null,null,null,null,null,null,""]
[null,null,null,null,null,null,null,null,null,null,""]
[null,null,null,null,null,null,null,null,null,null,""]
[null,null,null,null,null,null,null,null,null,null,""]
[null,null,null,null,null,null,null,null,null,null,""]
[null,null,null,null,null,null,null,null,null,null,""]
[null,null,null,null,null,null,null,null,null,null,""]
[null,null,null,null,null,null,null,null,null,null,""]
[null,null,null,null,null,null,null,null,null,null,""]
[null,null,null,null,null,null,null,null,null,null,""]
[null,null,null,null,null,null,null,null,null,null,""]
[null,null,null,null,null,null,null,null,null,null,""]
[null,null,null,null,null,null,null,null,null,null,""]
[null,null,null,null,null,null,null,null,null,null,""]
[null,null,null,null,null,null,null,null,null,null,""]
[null,null,null,null,null,null,null,null,null,null,""]
[null,null,null,null,null,null,null,null,null,null,""]
[null,null,null,null,null,null,null,null,null,null,""]
[null,null,null,null,null,null,null,null,null,null,""]
[null,null,null,null,null,null,null,null,null,null,""]
[null,null,null,null,null,null,null,null,null,null,""]
[null,null,null,null,null,null,null,null,null,null,""]
[null,null,null,null,null,null,null,null,null,null,""]
[null,null,null,null,null,null,null,null,null,null,""]
[null,null,null,null,null,null,null,null,null,null,""]
[null,null,null,null,null,null,null,null,null,null,""]
[null,null,null,null,null,null,null,null,null,null,""]
[null,null,null,null,null,null,null,null,null,null,""]
[null,null,null,null,null,null,null,null,null,null,""]
[null,null,null,null,null,null,null,null,null,null,""]
[null,null,null,null,null,null,null,null,null,null,""]
[null,null,null,null,null,null,null,null,null,null,""]
[null,null,null,null,null,null,null,null,null,null,""]
[null,null,null,null,null,null,null,null,null,null,""]
[null,null,null,null,null,null,null,null,null,null,""]
[null,null,null,null,null,null,null,null,null,null,""]
[null,null,null,null,null,null,null,null,null,null,""]
[null,null,null,null,null,null,null,null,null,null,""]
[null,null,null,null,null,null,null,null,null,null,""]
[null,null,null,null,null,null,null,null,null,null,""]
[null,null,null,null,null,null,null,null,null,null,""]
[null,null,null,null,null,null,null,null,null,null,""]
[null,null,null,null,null,null,null,null,null,null,""]
[null,null,null,null,null,null,null,null,null,null,""]
[null,null,null,null,null,null,null,null,null,null,""]
[null,null,null,null,null,null,null,null,null,null,""]
[null,null,null,null,null,null,null,null,null,null,""]
[null,null,null,null,null,null,null,null,null,null,""]
[null,null,null,null,null,null,null,null,null,null,""]
[null,null,null,null,null,null,null,null,null,null,""]
[null,null,null,null,null,null,null,null,null,null,""]
[null,null,null,null,null,null,null,null,null,null,{"$f":"IF(OR(I3784=\"\",J3784=\"\"),\"\",PRODUCT(I3784,J3784))","v":""}]
[null,null,null,null,null,null,null,null,null,null,""]
[null,null,null,null,null,null,null,null,null,null,""]
[null,null,null,null,null,null,null,null,null,null,""]
[null,null,null,null,null,null,null,null,null,null,""]
[null,null,null,null,null,null,null,null,null,null,""]
[null,null,null,null,null,null,null,null,null,null,""]
[null,null,null,null,null,null,null,null,null,null,""]
[null,null,null,null,null,null,null,null,null,null,""]
[null,null,null,null,null,null,null,null,null,null,""]
[null,null,null,null,null,null,null,null,null,null,""]
[null,null,null,null,null,null,null,null,null,null,""]
[null,null,null,null,null,null,null,null,null,null,""]
[null,null,null,null,null,null,null,null,null,null,""]
[null,null,null,null,null,null,null,null,null,null,""]
[null,null,null,null,null,null,null,null,null,null,""]
[null,null,null,null,null,null,null,null,null,null,""]
[null,null,null,null,null,null,null,null,null,null,""]
[null,null,null,null,null,null,null,null,null,null,""]
[null,null,null,null,null,null,null,null,null,null,""]
[null,null,null,null,null,null,null,null,null,null,""]
[null,null,null,null,null,null,null,null,null,null,""]
[null,null,null,null,null,null,null,null,null,null,""]
[null,null,null,null,null,null,null,null,null,null,""]
[null,null,null,null,null,null,null,null,null,null,""]
[null,null,null,null,null,null,null,null,null,null,""]
[null,null,null,null,null,null,null,null,null,null,""]
[null,null,null,null,null,null,null,null,null,null,""]
[null,null,null,null,null,null,null,null,null,null,""]
[null,null,null,null,null,null,null,null,null,null,""]
[null,null,null,null,null,null,null,null,null,null,""]
[null,null,null,null,null,null,null,null,null,null,""]
[null,null,null,null,null,null,null,null,null,null,""]
[null,null,null,null,null,null,null,null,null,null,""]
[null,null,null,null,null,null,null,null,null,null,""]
[null,null,null,null,null,null,null,null,null,null,""]
[null,null,null,null,null,null,null,null,null,null,""]
[null,null,null,null,null,null,null,null,null,null,""]
[null,null,null,null,null,null,null,null,null,null,""]
[null,null,null,null,null,null,null,null,null,null,""]
[null,null,null,null,null,null,null,null,null,null,""]
[null,null,null,null,null,null,null,null,null,null,""]
[null,null,null,null,null,null,null,null,null,null,""]
[null,null,null,null,null,null,null,null,null,null,""]
[null,null,null,null,null,null,null,null,null,null,""]
[null,null,null,null,null,null,null,null,null,null,""]
[null,null,null,null,null,null,null,null,null,null,""]
[null,null,null,null,null,null,null,null,null,null,""]
[null,null,null,null,null,null,null,null,null,null,""]
[null,null,null,null,null,null,null,null,null,null,""]
[null,null,null,null,null,null,null,null,null,null,""]
[null,null,null,null,null,null,null,null,null,null,""]
[null,null,null,null,null,null,null,null,null,null,""]
[null,null,null,null,null,null,null,null,null,null,""]
[null,null,null,null,null,null,null,null,null,null,""]
[null,null,null,null,null,null,null,null,null,null,""]
[null,null,null,null,null,null,null,null,null,null,""]
[null,null,null,null,null,null,null,null,null,null,""]
[null,null,null,null,null,null,null,null,null,null,""]
[null,null,null,null,null,null,null,null,null,null,""]
[null,null,null,null,null,null,null,null,null,null,""]
[null,null,null,null,null,null,null,null,null,null,""]
[null,null,null,null,null,null,null,null,null,null,""]
[null,null,null,null,null,null,null,null,null,null,""]
[null,null,null,null,null,null,null,null,null,null,{"$f":"IF(OR(I3848=\"\",J3848=\"\"),\"\",PRODUCT(I3848,J3848))","v":""}]
[null,null,null,null,null,null,null,null,null,null,""]
[null,null,null,null,null,null,null,null,null,null,""]
[null,null,null,null,null,null,null,null,null,null,""]
[null,null,null,null,null,null,null,null,null,null,""]
[null,null,null,null,null,null,null,null,null,null,""]
[null,null,null,null,null,null,null,null,null,null,""]
[null,null,null,null,null,null,null,null,null,null,""]
[null,null,null,null,null,null,null,null,null,null,""]
[null,null,null,null,null,null,null,null,null,null,""]
[null,null,null,null,null,null,null,null,null,null,""]
[null,null,null,null,null,null,null,null,null,null,""]
[null,null,null,null,null,null,null,null,null,null,""]
[null,null,null,null,null,null,null,null,null,null,""]
[null,null,null,null,null,null,null,null,null,null,""]
[null,null,null,null,null,null,null,null,null,null,""]
[null,null,null,null,null,null,null,null,null,null,""]
[null,null,null,null,null,null,null,null,null,null,""]
[null,null,null,null,null,null,null,null,null,null,""]
[null,null,null,null,null,null,null,null,null,null,""]
[null,null,null,null,null,null,null,null,null,null,""]
[null,null,null,null,null,null,null,null,null,null,""]
[null,null,null,null,null,null,null,null,null,null,""]
[null,null,null,null,null,null,null,null,null,null,""]
[null,null,null,null,null,null,null,null,null,null,""]
[null,null,null,null,null,null,null,null,null,null,""]
[null,null,null,null,null,null,null,null,null,null,""]
[null,null,null,null,null,null,null,null,null,null,""]
[null,null,null,null,null,null,null,null,null,null,""]
[null,null,null,null,null,null,null,null,null,null,""]
[null,null,null,null,null,null,null,null,null,null,""]
[null,null,null,null,null,null,null,null,null,null,""]
[null,null,null,null,null,null,null,null,null,null,""]
[null,null,null,null,null,null,null,null,null,null,""]
[null,null,null,null,null,null,null,null,null,null,""]
[null,null,null,null,null,null,null,null,null,null,""]
[null,null,null,null,null,null,null,null,null,null,""]
[null,null,null,null,null,null,null,null,null,null,""]
[null,null,null,null,null,null,null,null,null,null,""]
[null,null,null,null,null,null,null,null,null,null,""]
[null,null,null,null,null,null,null,null,null,null,""]
[null,null,null,null,null,null,null,null,null,null,""]
[null,null,null,null,null,null,null,null,null,null,""]
[null,null,null,null,null,null,null,null,null,null,""]
[null,null,null,null,null,null,null,null,null,null,""]
[null,null,null,null,null,null,null,null,null,null,""]
[null,null,null,null,null,null,null,null,null,null,""]
[null,null,null,null,null,null,null,null,null,null,""]
[null,null,null,null,null,null,null,null,null,null,""]
[null,null,null,null,null,null,null,null,null,null,""]
[null,null,null,null,null,null,null,null,null,null,""]
[null,null,null,null,null,null,null,null,null,null,""]
[null,null,null,null,null,null,null,null,null,null,""]
[null,null,null,null,null,null,null,null,null,null,""]
[null,null,null,null,null,null,null,null,null,null,""]
[null,null,null,null,null,null,null,null,null,null,""]
[null,null,null,null,null,null,null,null,null,null,""]
[null,null,null,null,null,null,null,null,null,null,""]
[null,null,null,null,null,null,null,null,null,null,""]
[null,null,null,null,null,null,null,null,null,null,""]
[null,null,null,null,null,null,null,null,null,null,""]
[null,null,null,null,null,null,null,null,null,null,""]
[null,null,null,null,null,null,null,null,null,null,""]
[null,null,null,null,null,null,null,null,null,null,""]
[null,null,null,null,null,null,null,null,null,null,{"$f":"IF(OR(I3912=\"\",J3912=\"\"),\"\",PRODUCT(I3912,J3912))","v":""}]
[null,null,null,null,null,null,null,null,null,null,""]
[null,null,null,null,null,null,null,null,null,null,""]
[null,null,null,null,null,null,null,null,null,null,""]
[null,null,null,null,null,null,null,null,null,null,""]
[null,null,null,null,null,null,null,null,null,null,""]
[null,null,null,null,null,null,null,null,null,null,""]
[null,null,null,null,null,null,null,null,null,null,""]
[null,null,null,null,null,null,null,null,null,null,""]
[null,null,null,null,null,null,null,null,null,null,""]
[null,null,null,null,null,null,null,null,null,null,""]
[null,null,null,null,null,null,null,null,null,null,""]
[null,null,null,null,null,null,null,null,null,null,""]
[null,null,null,null,null,null,null,null,null,null,""]
[null,null,null,null,null,null,null,null,null,null,""]
[null,null,null,null,null,null,null,null,null,null,""]
[null,null,null,null,null,null,null,null,null,null,""]
[null,null,null,null,null,null,null,null,null,null,""]
[null,null,null,null,null,null,null,null,null,null,""]
[null,null,null,null,null,null,null,null,null,null,""]
[null,null,null,null,null,null,null,null,null,null,""]
[null,null,null,null,null,null,null,null,null,null,""]
[null,null,null,null,null,null,null,null,null,null,""]
[null,null,null,null,null,null,null,null,null,null,""]
[null,null,null,null,null,null,null,null,null,null,""]
[null,null,null,null,null,null,null,null,null,null,""]
[null,null,null,null,null,null,null,null,null,null,""]
[null,null,null,null,null,null,null,null,null,null,""]
[null,null,null,null,null,null,null,null,null,null,""]
[null,null,null,null,null,null,null,null,null,null,""]
[null,null,null,null,null,null,null,null,null,null,""]
[null,null,null,null,null,null,null,null,null,null,""]
[null,null,null,null,null,null,null,null,null,null,""]
[null,null,null,null,null,null,null,null,null,null,""]
[null,null,null,null,null,null,null,null,null,null,""]
[null,null,null,null,null,null,null,null,null,null,""]
[null,null,null,null,null,null,null,null,null,null,""]
[null,null,null,null,null,null,null,null,null,null,""]
[null,null,null,null,null,null,null,null,null,null,""]
[null,null,null,null,null,null,null,null,null,null,""]
[null,null,null,null,null,null,null,null,null,null,""]
[null,null,null,null,null,null,null,null,null,null,""]
[null,null,null,null,null,null,null,null,null,null,""]
[null,null,null,null,null,null,null,null,null,null,""]
[null,null,null,null,null,null,null,null,null,null,""]
[null,null,null,null,null,null,null,null,null,null,""]
[null,null,null,null,null,null,null,null,null,null,""]
[null,null,null,null,null,null,null,null,null,null,""]
[null,null,null,null,null,null,null,null,null,null,""]
[null,null,null,null,null,null,null,null,null,null,""]
[null,null,null,null,null,null,null,null,null,null,""]
[null,null,null,null,null,null,null,null,null,null,""]
[null,null,null,null,null,null,null,null,null,null,""]
[null,null,null,null,null,null,null,null,null,null,""]
[null,null,null,null,null,null,null,null,null,null,""]
[null,null,null,null,null,null,null,null,null,null,""]
[null,null,null,null,null,null,null,null,null,null,""]
[null,null,null,null,null,null,null,null,null,null,""]
[null,null,null,null,null,null,null,null,null,null,""]
[null,null,null,null,null,null,null,null,null,null,""]
[null,null,null,null,null,null,null,null,null,null,""]
[null,null,null,null,null,null,null,null,null,null,""]
[null,null,null,null,null,null,null,null,null,null,""]
[null,null,null,null,null,null,null,null,null,null,""]
[null,null,null,null,null,null,null,null,null,null,{"$f":"IF(OR(I3976=\"\",J3976=\"\"),\"\",PRODUCT(I3976,J3976))","v":""}]
[null,null,null,null,null,null,null,null,null,null,""]
[null,null,null,null,null,null,null,null,null,null,""]
[null,null,null,null,null,null,null,null,null,null,""]
[null,null,null,null,null,null,null,null,null,null,""]
[null,null,null,null,null,null,null,null,null,null,""]
[null,null,null,null,null,null,null,null,null,null,""]
[null,null,null,null,null,null,null,null,null,null,""]
[null,null,null,null,null,null,null,null,null,null,""]
[null,null,null,null,null,null,null,null,null,null,""]
[null,null,null,null,null,null,null,null,null,null,""]
[null,null,null,null,null,null,null,null,null,null,""]
[null,null,null,null,null,null,null,null,null,null,""]
[null,null,null,null,null,null,null,null,null,null,""]
[null,null,null,null,null,null,null,null,null,null,""]
[null,null,null,null,null,null,null,null,null,null,""]
[null,null,null,null,null,null,null,null,null,null,""]
[null,null,null,null,null,null,null,null,null,null,""]
[null,null,null,null,null,null,null,null,null,null,""]
[null,null,null,null,null,null,null,null,null,null,""]
[null,null,null,null,null,null,null,null,null,null,""]
[null,null,null,null,null,null,null,null,null,null,""]
[null,null,null,null,null,null,null,null,null,null,""]
[null,null,null,null,null,null,null,null,null,null,""]
[null,null,null,null,null,null,null,null,null,null,""]
[null,null,null,null,null,null,null,null,null,null,""]
[null,null,null,null,null,null,null,null,null,null,""]
[null,null,null,null,null,null,null,null,null,null,""]
[null,null,null,null,null,null,null,null,null,null,""]
[null,null,null,null,null,null,null,null,null,null,""]
[null,null,null,null,null,null,null,null,null,null,""]
[null,null,null,null,null,null,null,null,null,null,""]
[null,null,null,null,null,null,null,null,null,null,""]
[null,null,null,null,null,null,null,null,null,null,""]
[null,null,null,null,null,null,null,null,null,null,""]
[null,null,null,null,null,null,null,null,null,null,""]
[null,null,null,null,null,null,null,null,null,null,""]
[null,null,null,null,null,null,null,null,null,null,""]
[null,null,null,null,null,null,null,null,null,null,""]
[null,null,null,null,null,null,null,null,null,null,""]
[null,null,null,null,null,null,null,null,null,null,""]
[null,null,null,null,null,null,null,null,null,null,""]
[null,null,null,null,null,null,null,null,null,null,""]
[null,null,null,null,null,null,null,null,null,null,""]
[null,null,null,null,null,null,null,null,null,null,""]
[null,null,null,null,null,null,null,null,null,null,""]
[null,null,null,null,null,null,null,null,null,null,""]
[null,null,null,null,null,null,null,null,null,null,""]
[null,null,null,null,null,null,null,null,null,null,""]
[null,null,null,null,null,null,null,null,null,null,""]
[null,null,null,null,null,null,null,null,null,null,""]
[null,null,null,null,null,null,null,null,null,null,""]
[null,null,null,null,null,null,null,null,null,null,""]
[null,null,null,null,null,null,null,null,null,null,""]
[null,null,null,null,null,null,null,null,null,null,""]
[null,null,null,null,null,null,null,null,null,null,""]
[null,null,null,null,null,null,null,null,null,null,""]
[null,null,null,null,null,null,null,null,null,null,""]
[null,null,null,null,null,null,null,null,null,null,""]
[null,null,null,null,null,null,null,null,null,null,""]
[null,null,null,null,null,null,null,null,null,null,""]
[null,null,null,null,null,null,null,null,null,null,""]
[null,null,null,null,null,null,null,null,null,null,""]
[null,null,null,null,null,null,null,null,null,null,""]
[null,null,null,null,null,null,null,null,null,null,{"$f":"IF(OR(I4040=\"\",J4040=\"\"),\"\",PRODUCT(I4040,J4040))","v":""}]
[null,null,null,null,null,null,null,null,null,null,""]
[null,null,null,null,null,null,null,null,null,null,""]
[null,null,null,null,null,null,null,null,null,null,""]
[null,null,null,null,null,null,null,null,null,null,""]
[null,null,null,null,null,null,null,null,null,null,""]
[null,null,null,null,null,null,null,null,null,null,""]
[null,null,null,null,null,null,null,null,null,null,""]
[null,null,null,null,null,null,null,null,null,null,""]
[null,null,null,null,null,null,null,null,null,null,""]
[null,null,null,null,null,null,null,null,null,null,""]
[null,null,null,null,null,null,null,null,null,null,""]
[null,null,null,null,null,null,null,null,null,null,""]
[null,null,null,null,null,null,null,null,null,null,""]
[null,null,null,null,null,null,null,null,null,null,""]
[null,null,null,null,null,null,null,null,null,null,""]
[null,null,null,null,null,null,null,null,null,null,""]
[null,null,null,null,null,null,null,null,null,null,""]
[null,null,null,null,null,null,null,null,null,null,""]
[null,null,null,null,null,null,null,null,null,null,""]
[null,null,null,null,null,null,null,null,null,null,""]
[null,null,null,null,null,null,null,null,null,null,""]
[null,null,null,null,null,null,null,null,null,null,""]
[null,null,null,null,null,null,null,null,null,null,""]
[null,null,null,null,null,null,null,null,null,null,""]
[null,null,null,null,null,null,null,null,null,null,""]
[null,null,null,null,null,null,null,null,null,null,""]
[null,null,null,null,null,null,null,null,null,null,""]
[null,null,null,null,null,null,null,null,null,null,""]
[null,null,null,null,null,null,null,null,null,null,""]
[null,null,null,null,null,null,null,null,null,null,""]
[null,null,null,null,null,null,null,null,null,null,""]
[null,null,null,null,null,null,null,null,null,null,""]
[null,null,null,null,null,null,null,null,null,null,""]
[null,null,null,null,null,null,null,null,null,null,""]
[null,null,null,null,null,null,null,null,null,null,""]
[null,null,null,null,null,null,null,null,null,null,""]
[null,null,null,null,null,null,null,null,null,null,""]
[null,null,null,null,null,null,null,null,null,null,""]
[null,null,null,null,null,null,null,null,null,null,""]
[null,null,null,null,null,null,null,null,null,null,""]
[null,null,null,null,null,null,null,null,null,null,""]
[null,null,null,null,null,null,null,null,null,null,""]
[null,null,null,null,null,null,null,null,null,null,""]
[null,null,null,null,null,null,null,null,null,null,""]
[null,null,null,null,null,null,null,null,null,null,""]
[null,null,null,null,null,null,null,null,null,null,""]
[null,null,null,null,null,null,null,null,null,null,""]
[null,null,null,null,null,null,null,null,null,null,""]
[null,null,null,null,null,null,null,null,null,null,""]
[null,null,null,null,null,null,null,null,null,null,""]
[null,null,null,null,null,null,null,null,null,null,""]
[null,null,null,null,null,null,null,null,null,null,""]
[null,null,null,null,null,null,null,null,null,null,""]
[null,null,null,null,null,null,null,null,null,null,""]
[null,null,null,null,null,null,null,null,null,null,""]
[null,null,null,null,null,null,null,null,null,null,""]
[null,null,null,null,null,null,null,null,null,null,""]
[null,null,null,null,null,null,null,null,null,null,""]
[null,null,null,null,null,null,null,null,null,null,""]
[null,null,null,null,null,null,null,null,null,null,""]
[null,null,null,null,null,null,null,null,null,null,""]
[null,null,null,null,null,null,null,null,null,null,""]
[null,null,null,null,null,null,null,null,null,null,""]
[null,null,null,null,null,null,null,null,null,null,{"$f":"IF(OR(I4104=\"\",J4104=\"\"),\"\",PRODUCT(I4104,J4104))","v":""}]
[null,null,null,null,null,null,null,null,null,null,""]
[null,null,null,null,null,null,null,null,null,null,""]
[null,null,null,null,null,null,null,null,null,null,""]
[null,null,null,null,null,null,null,null,null,null,""]
[null,null,null,null,null,null,null,null,null,null,""]
[null,null,null,null,null,null,null,null,null,null,""]
[null,null,null,null,null,null,null,null,null,null,""]
[null,null,null,null,null,null,null,null,null,null,""]
[null,null,null,null,null,null,null,null,null,null,""]
[null,null,null,null,null,null,null,null,null,null,""]
[null,null,null,null,null,null,null,null,null,null,""]
[null,null,null,null,null,null,null,null,null,null,""]
[null,null,null,null,null,null,null,null,null,null,""]
[null,null,null,null,null,null,null,null,null,null,""]
[null,null,null,null,null,null,null,null,null,null,""]
[null,null,null,null,null,null,null,null,null,null,""]
[null,null,null,null,null,null,null,null,null,null,""]
[null,null,null,null,null,null,null,null,null,null,""]
[null,null,null,null,null,null,null,null,null,null,""]
[null,null,null,null,null,null,null,null,null,null,""]
[null,null,null,null,null,null,null,null,null,null,""]
[null,null,null,null,null,null,null,null,null,null,""]
[null,null,null,null,null,null,null,null,null,null,""]
[null,null,null,null,null,null,null,null,null,null,""]
[null,null,null,null,null,null,null,null,null,null,""]
[null,null,null,null,null,null,null,null,null,null,""]
[null,null,null,null,null,null,null,null,null,null,""]
[null,null,null,null,null,null,null,null,null,null,""]
[null,null,null,null,null,null,null,null,null,null,""]
[null,null,null,null,null,null,null,null,null,null,""]
[null,null,null,null,null,null,null,null,null,null,""]
[null,null,null,null,null,null,null,null,null,null,""]
[null,null,null,null,null,null,null,null,null,null,""]
[null,null,null,null,null,null,null,null,null,null,""]
[null,null,null,null,null,null,null,null,null,null,""]
[null,null,null,null,null,null,null,null,null,null,""]
[null,null,null,null,null,null,null,null,null,null,""]
[null,null,null,null,null,null,null,null,null,null,""]
[null,null,null,null,null,null,null,null,null,null,""]
[null,null,null,null,null,null,null,null,null,null,""]
[null,null,null,null,null,null,null,null,null,null,""]
[null,null,null,null,null,null,null,null,null,null,""]
[null,null,null,null,null,null,null,null,null,null,""]
[null,null,null,null,null,null,null,null,null,null,""]
[null,null,null,null,null,null,null,null,null,null,""]
[null,null,null,null,null,null,null,null,null,null,""]
[null,null,null,null,null,null,null,null,null,null,""]
[null,null,null,null,null,null,null,null,null,null,""]
[null,null,null,null,null,null,null,null,null,null,""]
[null,null,null,null,null,null,null,null,null,null,""]
[null,null,null,null,null,null,null,null,null,null,""]
[null,null,null,null,null,null,null,null,null,null,""]
[null,null,null,null,null,null,null,null,null,null,""]
[null,null,null,null,null,null,null,null,null,null,""]
[null,null,null,null,null,null,null,null,null,null,""]
[null,null,null,null,null,null,null,null,null,null,""]
[null,null,null,null,null,null,null,null,null,null,""]
[null,null,null,null,null,null,null,null,null,null,""]
[null,null,null,null,null,null,null,null,null,null,""]
[null,null,null,null,null,null,null,null,null,null,""]
[null,null,null,null,null,null,null,null,null,null,""]
[null,null,null,null,null,null,null,null,null,null,""]
[null,null,null,null,null,null,null,null,null,null,""]
[null,null,null,null,null,null,null,null,null,null,{"$f":"IF(OR(I4168=\"\",J4168=\"\"),\"\",PRODUCT(I4168,J4168))","v":""}]
[null,null,null,null,null,null,null,null,null,null,""]
[null,null,null,null,null,null,null,null,null,null,""]
[null,null,null,null,null,null,null,null,null,null,""]
[null,null,null,null,null,null,null,null,null,null,""]
[null,null,null,null,null,null,null,null,null,null,""]
[null,null,null,null,null,null,null,null,null,null,""]
[null,null,null,null,null,null,null,null,null,null,""]
[null,null,null,null,null,null,null,null,null,null,""]
[null,null,null,null,null,null,null,null,null,null,""]
[null,null,null,null,null,null,null,null,null,null,""]
[null,null,null,null,null,null,null,null,null,null,""]
[null,null,null,null,null,null,null,null,null,null,""]
[null,null,null,null,null,null,null,null,null,null,""]
[null,null,null,null,null,null,null,null,null,null,""]
[null,null,null,null,null,null,null,null,null,null,""]
[null,null,null,null,null,null,null,null,null,null,""]
[null,null,null,null,null,null,null,null,null,null,""]
[null,null,null,null,null,null,null,null,null,null,""]
[null,null,null,null,null,null,null,null,null,null,""]
[null,null,null,null,null,null,null,null,null,null,""]
[null,null,null,null,null,null,null,null,null,null,""]
[null,null,null,null,null,null,null,null,null,null,""]
[null,null,null,null,null,null,null,null,null,null,""]
[null,null,null,null,null,null,null,null,null,null,""]
[null,null,null,null,null,null,null,null,null,null,""]
[null,null,null,null,null,null,null,null,null,null,""]
[null,null,null,null,null,null,null,null,null,null,""]
[null,null,null,null,null,null,null,null,null,null,""]
[null,null,null,null,null,null,null,null,null,null,""]
[null,null,null,null,null,null,null,null,null,null,""]
[null,null,null,null,null,null,null,null,null,null,""]
[null,null,null,null,null,null,null,null,null,null,""]
[null,null,null,null,null,null,null,null,null,null,""]
[null,null,null,null,null,null,null,null,null,null,""]
[null,null,null,null,null,null,null,null,null,null,""]
[null,null,null,null,null,null,null,null,null,null,""]
[null,null,null,null,null,null,null,null,null,null,""]
[null,null,null,null,null,null,null,null,null,null,""]
[null,null,null,null,null,null,null,null,null,null,""]
[null,null,null,null,null,null,null,null,null,null,""]
[null,null,null,null,null,null,null,null,null,null,""]
[null,null,null,null,null,null,null,null,null,null,""]
[null,null,null,null,null,null,null,null,null,null,""]
[null,null,null,null,null,null,null,null,null,null,""]
[null,null,null,null,null,null,null,null,null,null,""]
[null,null,null,null,null,null,null,null,null,null,""]
[null,null,null,null,null,null,null,null,null,null,""]
[null,null,null,null,null,null,null,null,null,null,""]
[null,null,null,null,null,null,null,null,null,null,""]
[null,null,null,null,null,null,null,null,null,null,""]
[null,null,null,null,null,null,null,null,null,null,""]
[null,null,null,null,null,null,null,null,null,null,""]
[null,null,null,null,null,null,null,null,null,null,""]
[null,null,null,null,null,null,null,null,null,null,""]
[null,null,null,null,null,null,null,null,null,null,""]
[null,null,null,null,null,null,null,null,null,null,""]
[null,null,null,null,null,null,null,null,null,null,""]
[null,null,null,null,null,null,null,null,null,null,""]
[null,null,null,null,null,null,null,null,null,null,""]
[null,null,null,null,null,null,null,null,null,null,""]
[null,null,null,null,null,null,null,null,null,null,""]
[null,null,null,null,null,null,null,null,null,null,""]
[null,null,null,null,null,null,null,null,null,null,""]
[null,null,null,null,null,null,null,null,null,null,{"$f":"IF(OR(I4232=\"\",J4232=\"\"),\"\",PRODUCT(I4232,J4232))","v":""}]
[null,null,null,null,null,null,null,null,null,null,""]
[null,null,null,null,null,null,null,null,null,null,""]
[null,null,null,null,null,null,null,null,null,null,""]
[null,null,null,null,null,null,null,null,null,null,""]
[null,null,null,null,null,null,null,null,null,null,""]
[null,null,null,null,null,null,null,null,null,null,""]
[null,null,null,null,null,null,null,null,null,null,""]
[null,null,null,null,null,null,null,null,null,null,""]
[null,null,null,null,null,null,null,null,null,null,""]
[null,null,null,null,null,null,null,null,null,null,""]
[null,null,null,null,null,null,null,null,null,null,""]
[null,null,null,null,null,null,null,null,null,null,""]
[null,null,null,null,null,null,null,null,null,null,""]
[null,null,null,null,null,null,null,null,null,null,""]
[null,null,null,null,null,null,null,null,null,null,""]
[null,null,null,null,null,null,null,null,null,null,""]
[null,null,null,null,null,null,null,null,null,null,""]
[null,null,null,null,null,null,null,null,null,null,""]
[null,null,null,null,null,null,null,null,null,null,""]
[null,null,null,null,null,null,null,null,null,null,""]
[null,null,null,null,null,null,null,null,null,null,""]
[null,null,null,null,null,null,null,null,null,null,""]
[null,null,null,null,null,null,null,null,null,null,""]
[null,null,null,null,null,null,null,null,null,null,""]
[null,null,null,null,null,null,null,null,null,null,""]
[null,null,null,null,null,null,null,null,null,null,""]
[null,null,null,null,null,null,null,null,null,null,""]
[null,null,null,null,null,null,null,null,null,null,""]
[null,null,null,null,null,null,null,null,null,null,""]
[null,null,null,null,null,null,null,null,null,null,""]
[null,null,null,null,null,null,null,null,null,null,""]
[null,null,null,null,null,null,null,null,null,null,""]
[null,null,null,null,null,null,null,null,null,null,""]
[null,null,null,null,null,null,null,null,null,null,""]
[null,null,null,null,null,null,null,null,null,null,""]
[null,null,null,null,null,null,null,null,null,null,""]
[null,null,null,null,null,null,null,null,null,null,""]
[null,null,null,null,null,null,null,null,null,null,""]
[null,null,null,null,null,null,null,null,null,null,""]
[null,null,null,null,null,null,null,null,null,null,""]
[null,null,null,null,null,null,null,null,null,null,""]
[null,null,null,null,null,null,null,null,null,null,""]
[null,null,null,null,null,null,null,null,null,null,""]
[null,null,null,null,null,null,null,null,null,null,""]
[null,null,null,null,null,null,null,null,null,null,""]
[null,null,null,null,null,null,null,null,null,null,""]
[null,null,null,null,null,null,null,null,null,null,""]
[null,null,null,null,null,null,null,null,null,null,""]
[null,null,null,null,null,null,null,null,null,null,""]
[null,null,null,null,null,null,null,null,null,null,""]
[null,null,null,null,null,null,null,null,null,null,""]
[null,null,null,null,null,null,null,null,null,null,""]
[null,null,null,null,null,null,null,null,null,null,""]
[null,null,null,null,null,null,null,null,null,null,""]
[null,null,null,null,null,null,null,null,null,null,""]
[null,null,null,null,null,null,null,null,null,null,""]
[null,null,null,null,null,null,null,null,null,null,""]
[null,null,null,null,null,null,null,null,null,null,""]
[null,null,null,null,null,null,null,null,null,null,""]
[null,null,null,null,null,null,null,null,null,null,""]
[null,null,null,null,null,null,null,null,null,null,""]
[null,null,null,null,null,null,null,null,null,null,""]
[null,null,null,null,null,null,null,null,null,null,""]
[null,null,null,null,null,null,null,null,null,null,{"$f":"IF(OR(I4296=\"\",J4296=\"\"),\"\",PRODUCT(I4296,J4296))","v":""}]
[null,null,null,null,null,null,null,null,null,null,""]
[null,null,null,null,null,null,null,null,null,null,""]
[null,null,null,null,null,null,null,null,null,null,""]
[null,null,null,null,null,null,null,null,null,null,""]
[null,null,null,null,null,null,null,null,null,null,""]
[null,null,null,null,null,null,null,null,null,null,""]
[null,null,null,null,null,null,null,null,null,null,""]
[null,null,null,null,null,null,null,null,null,null,""]
[null,null,null,null,null,null,null,null,null,null,""]
[null,null,null,null,null,null,null,null,null,null,""]
[null,null,null,null,null,null,null,null,null,null,""]
[null,null,null,null,null,null,null,null,null,null,""]
[null,null,null,null,null,null,null,null,null,null,""]
[null,null,null,null,null,null,null,null,null,null,""]
[null,null,null,null,null,null,null,null,null,null,""]
[null,null,null,null,null,null,null,null,null,null,""]
[null,null,null,null,null,null,null,null,null,null,""]
[null,null,null,null,null,null,null,null,null,null,""]
[null,null,null,null,null,null,null,null,null,null,""]
[null,null,null,null,null,null,null,null,null,null,""]
[null,null,null,null,null,null,null,null,null,null,""]
[null,null,null,null,null,null,null,null,null,null,""]
[null,null,null,null,null,null,null,null,null,null,""]
[null,null,null,null,null,null,null,null,null,null,""]
[null,null,null,null,null,null,null,null,null,null,""]
[null,null,null,null,null,null,null,null,null,null,""]
[null,null,null,null,null,null,null,null,null,null,""]
[null,null,null,null,null,null,null,null,null,null,""]
[null,null,null,null,null,null,null,null,null,null,""]
[null,null,null,null,null,null,null,null,null,null,""]
[null,null,null,null,null,null,null,null,null,null,""]
[null,null,null,null,null,null,null,null,null,null,""]
[null,null,null,null,null,null,null,null,null,null,""]
[null,null,null,null,null,null,null,null,null,null,""]
[null,null,null,null,null,null,null,null,null,null,""]
[null,null,null,null,null,null,null,null,null,null,""]
[null,null,null,null,null,null,null,null,null,null,""]
[null,null,null,null,null,null,null,null,null,null,""]
[null,null,null,null,null,null,null,null,null,null,""]
[null,null,null,null,null,null,null,null,null,null,""]
[null,null,null,null,null,null,null,null,null,null,""]
[null,null,null,null,null,null,null,null,null,null,""]
[null,null,null,null,null,null,null,null,null,null,""]
[null,null,null,null,null,null,null,null,null,null,""]
[null,null,null,null,null,null,null,null,null,null,""]
[null,null,null,null,null,null,null,null,null,null,""]
[null,null,null,null,null,null,null,null,null,null,""]
[null,null,null,null,null,null,null,null,null,null,""]
[null,null,null,null,null,null,null,null,null,null,""]
[null,null,null,null,null,null,null,null,null,null,""]
[null,null,null,null,null,null,null,null,null,null,""]
[null,null,null,null,null,null,null,null,null,null,""]
[null,null,null,null,null,null,null,null,null,null,""]
[null,null,null,null,null,null,null,null,null,null,""]
[null,null,null,null,null,null,null,null,null,null,""]
[null,null,null,null,null,null,null,null,null,null,""]
[null,null,null,null,null,null,null,null,null,null,""]
[null,null,null,null,null,null,null,null,null,null,""]
[null,null,null,null,null,null,null,null,null,null,""]
[null,null,null,null,null,null,null,null,null,null,""]
[null,null,null,null,null,null,null,null,null,null,""]
[null,null,null,null,null,null,null,null,null,null,""]
[null,null,null,null,null,null,null,null,null,null,""]
[null,null,null,null,null,null,null,null,null,null,{"$f":"IF(OR(I4360=\"\",J4360=\"\"),\"\",PRODUCT(I4360,J4360))","v":""}]
[null,null,null,null,null,null,null,null,null,null,""]
[null,null,null,null,null,null,null,null,null,null,""]
[null,null,null,null,null,null,null,null,null,null,""]
[null,null,null,null,null,null,null,null,null,null,""]
[null,null,null,null,null,null,null,null,null,null,""]
[null,null,null,null,null,null,null,null,null,null,""]
[null,null,null,null,null,null,null,null,null,null,""]
[null,null,null,null,null,null,null,null,null,null,""]
[null,null,null,null,null,null,null,null,null,null,""]
[null,null,null,null,null,null,null,null,null,null,""]
[null,null,null,null,null,null,null,null,null,null,""]
[null,null,null,null,null,null,null,null,null,null,""]
[null,null,null,null,null,null,null,null,null,null,""]
[null,null,null,null,null,null,null,null,null,null,""]
[null,null,null,null,null,null,null,null,null,null,""]
[null,null,null,null,null,null,null,null,null,null,""]
[null,null,null,null,null,null,null,null,null,null,""]
[null,null,null,null,null,null,null,null,null,null,""]
[null,null,null,null,null,null,null,null,null,null,""]
[null,null,null,null,null,null,null,null,null,null,""]
[null,null,null,null,null,null,null,null,null,null,""]
[null,null,null,null,null,null,null,null,null,null,""]
[null,null,null,null,null,null,null,null,null,null,""]
[null,null,null,null,null,null,null,null,null,null,""]
[null,null,null,null,null,null,null,null,null,null,""]
[null,null,null,null,null,null,null,null,null,null,""]
[null,null,null,null,null,null,null,null,null,null,""]
[null,null,null,null,null,null,null,null,null,null,""]
[null,null,null,null,null,null,null,null,null,null,""]
[null,null,null,null,null,null,null,null,null,null,""]
[null,null,null,null,null,null,null,null,null,null,""]
[null,null,null,null,null,null,null,null,null,null,""]
[null,null,null,null,null,null,null,null,null,null,""]
[null,null,null,null,null,null,null,null,null,null,""]
[null,null,null,null,null,null,null,null,null,null,""]
[null,null,null,null,null,null,null,null,null,null,""]
[null,null,null,null,null,null,null,null,null,null,""]
[null,null,null,null,null,null,null,null,null,null,""]
[null,null,null,null,null,null,null,null,null,null,""]
[null,null,null,null,null,null,null,null,null,null,""]
[null,null,null,null,null,null,null,null,null,null,""]
[null,null,null,null,null,null,null,null,null,null,""]
[null,null,null,null,null,null,null,null,null,null,""]
[null,null,null,null,null,null,null,null,null,null,""]
[null,null,null,null,null,null,null,null,null,null,""]
[null,null,null,null,null,null,null,null,null,null,""]
[null,null,null,null,null,null,null,null,null,null,""]
[null,null,null,null,null,null,null,null,null,null,""]
[null,null,null,null,null,null,null,null,null,null,""]
[null,null,null,null,null,null,null,null,null,null,""]
[null,null,null,null,null,null,null,null,null,null,""]
[null,null,null,null,null,null,null,null,null,null,""]
[null,null,null,null,null,null,null,null,null,null,""]
[null,null,null,null,null,null,null,null,null,null,""]
[null,null,null,null,null,null,null,null,null,null,""]
[null,null,null,null,null,null,null,null,null,null,""]
[null,null,null,null,null,null,null,null,null,null,""]
[null,null,null,null,null,null,null,null,null,null,""]
[null,null,null,null,null,null,null,null,null,null,""]
[null,null,null,null,null,null,null,null,null,null,""]
[null,null,null,null,null,null,null,null,null,null,""]
[null,null,null,null,null,null,null,null,null,null,""]
[null,null,null,null,null,null,null,null,null,null,""]
[null,null,null,null,null,null,null,null,null,null,{"$f":"IF(OR(I4424=\"\",J4424=\"\"),\"\",PRODUCT(I4424,J4424))","v":""}]
[null,null,null,null,null,null,null,null,null,null,""]
[null,null,null,null,null,null,null,null,null,null,""]
[null,null,null,null,null,null,null,null,null,null,""]
[null,null,null,null,null,null,null,null,null,null,""]
[null,null,null,null,null,null,null,null,null,null,""]
[null,null,null,null,null,null,null,null,null,null,""]
[null,null,null,null,null,null,null,null,null,null,""]
[null,null,null,null,null,null,null,null,null,null,""]
[null,null,null,null,null,null,null,null,null,null,""]
[null,null,null,null,null,null,null,null,null,null,""]
[null,null,null,null,null,null,null,null,null,null,""]
[null,null,null,null,null,null,null,null,null,null,""]
[null,null,null,null,null,null,null,null,null,null,""]
[null,null,null,null,null,null,null,null,null,null,""]
[null,null,null,null,null,null,null,null,null,null,""]
[null,null,null,null,null,null,null,null,null,null,""]
[null,null,null,null,null,null,null,null,null,null,""]
[null,null,null,null,null,null,null,null,null,null,""]
[null,null,null,null,null,null,null,null,null,null,""]
[null,null,null,null,null,null,null,null,null,null,""]
[null,null,null,null,null,null,null,null,null,null,""]
[null,null,null,null,null,null,null,null,null,null,""]
[null,null,null,null,null,null,null,null,null,null,""]
[null,null,null,null,null,null,null,null,null,null,""]
[null,null,null,null,null,null,null,null,null,null,""]
[null,null,null,null,null,null,null,null,null,null,""]
[null,null,null,null,null,null,null,null,null,null,""]
[null,null,null,null,null,null,null,null,null,null,""]
[null,null,null,null,null,null,null,null,null,null,""]
[null,null,null,null,null,null,null,null,null,null,""]
[null,null,null,null,null,null,null,null,null,null,""]
[null,null,null,null,null,null,null,null,null,null,""]
[null,null,null,null,null,null,null,null,null,null,""]
[null,null,null,null,null,null,null,null,null,null,""]
[null,null,null,null,null,null,null,null,null,null,""]
[null,null,null,null,null,null,null,null,null,null,""]
[null,null,null,null,null,null,null,null,null,null,""]
[null,null,null,null,null,null,null,null,null,null,""]
[null,null,null,null,null,null,null,null,null,null,""]
[null,null,null,null,null,null,null,null,null,null,""]
[null,null,null,null,null,null,null,null,null,null,""]
[null,null,null,null,null,null,null,null,null,null,""]
[null,null,null,null,null,null,null,null,null,null,""]
[null,null,null,null,null,null,null,null,null,null,""]
[null,null,null,null,null,null,null,null,null,null,""]
[null,null,null,null,null,null,null,null,null,null,""]
[null,null,null,null,null,null,null,null,null,null,""]
[null,null,null,null,null,null,null,null,null,null,""]
[null,null,null,null,null,null,null,null,null,null,""]
[null,null,null,null,null,null,null,null,null,null,""]
[null,null,null,null,null,null,null,null,null,null,""]
[null,null,null,null,null,null,null,null,null,null,""]
[null,null,null,null,null,null,null,null,null,null,""]
[null,null,null,null,null,null,null,null,null,null,""]
[null,null,null,null,null,null,null,null,null,null,""]
[null,null,null,null,null,null,null,null,null,null,""]
[null,null,null,null,null,null,null,null,null,null,""]
[null,null,null,null,null,null,null,null,null,null,""]
[null,null,null,null,null,null,null,null,null,null,""]
[null,null,null,null,null,null,null,null,null,null,""]
[null,null,null,null,null,null,null,null,null,null,""]
[null,null,null,null,null,null,null,null,null,null,""]
[null,null,null,null,null,null,null,null,null,null,""]
[null,null,null,null,null,null,null,null,null,null,{"$f":"IF(OR(I4488=\"\",J4488=\"\"),\"\",PRODUCT(I4488,J4488))","v":""}]
[null,null,null,null,null,null,null,null,null,null,""]
[null,null,null,null,null,null,null,null,null,null,""]
[null,null,null,null,null,null,null,null,null,null,""]
[null,null,null,null,null,null,null,null,null,null,""]
[null,null,null,null,null,null,null,null,null,null,""]
[null,null,null,null,null,null,null,null,null,null,""]
[null,null,null,null,null,null,null,null,null,null,""]
[null,null,null,null,null,null,null,null,null,null,""]
[null,null,null,null,null,null,null,null,null,null,""]
[null,null,null,null,null,null,null,null,null,null,""]
[null,null,null,null,null,null,null,null,null,null,""]
[null,null,null,null,null,null,null,null,null,null,""]
[null,null,null,null,null,null,null,null,null,null,""]
[null,null,null,null,null,null,null,null,null,null,""]
[null,null,null,null,null,null,null,null,null,null,""]
[null,null,null,null,null,null,null,null,null,null,""]
[null,null,null,null,null,null,null,null,null,null,""]
[null,null,null,null,null,null,null,null,null,null,""]
[null,null,null,null,null,null,null,null,null,null,""]
[null,null,null,null,null,null,null,null,null,null,""]
[null,null,null,null,null,null,null,null,null,null,""]
[null,null,null,null,null,null,null,null,null,null,""]
[null,null,null,null,null,null,null,null,null,null,""]
[null,null,null,null,null,null,null,null,null,null,""]
[null,null,null,null,null,null,null,null,null,null,""]
[null,null,null,null,null,null,null,null,null,null,""]
[null,null,null,null,null,null,null,null,null,null,""]
[null,null,null,null,null,null,null,null,null,null,""]
[null,null,null,null,null,null,null,null,null,null,""]
[null,null,null,null,null,null,null,null,null,null,""]
[null,null,null,null,null,null,null,null,null,null,""]
[null,null,null,null,null,null,null,null,null,null,""]
[null,null,null,null,null,null,null,null,null,null,""]
[null,null,null,null,null,null,null,null,null,null,""]
[null,null,null,null,null,null,null,null,null,null,""]
[null,null,null,null,null,null,null,null,null,null,""]
[null,null,null,null,null,null,null,null,null,null,""]
[null,null,null,null,null,null,null,null,null,null,""]
[null,null,null,null,null,null,null,null,null,null,""]
[null,null,null,null,null,null,null,null,null,null,""]
[null,null,null,null,null,null,null,null,null,null,""]
[null,null,null,null,null,null,null,null,null,null,""]
[null,null,null,null,null,null,null,null,null,null,""]
[null,null,null,null,null,null,null,null,null,null,""]
[null,null,null,null,null,null,null,null,null,null,""]
[null,null,null,null,null,null,null,null,null,null,""]
[null,null,null,null,null,null,null,null,null,null,""]
[null,null,null,null,null,null,null,null,null,null,""]
[null,null,null,null,null,null,null,null,null,null,""]
[null,null,null,null,null,null,null,null,null,null,""]
[null,null,null,null,null,null,null,null,null,null,""]
[null,null,null,null,null,null,null,null,null,null,""]
[null,null,null,null,null,null,null,null,null,null,""]
[null,null,null,null,null,null,null,null,null,null,""]
[null,null,null,null,null,null,null,null,null,null,""]
[null,null,null,null,null,null,null,null,null,null,""]
[null,null,null,null,null,null,null,null,null,null,""]
[null,null,null,null,null,null,null,null,null,null,""]
[null,null,null,null,null,null,null,null,null,null,""]
[null,null,null,null,null,null,null,null,null,null,""]
[null,null,null,null,null,null,null,null,null,null,""]
[null,null,null,null,null,null,null,null,null,null,""]
[null,null,null,null,null,null,null,null,null,null,""]
[null,null,null,null,null,null,null,null,null,null,{"$f":"IF(OR(I4552=\"\",J4552=\"\"),\"\",PRODUCT(I4552,J4552))","v":""}]
[null,null,null,null,null,null,null,null,null,null,""]
[null,null,null,null,null,null,null,null,null,null,""]
[null,null,null,null,null,null,null,null,null,null,""]
[null,null,null,null,null,null,null,null,null,null,""]
[null,null,null,null,null,null,null,null,null,null,""]
[null,null,null,null,null,null,null,null,null,null,""]
[null,null,null,null,null,null,null,null,null,null,""]
[null,null,null,null,null,null,null,null,null,null,""]
[null,null,null,null,null,null,null,null,null,null,""]
[null,null,null,null,null,null,null,null,null,null,""]
[null,null,null,null,null,null,null,null,null,null,""]
[null,null,null,null,null,null,null,null,null,null,""]
[null,null,null,null,null,null,null,null,null,null,""]
[null,null,null,null,null,null,null,null,null,null,""]
[null,null,null,null,null,null,null,null,null,null,""]
[null,null,null,null,null,null,null,null,null,null,""]
[null,null,null,null,null,null,null,null,null,null,""]
[null,null,null,null,null,null,null,null,null,null,""]
[null,null,null,null,null,null,null,null,null,null,""]
[null,null,null,null,null,null,null,null,null,null,""]
[null,null,null,null,null,null,null,null,null,null,""]
[null,null,null,null,null,null,null,null,null,null,""]
[null,null,null,null,null,null,null,null,null,null,""]
[null,null,null,null,null,null,null,null,null,null,""]
[null,null,null,null,null,null,null,null,null,null,""]
[null,null,null,null,null,null,null,null,null,null,""]
[null,null,null,null,null,null,null,null,null,null,""]
[null,null,null,null,null,null,null,null,null,null,""]
[null,null,null,null,null,null,null,null,null,null,""]
[null,null,null,null,null,null,null,null,null,null,""]
[null,null,null,null,null,null,null,null,null,null,""]
[null,null,null,null,null,null,null,null,null,null,""]
[null,null,null,null,null,null,null,null,null,null,""]
[null,null,null,null,null,null,null,null,null,null,""]
[null,null,null,null,null,null,null,null,null,null,""]
[null,null,null,null,null,null,null,null,null,null,""]
[null,null,null,null,null,null,null,null,null,null,""]
[null,null,null,null,null,null,null,null,null,null,""]
[null,null,null,null,null,null,null,null,null,null,""]
[null,null,null,null,null,null,null,null,null,null,""]
[null,null,null,null,null,null,null,null,null,null,""]
[null,null,null,null,null,null,null,null,null,null,""]
[null,null,null,null,null,null,null,null,null,null,""]
[null,null,null,null,null,null,null,null,null,null,""]
[null,null,null,null,null,null,null,null,null,null,""]
[null,null,null,null,null,null,null,null,null,null,""]
[null,null,null,null,null,null,null,null,null,null,""]
[null,null,null,null,null,null,null,null,null,null,""]
[null,null,null,null,null,null,null,null,null,null,""]
[null,null,null,null,null,null,null,null,null,null,""]
[null,null,null,null,null,null,null,null,null,null,""]
[null,null,null,null,null,null,null,null,null,null,""]
[null,null,null,null,null,null,null,null,null,null,""]
[null,null,null,null,null,null,null,null,null,null,""]
[null,null,null,null,null,null,null,null,null,null,""]
[null,null,null,null,null,null,null,null,null,null,""]
[null,null,null,null,null,null,null,null,null,null,""]
[null,null,null,null,null,null,null,null,null,null,""]
[null,null,null,null,null,null,null,null,null,null,""]
[null,null,null,null,null,null,null,null,null,null,""]
[null,null,null,null,null,null,null,null,null,null,""]
[null,null,null,null,null,null,null,null,null,null,""]
[null,null,null,null,null,null,null,null,null,null,""]
[null,null,null,null,null,null,null,null,null,null,{"$f":"IF(OR(I4616=\"\",J4616=\"\"),\"\",PRODUCT(I4616,J4616))","v":""}]
[null,null,null,null,null,null,null,null,null,null,""]
[null,null,null,null,null,null,null,null,null,null,""]
[null,null,null,null,null,null,null,null,null,null,""]
[null,null,null,null,null,null,null,null,null,null,""]
[null,null,null,null,null,null,null,null,null,null,""]
[null,null,null,null,null,null,null,null,null,null,""]
[null,null,null,null,null,null,null,null,null,null,""]
[null,null,null,null,null,null,null,null,null,null,""]
[null,null,null,null,null,null,null,null,null,null,""]
[null,null,null,null,null,null,null,null,null,null,""]
[null,null,null,null,null,null,null,null,null,null,""]
[null,null,null,null,null,null,null,null,null,null,""]
[null,null,null,null,null,null,null,null,null,null,""]
[null,null,null,null,null,null,null,null,null,null,""]
[null,null,null,null,null,null,null,null,null,null,""]
[null,null,null,null,null,null,null,null,null,null,""]
[null,null,null,null,null,null,null,null,null,null,""]
[null,null,null,null,null,null,null,null,null,null,""]
[null,null,null,null,null,null,null,null,null,null,""]
[null,null,null,null,null,null,null,null,null,null,""]
[null,null,null,null,null,null,null,null,null,null,""]
[null,null,null,null,null,null,null,null,null,null,""]
[null,null,null,null,null,null,null,null,null,null,""]
[null,null,null,null,null,null,null,null,null,null,""]
[null,null,null,null,null,null,null,null,null,null,""]
[null,null,null,null,null,null,null,null,null,null,""]
[null,null,null,null,null,null,null,null,null,null,""]
[null,null,null,null,null,null,null,null,null,null,""]
[null,null,null,null,null,null,null,null,null,null,""]
[null,null,null,null,null,null,null,null,null,null,""]
[null,null,null,null,null,null,null,null,null,null,""]
[null,null,null,null,null,null,null,null,null,null,""]
[null,null,null,null,null,null,null,null,null,null,""]
[null,null,null,null,null,null,null,null,null,null,""]
[null,null,null,null,null,null,null,null,null,null,""]
[null,null,null,null,null,null,null,null,null,null,""]
[null,null,null,null,null,null,null,null,null,null,""]
[null,null,null,null,null,null,null,null,null,null,""]
[null,null,null,null,null,null,null,null,null,null,""]
[null,null,null,null,null,null,null,null,null,null,""]
[null,null,null,null,null,null,null,null,null,null,""]
[null,null,null,null,null,null,null,null,null,null,""]
[null,null,null,null,null,null,null,null,null,null,""]
[null,null,null,null,null,null,null,null,null,null,""]
[null,null,null,null,null,null,null,null,null,null,""]
[null,null,null,null,null,null,null,null,null,null,""]
[null,null,null,null,null,null,null,null,null,null,""]
[null,null,null,null,null,null,null,null,null,null,""]
[null,null,null,null,null,null,null,null,null,null,""]
[null,null,null,null,null,null,null,null,null,null,""]
[null,null,null,null,null,null,null,null,null,null,""]
[null,null,null,null,null,null,null,null,null,null,""]
[null,null,null,null,null,null,null,null,null,null,""]
[null,null,null,null,null,null,null,null,null,null,""]
[null,null,null,null,null,null,null,null,null,null,""]
[null,null,null,null,null,null,null,null,null,null,""]
[null,null,null,null,null,null,null,null,null,null,""]
[null,null,null,null,null,null,null,null,null,null,""]
[null,null,null,null,null,null,null,null,null,null,""]
[null,null,null,null,null,null,null,null,null,null,""]
[null,null,null,null,null,null,null,null,null,null,""]
[null,null,null,null,null,null,null,null,null,null,""]
[null,null,null,null,null,null,null,null,null,null,""]
[null,null,null,null,null,null,null,null,null,null,{"$f":"IF(OR(I4680=\"\",J4680=\"\"),\"\",PRODUCT(I4680,J4680))","v":""}]
[null,null,null,null,null,null,null,null,null,null,""]
[null,null,null,null,null,null,null,null,null,null,""]
[null,null,null,null,null,null,null,null,null,null,""]
[null,null,null,null,null,null,null,null,null,null,""]
[null,null,null,null,null,null,null,null,null,null,""]
[null,null,null,null,null,null,null,null,null,null,""]
[null,null,null,null,null,null,null,null,null,null,""]
[null,null,null,null,null,null,null,null,null,null,""]
[null,null,null,null,null,null,null,null,null,null,""]
[null,null,null,null,null,null,null,null,null,null,""]
[null,null,null,null,null,null,null,null,null,null,""]
[null,null,null,null,null,null,null,null,null,null,""]
[null,null,null,null,null,null,null,null,null,null,""]
[null,null,null,null,null,null,null,null,null,null,""]
[null,null,null,null,null,null,null,null,null,null,""]
[null,null,null,null,null,null,null,null,null,null,""]
[null,null,null,null,null,null,null,null,null,null,""]
[null,null,null,null,null,null,null,null,null,null,""]
[null,null,null,null,null,null,null,null,null,null,""]
[null,null,null,null,null,null,null,null,null,null,""]
[null,null,null,null,null,null,null,null,null,null,""]
[null,null,null,null,null,null,null,null,null,null,""]
[null,null,null,null,null,null,null,null,null,null,""]
[null,null,null,null,null,null,null,null,null,null,""]
[null,null,null,null,null,null,null,null,null,null,""]
[null,null,null,null,null,null,null,null,null,null,""]
[null,null,null,null,null,null,null,null,null,null,""]
[null,null,null,null,null,null,null,null,null,null,""]
[null,null,null,null,null,null,null,null,null,null,""]
[null,null,null,null,null,null,null,null,null,null,""]
[null,null,null,null,null,null,null,null,null,null,""]
[null,null,null,null,null,null,null,null,null,null,""]
[null,null,null,null,null,null,null,null,null,null,""]
[null,null,null,null,null,null,null,null,null,null,""]
[null,null,null,null,null,null,null,null,null,null,""]
[null,null,null,null,null,null,null,null,null,null,""]
[null,null,null,null,null,null,null,null,null,null,""]
[null,null,null,null,null,null,null,null,null,null,""]
[null,null,null,null,null,null,null,null,null,null,""]
[null,null,null,null,null,null,null,null,null,null,""]
[null,null,null,null,null,null,null,null,null,null,""]
[null,null,null,null,null,null,null,null,null,null,""]
[null,null,null,null,null,null,null,null,null,null,""]
[null,null,null,null,null,null,null,null,null,null,""]
[null,null,null,null,null,null,null,null,null,null,""]
[null,null,null,null,null,null,null,null,null,null,""]
[null,null,null,null,null,null,null,null,null,null,""]
[null,null,null,null,null,null,null,null,null,null,""]
[null,null,null,null,null,null,null,null,null,null,""]
[null,null,null,null,null,null,null,null,null,null,""]
[null,null,null,null,null,null,null,null,null,null,""]
[null,null,null,null,null,null,null,null,null,null,""]
[null,null,null,null,null,null,null,null,null,null,""]
[null,null,null,null,null,null,null,null,null,null,""]
[null,null,null,null,null,null,null,null,null,null,""]
[null,null,null,null,null,null,null,null,null,null,""]
[null,null,null,null,null,null,null,null,null,null,""]
[null,null,null,null,null,null,null,null,null,null,""]
[null,null,null,null,null,null,null,null,null,null,""]
[null,null,null,null,null,null,null,null,null,null,""]
[null,null,null,null,null,null,null,null,null,null,""]
[null,null,null,null,null,null,null,null,null,null,""]
[null,null,null,null,null,null,null,null,null,null,""]
[null,null,null,null,null,null,null,null,null,null,{"$f":"IF(OR(I4744=\"\",J4744=\"\"),\"\",PRODUCT(I4744,J4744))","v":""}]
[null,null,null,null,null,null,null,null,null,null,""]
[null,null,null,null,null,null,null,null,null,null,""]
[null,null,null,null,null,null,null,null,null,null,""]
[null,null,null,null,null,null,null,null,null,null,""]
[null,null,null,null,null,null,null,null,null,null,""]
[null,null,null,null,null,null,null,null,null,null,""]
[null,null,null,null,null,null,null,null,null,null,""]
[null,null,null,null,null,null,null,null,null,null,""]
[null,null,null,null,null,null,null,null,null,null,""]
[null,null,null,null,null,null,null,null,null,null,""]
[null,null,null,null,null,null,null,null,null,null,""]
[null,null,null,null,null,null,null,null,null,null,""]
[null,null,null,null,null,null,null,null,null,null,""]
[null,null,null,null,null,null,null,null,null,null,""]
[null,null,null,null,null,null,null,null,null,null,""]
[null,null,null,null,null,null,null,null,null,null,""]
[null,null,null,null,null,null,null,null,null,null,""]
[null,null,null,null,null,null,null,null,null,null,""]
[null,null,null,null,null,null,null,null,null,null,""]
[null,null,null,null,null,null,null,null,null,null,""]
[null,null,null,null,null,null,null,null,null,null,""]
[null,null,null,null,null,null,null,null,null,null,""]
[null,null,null,null,null,null,null,null,null,null,""]
[null,null,null,null,null,null,null,null,null,null,""]
[null,null,null,null,null,null,null,null,null,null,""]
[null,null,null,null,null,null,null,null,null,null,""]
[null,null,null,null,null,null,null,null,null,null,""]
[null,null,null,null,null,null,null,null,null,null,""]
[null,null,null,null,null,null,null,null,null,null,""]
[null,null,null,null,null,null,null,null,null,null,""]
[null,null,null,null,null,null,null,null,null,null,""]
[null,null,null,null,null,null,null,null,null,null,""]
[null,null,null,null,null,null,null,null,null,null,""]
[null,null,null,null,null,null,null,null,null,null,""]
[null,null,null,null,null,null,null,null,null,null,""]
[null,null,null,null,null,null,null,null,null,null,""]
[null,null,null,null,null,null,null,null,null,null,""]
[null,null,null,null,null,null,null,null,null,null,""]
[null,null,null,null,null,null,null,null,null,null,""]
[null,null,null,null,null,null,null,null,null,null,""]
[null,null,null,null,null,null,null,null,null,null,""]
[null,null,null,null,null,null,null,null,null,null,""]
[null,null,null,null,null,null,null,null,null,null,""]
[null,null,null,null,null,null,null,null,null,null,""]
[null,null,null,null,null,null,null,null,null,null,""]
[null,null,null,null,null,null,null,null,null,null,""]
[null,null,null,null,null,null,null,null,null,null,""]
[null,null,null,null,null,null,null,null,null,null,""]
[null,null,null,null,null,null,null,null,null,null,""]
[null,null,null,null,null,null,null,null,null,null,""]
[null,null,null,null,null,null,null,null,null,null,""]
[null,null,null,null,null,null,null,null,null,null,""]
[null,null,null,null,null,null,null,null,null,null,""]
[null,null,null,null,null,null,null,null,null,null,""]
[null,null,null,null,null,null,null,null,null,null,""]
[null,null,null,null,null,null,null,null,null,null,""]
[null,null,null,null,null,null,null,null,null,null,""]
[null,null,null,null,null,null,null,null,null,null,""]
[null,null,null,null,null,null,null,null,null,null,""]
[null,null,null,null,null,null,null,null,null,null,""]
[null,null,null,null,null,null,null,null,null,null,""]
[null,null,null,null,null,null,null,null,null,null,""]
[null,null,null,null,null,null,null,null,null,null,""]
[null,null,null,null,null,null,null,null,null,null,{"$f":"IF(OR(I4808=\"\",J4808=\"\"),\"\",PRODUCT(I4808,J4808))","v":""}]
[null,null,null,null,null,null,null,null,null,null,""]
[null,null,null,null,null,null,null,null,null,null,""]
[null,null,null,null,null,null,null,null,null,null,""]
[null,null,null,null,null,null,null,null,null,null,""]
[null,null,null,null,null,null,null,null,null,null,""]
[null,null,null,null,null,null,null,null,null,null,""]
[null,null,null,null,null,null,null,null,null,null,""]
[null,null,null,null,null,null,null,null,null,null,""]
[null,null,null,null,null,null,null,null,null,null,""]
[null,null,null,null,null,null,null,null,null,null,""]
[null,null,null,null,null,null,null,null,null,null,""]
[null,null,null,null,null,null,null,null,null,null,""]
[null,null,null,null,null,null,null,null,null,null,""]
[null,null,null,null,null,null,null,null,null,null,""]
[null,null,null,null,null,null,null,null,null,null,""]
[null,null,null,null,null,null,null,null,null,null,""]
[null,null,null,null,null,null,null,null,null,null,""]
[null,null,null,null,null,null,null,null,null,null,""]
[null,null,null,null,null,null,null,null,null,null,""]
[null,null,null,null,null,null,null,null,null,null,""]
[null,null,null,null,null,null,null,null,null,null,""]
[null,null,null,null,null,null,null,null,null,null,""]
[null,null,null,null,null,null,null,null,null,null,""]
[null,null,null,null,null,null,null,null,null,null,""]
[null,null,null,null,null,null,null,null,null,null,""]
[null,null,null,null,null,null,null,null,null,null,""]
[null,null,null,null,null,null,null,null,null,null,""]
[null,null,null,null,null,null,null,null,null,null,""]
[null,null,null,null,null,null,null,null,null,null,""]
[null,null,null,null,null,null,null,null,null,null,""]
[null,null,null,null,null,null,null,null,null,null,""]
[null,null,null,null,null,null,null,null,null,null,""]
[null,null,null,null,null,null,null,null,null,null,""]
[null,null,null,null,null,null,null,null,null,null,""]
[null,null,null,null,null,null,null,null,null,null,""]
[null,null,null,null,null,null,null,null,null,null,""]
[null,null,null,null,null,null,null,null,null,null,""]
[null,null,null,null,null,null,null,null,null,null,""]
[null,null,null,null,null,null,null,null,null,null,""]
[null,null,null,null,null,null,null,null,null,null,""]
[null,null,null,null,null,null,null,null,null,null,""]
[null,null,null,null,null,null,null,null,null,null,""]
[null,null,null,null,null,null,null,null,null,null,""]
[null,null,null,null,null,null,null,null,null,null,""]
[null,null,null,null,null,null,null,null,null,null,""]
[null,null,null,null,null,null,null,null,null,null,""]
[null,null,null,null,null,null,null,null,null,null,""]
[null,null,null,null,null,null,null,null,null,null,""]
[null,null,null,null,null,null,null,null,null,null,""]
[null,null,null,null,null,null,null,null,null,null,""]
[null,null,null,null,null,null,null,null,null,null,""]
[null,null,null,null,null,null,null,null,null,null,""]
[null,null,null,null,null,null,null,null,null,null,""]
[null,null,null,null,null,null,null,null,null,null,""]
[null,null,null,null,null,null,null,null,null,null,""]
[null,null,null,null,null,null,null,null,null,null,""]
[null,null,null,null,null,null,null,null,null,null,""]
[null,null,null,null,null,null,null,null,null,null,""]
[null,null,null,null,null,null,null,null,null,null,""]
[null,null,null,null,null,null,null,null,null,null,""]
[null,null,null,null,null,null,null,null,null,null,""]
[null,null,null,null,null,null,null,null,null,null,""]
[null,null,null,null,null,null,null,null,null,null,""]
[null,null,null,null,null,null,null,null,null,null,{"$f":"IF(OR(I4872=\"\",J4872=\"\"),\"\",PRODUCT(I4872,J4872))","v":""}]
[null,null,null,null,null,null,null,null,null,null,""]
[null,null,null,null,null,null,null,null,null,null,""]
[null,null,null,null,null,null,null,null,null,null,""]
[null,null,null,null,null,null,null,null,null,null,""]
[null,null,null,null,null,null,null,null,null,null,""]
[null,null,null,null,null,null,null,null,null,null,""]
[null,null,null,null,null,null,null,null,null,null,""]
[null,null,null,null,null,null,null,null,null,null,""]
[null,null,null,null,null,null,null,null,null,null,""]
[null,null,null,null,null,null,null,null,null,null,""]
[null,null,null,null,null,null,null,null,null,null,""]
[null,null,null,null,null,null,null,null,null,null,""]
[null,null,null,null,null,null,null,null,null,null,""]
[null,null,null,null,null,null,null,null,null,null,""]
[null,null,null,null,null,null,null,null,null,null,""]
[null,null,null,null,null,null,null,null,null,null,""]
[null,null,null,null,null,null,null,null,null,null,""]
[null,null,null,null,null,null,null,null,null,null,""]
[null,null,null,null,null,null,null,null,null,null,""]
[null,null,null,null,null,null,null,null,null,null,""]
[null,null,null,null,null,null,null,null,null,null,""]
[null,null,null,null,null,null,null,null,null,null,""]
[null,null,null,null,null,null,null,null,null,null,""]
[null,null,null,null,null,null,null,null,null,null,""]
[null,null,null,null,null,null,null,null,null,null,""]
[null,null,null,null,null,null,null,null,null,null,""]
[null,null,null,null,null,null,null,null,null,null,""]
[null,null,null,null,null,null,null,null,null,null,""]
[null,null,null,null,null,null,null,null,null,null,""]
[null,null,null,null,null,null,null,null,null,null,""]
[null,null,null,null,null,null,null,null,null,null,""]
[null,null,null,null,null,null,null,null,null,null,""]
[null,null,null,null,null,null,null,null,null,null,""]
[null,null,null,null,null,null,null,null,null,null,""]
[null,null,null,null,null,null,null,null,null,null,""]
[null,null,null,null,null,null,null,null,null,null,""]
[null,null,null,null,null,null,null,null,null,null,""]
[null,null,null,null,null,null,null,null,null,null,""]
[null,null,null,null,null,null,null,null,null,null,""]
[null,null,null,null,null,null,null,null,null,null,""]
[null,null,null,null,null,null,null,null,null,null,""]
[null,null,null,null,null,null,null,null,null,null,""]
[null,null,null,null,null,null,null,null,null,null,""]
[null,null,null,null,null,null,null,null,null,null,""]
[null,null,null,null,null,null,null,null,null,null,""]
[null,null,null,null,null,null,null,null,null,null,""]
[null,null,null,null,null,null,null,null,null,null,""]
[null,null,null,null,null,null,null,null,null,null,""]
[null,null,null,null,null,null,null,null,null,null,""]
[null,null,null,null,null,null,null,null,null,null,""]
[null,null,null,null,null,null,null,null,null,null,""]
[null,null,null,null,null,null,null,null,null,null,""]
[null,null,null,null,null,null,null,null,null,null,""]
[null,null,null,null,null,null,null,null,null,null,""]
[null,null,null,null,null,null,null,null,null,null,""]
[null,null,null,null,null,null,null,null,null,null,""]
[null,null,null,null,null,null,null,null,null,null,""]
[null,null,null,null,null,null,null,null,null,null,""]
[null,null,null,null,null,null,null,null,null,null,""]
[null,null,null,null,null,null,null,null,null,null,""]
[null,null,null,null,null,null,null,null,null,null,""]
[null,null,null,null,null,null,null,null,null,null,""]
[null,null,null,null,null,null,null,null,null,null,""]
[null,null,null,null,null,null,null,null,null,null,{"$f":"IF(OR(I4936=\"\",J4936=\"\"),\"\",PRODUCT(I4936,J4936))","v":""}]
[null,null,null,null,null,null,null,null,null,null,""]
[null,null,null,null,null,null,null,null,null,null,""]
[null,null,null,null,null,null,null,null,null,null,""]
[null,null,null,null,null,null,null,null,null,null,""]
[null,null,null,null,null,null,null,null,null,null,""]
[null,null,null,null,null,null,null,null,null,null,""]
[null,null,null,null,null,null,null,null,null,null,""]
[null,null,null,null,null,null,null,null,null,null,""]
[null,null,null,null,null,null,null,null,null,null,""]
[null,null,null,null,null,null,null,null,null,null,""]
[null,null,null,null,null,null,null,null,null,null,""]
[null,null,null,null,null,null,null,null,null,null,""]
[null,null,null,null,null,null,null,null,null,null,""]
[null,null,null,null,null,null,null,null,null,null,""]
[null,null,null,null,null,null,null,null,null,null,""]
[null,null,null,null,null,null,null,null,null,null,""]
[null,null,null,null,null,null,null,null,null,null,""]
[null,null,null,null,null,null,null,null,null,null,""]
[null,null,null,null,null,null,null,null,null,null,""]
[null,null,null,null,null,null,null,null,null,null,""]
[null,null,null,null,null,null,null,null,null,null,""]
[null,null,null,null,null,null,null,null,null,null,""]
[null,null,null,null,null,null,null,null,null,null,""]
[null,null,null,null,null,null,null,null,null,null,""]
[null,null,null,null,null,null,null,null,null,null,""]
[null,null,null,null,null,null,null,null,null,null,""]
[null,null,null,null,null,null,null,null,null,null,""]
[null,null,null,null,null,null,null,null,null,null,""]
[null,null,null,null,null,null,null,null,null,null,""]
[null,null,null,null,null,null,null,null,null,null,""]
[null,null,null,null,null,null,null,null,null,null,""]
[null,null,null,null,null,null,null,null,null,null,""]
[null,null,null,null,null,null,null,null,null,null,""]
[null,null,null,null,null,null,null,null,null,null,""]
[null,null,null,null,null,null,null,null,null,null,""]
[null,null,null,null,null,null,null,null,null,null,""]
[null,null,null,null,null,null,null,null,null,null,""]
[null,null,null,null,null,null,null,null,null,null,""]
[null,null,null,null,null,null,null,null,null,null,""]
[null,null,null,null,null,null,null,null,null,null,""]
[null,null,null,null,null,null,null,null,null,null,""]
[null,null,null,null,null,null,null,null,null,null,""]
[null,null,null,null,null,null,null,null,null,null,""]
[null,null,null,null,null,null,null,null,null,null,""]
[null,null,null,null,null,null,null,null,null,null,""]
[null,null,null,null,null,null,null,null,null,null,""]
[null,null,null,null,null,null,null,null,null,null,""]
[null,null,null,null,null,null,null,null,null,null,""]
[null,null,null,null,null,null,null,null,null,null,""]
[null,null,null,null,null,null,null,null,null,null,""]
[null,null,null,null,null,null,null,null,null,null,""]
[null,null,null,null,null,null,null,null,null,null,""]
[null,null,null,null,null,null,null,null,null,null,""]
[null,null,null,null,null,null,null,null,null,null,""]
[null,null,null,null,null,null,null,null,null,null,""]
[null,null,null,null,null,null,null,null,null,null,""]
[null,null,null,null,null,null,null,null,null,null,""]
[null,null,null,null,null,null,null,null,null,null,""]
[null,null,null,null,null,null,null,null,null,null,""]
[null,null,null,null,null,null,null,null,null,null,""]
[null,null,null,null,null,null,null,null,null,null,""]
[null,null,null,null,null,null,null,null,null,null,""]
[null,null,null,null,null,null,null,null,null,null,""]
[null,null,null,null,null,null,null,null,null,null,{"$f":"IF(OR(I5000=\"\",J5000=\"\"),\"\",PRODUCT(I5000,J5000))","v":""}]
[null,null,null,null,null,null,null,null,null,null,""]
[null,null,null,null,null,null,null,null,null,null,""]
[null,null,null,null,null,null,null,null,null,null,""]
[null,null,null,null,null,null,null,null,null,null,""]
[null,null,null,null,null,null,null,null,null,null,""]
[null,null,null,null,null,null,null,null,null,null,""]
[null,null,null,null,null,null,null,null,null,null,""]
[null,null,null,null,null,null,null,null,null,null,""]
[null,null,null,null,null,null,null,null,null,null,""]
[null,null,null,null,null,null,null,null,null,null,""]
[null,null,null,null,null,null,null,null,null,null,""]
[null,null,null,null,null,null,null,null,null,null,""]
[null,null,null,null,null,null,null,null,null,null,""]
[null,null,null,null,null,null,null,null,null,null,""]
[null,null,null,null,null,null,null,null,null,null,""]
[null,null,null,null,null,null,null,null,null,null,""]
[null,null,null,null,null,null,null,null,null,null,""]
[null,null,null,null,null,null,null,null,null,null,""]
[null,null,null,null,null,null,null,null,null,null,""]
[null,null,null,null,null,null,null,null,null,null,""]
[null,null,null,null,null,null,null,null,null,null,""]
[null,null,null,null,null,null,null,null,null,null,""]
[null,null,null,null,null,null,null,null,null,null,""]
[null,null,null,null,null,null,null,null,null,null,""]
[null,null,null,null,null,null,null,null,null,null,""]
[null,null,null,null,null,null,null,null,null,null,""]
[null,null,null,null,null,null,null,null,null,null,""]
[null,null,null,null,null,null,null,null,null,null,""]
[null,null,null,null,null,null,null,null,null,null,""]
[null,null,null,null,null,null,null,null,null,null,""]
[null,null,null,null,null,null,null,null,null,null,""]
[null,null,null,null,null,null,null,null,null,null,""]
[null,null,null,null,null,null,null,null,null,null,""]
[null,null,null,null,null,null,null,null,null,null,""]
[null,null,null,null,null,null,null,null,null,null,""]
[null,null,null,null,null,null,null,null,null,null,""]
[null,null,null,null,null,null,null,null,null,null,""]
[null,null,null,null,null,null,null,null,null,null,""]
[null,null,null,null,null,null,null,null,null,null,""]
[null,null,null,null,null,null,null,null,null,null,""]
[null,null,null,null,null,null,null,null,null,null,""]
[null,null,null,null,null,null,null,null,null,null,""]
[null,null,null,null,null,null,null,null,null,null,""]
[null,null,null,null,null,null,null,null,null,null,""]
[null,null,null,null,null,null,null,null,null,null,""]
[null,null,null,null,null,null,null,null,null,null,""]
[null,null,null,null,null,null,null,null,null,null,""]
[null,null,null,null,null,null,null,null,null,null,""]
[null,null,null,null,null,null,null,null,null,null,""]
[null,null,null,null,null,null,null,null,null,null,""]
[null,null,null,null,null,null,null,null,null,null,""]
[null,null,null,null,null,null,null,null,null,null,""]
[null,null,null,null,null,null,null,null,null,null,""]
[null,null,null,null,null,null,null,null,null,null,""]
[null,null,null,null,null,null,null,null,null,null,""]
[null,null,null,null,null,null,null,null,null,null,""]
[null,null,null,null,null,null,null,null,null,null,""]
[null,null,null,null,null,null,null,null,null,null,""]
[null,null,null,null,null,null,null,null,null,null,""]
[null,null,null,null,null,null,null,null,null,null,""]
[null,null,null,null,null,null,null,null,null,null,""]
[null,null,null,null,null,null,null,null,null,null,""]
[null,null,null,null,null,null,null,null,null,null,""]
[null,null,null,null,null,null,null,null,null,null,{"$f":"IF(OR(I5064=\"\",J5064=\"\"),\"\",PRODUCT(I5064,J5064))","v":""}]
[null,null,null,null,null,null,null,null,null,null,""]
[null,null,null,null,null,null,null,null,null,null,""]
[null,null,null,null,null,null,null,null,null,null,""]
[null,null,null,null,null,null,null,null,null,null,""]
[null,null,null,null,null,null,null,null,null,null,""]
[null,null,null,null,null,null,null,null,null,null,""]
[null,null,null,null,null,null,null,null,null,null,""]
[null,null,null,null,null,null,null,null,null,null,""]
[null,null,null,null,null,null,null,null,null,null,""]
[null,null,null,null,null,null,null,null,null,null,""]
[null,null,null,null,null,null,null,null,null,null,""]
[null,null,null,null,null,null,null,null,null,null,""]
[null,null,null,null,null,null,null,null,null,null,""]
[null,null,null,null,null,null,null,null,null,null,""]
[null,null,null,null,null,null,null,null,null,null,""]
[null,null,null,null,null,null,null,null,null,null,""]
[null,null,null,null,null,null,null,null,null,null,""]
[null,null,null,null,null,null,null,null,null,null,""]
[null,null,null,null,null,null,null,null,null,null,""]
[null,null,null,null,null,null,null,null,null,null,""]
[null,null,null,null,null,null,null,null,null,null,""]
[null,null,null,null,null,null,null,null,null,null,""]

{"sheet":"ضيف","index":4,"n_rows":96,"n_cols":8,"rows_kept":96,"cut":false,"hidden":false,"merged":[]}
[]
[]
[null,null,null,null,null,"عدد الساعات",84371.5]
[1,"2020-12-30","2020-12-30","ليزر صغير260","ضيف",null,10.5,"جابر"]
[2,"2020-12-31","2020-12-31","ليزر صغير260","ضيف",null,11,"جابر"]
[3,"2020-12-31","2020-12-31","ليزر صغير260","ضيف",null,7,"حلمى25"]
[4,"2020-12-31","2020-12-31","ليزر صغير260","ضيف",null,3,"عنتر"]
[5,"2021-01-02","2021-01-02","ليزر صغير260","ضيف",null,14,"جابر"]
[6,"2021-01-02","2021-01-02","ليزر صغير260","ضيف",null,4,"حلمى25"]
[7,"2021-01-03","2021-01-03","ليزر صغير260","ضيف",null,22.75,"جابر"]
[8,"2021-01-03","2021-01-03","ليزر صغير260","ضيف",null,7.5,"حلمى25"]
[9,"2021-01-04","2021-01-04","ليزر صغير260","ضيف",null,15.75,"جابر"]
[10,"2021-01-05","2021-01-05","ليزر صغير260","ضيف",null,13,"جابر"]
[11,"2021-01-05","2021-01-05","ليزر صغير260","ضيف",null,6.5,"حلمى25"]
[12,"2021-01-06","2021-01-06","ليزر صغير260","ضيف",null,11.75,"جابر"]
[13,"2021-01-07","2021-01-07","ليزر صغير260","ضيف",null,3,"جابر"]
[14,"2021-01-07","2021-01-07","ليزر صغير260","ضيف",null,4.5,"حلمى25"]
[15,"2021-01-09","2021-01-09","ليزر صغير260","ضيف",null,4,"جابر"]
[16,"2021-01-09","2021-01-09","ليزر صغير260","ضيف",null,2,"حلمى25"]
[17,"2021-01-10","2021-01-10","ليزر صغير260","ضيف",null,16.25,"جابر"]
[18,"2021-01-10","2021-01-10","ليزر صغير260","ضيف",null,7.5,"حلمى25"]
[19,"2021-01-11","2021-01-11","ليزر صغير260","ضيف",null,18.75,"جابر"]
[20,"2021-01-11","2021-01-11","ليزر صغير260","ضيف",null,3,"حلمى25"]
[21,"2021-01-12","2021-01-12","ليزر صغير260","ضيف",null,26,"جابر"]
[22,"2021-01-13","2021-01-13","ليزر صغير260","ضيف",null,16.5,"جابر"]
[23,"2021-01-13","2021-01-13","ليزر صغير260","ضيف",null,7,"حلمى25"]
[24,"2021-01-16","2021-01-16","ليزر صغير260","ضيف",null,8,"حلمى25"]
[25,"2021-01-17","2021-01-17","ليزر صغير260","ضيف",null,9,"حلمى25"]
[26,"2021-01-17","2021-01-17","ليزر صغير260","ضيف",null,11,"جابر"]
[27,"2021-01-18","2021-01-18","ليزر صغير260","ضيف",null,6,"حلمى25"]
[28,"2021-01-18","2021-01-18","ليزر صغير260","ضيف",null,8,"جابر"]
[29,"2021-01-19","2021-01-19","ليزر صغير260","ضيف",null,3,"جابر"]
[30,"2021-01-20","2021-01-20","ليزر صغير260","ضيف",null,9.25,"جابر"]
[31,"2021-02-13","2021-02-13","ليزر صغير260","ضيف",null,2,"جابر"]
[32,"2021-02-14","2021-02-14","ليزر صغير260","ضيف",null,8,"جابر"]
[33,"2021-02-15","2021-02-15","ليزر صغير260","ضيف",null,5.5,"جابر"]
[34,"2021-02-16","2021-02-16","ليزر صغير260","ضيف",null,7,"جابر"]
[35,"2021-02-17","2021-02-17","ليزر صغير260","ضيف",null,4.5,"جابر"]
[36,"2021-02-20","2021-02-20","ليزر صغير260","ضيف",null,7,"جابر"]
[37,"2021-02-21","2021-02-21","ليزر صغير260","ضيف",null,13.25,"جابر"]
[38,"2021-02-22","2021-02-22","ليزر صغير260","ضيف",null,16.75,"جابر"]
[39,"2021-02-23","2021-02-23","ليزر صغير260","ضيف","احمد جمعه /احمد مرضى",5,"عنتر"]
[40,"2021-02-23","2021-02-23","ليزر صغير260","ضيف",null,15,"جابر"]
[41,"2021-02-24","2021-02-24","ليزر صغير260","ضيف",null,15,"جابر"]
[42,"2021-02-25","2021-02-25","ليزر صغير260","ضيف","احمد جمعه /احمد مرضى",2.5,"عنتر"]
[43,"2021-02-27","2021-02-27","ليزر صغير260","ضيف","محمد عيادة ضيف",6.5,"جابر"]
[44,"2021-02-27","2021-02-27","ليزر صغير260","ضيف","احمد جمعه /احمد مرضى",5,"عنتر"]
[45,"2021-02-28","2021-02-28","ليزر صغير260","ضيف","محمد عيادة ضيف",9.5,"جابر"]
[46,"2021-02-28","2021-02-28","ليزر صغير260","ضيف","احمد جمعه",2,"جابر"]
[47,"2021-02-28","2021-02-28","ليزر صغير260","ضيف","احمد جمعه /احمد مرضى",9,"عنتر"]
[48,"2021-03-01","2021-03-01","ليزر كبير 270","ضيف","إبراهيم ضيف",8,"جابر"]
[49,"2021-03-01","2021-03-01","ليزر صغير260","ضيف","محمد عيادة ضيف",8.5,"جابر"]
[50,"2021-03-01","2021-03-01","ليزر صغير260","ضيف","احمد جمعه /احمد مرضى",7,"عنتر"]
[51,"2021-03-01","2021-03-01","ليزر صغير260","ضيف","احمد جمعه /احمد مرضى",7.5,"عنتر"]
[52,"2021-03-02","2021-03-02","ليزر كبير 270","ضيف","إبراهيم ضيف",5.75,"جابر"]
[53,"2021-03-02","2021-03-02","ليزر صغير260","ضيف","محمد عيادة ضيف",5.75,"جابر"]
[54,"2021-03-02","2021-03-02","ليزر صغير260","ضيف","احمد جمعه",9.5,"عنتر"]
[55,"2021-03-02","2021-03-02","ليزر صغير260","ضيف","احمد رمزى",9.5,"عنتر"]
[56,"2021-03-03","2021-03-03","ليزر كبير 270","ضيف","إبراهيم ضيف",9,"جابر"]
[57,"2021-03-03","2021-03-03","ليزر صغير260","ضيف","احمد جمعه",4,"جابر"]
[58,"2021-03-03","2021-03-03","ليزر صغير260","ضيف","احمد جمعه",10.5,"عنتر"]
[59,"2021-03-03","2021-03-03","ليزر صغير260","ضيف","احمد رمزى",5,"عنتر"]
[60,"2021-03-04","2021-03-04","ليزر صغير260","ضيف","احمد جمعه",6,"عنتر"]
[61,"2021-03-04","2021-03-04","ليزر صغير260","ضيف","احمد رمزى",6,"عنتر"]
[62,"2021-03-05","2021-03-05","ليزر كبير 270","ضيف",null,6,"جابر"]
[63,"2021-03-06","2021-03-06","ليزر كبير 270","ضيف",null,5,"جابر"]
[64,"2021-03-07","2021-03-07","ليزر كبير 270","ضيف",null,5,"جابر"]
[65,"2021-03-09","2021-03-09","ليزر كبير 270","ضيف",null,9.5,"جابر"]
[66,"2021-03-10","2021-03-10","ليزر كبير 270","ضيف",null,8.5,"جابر"]
[67,"2021-03-06","2021-03-06","ليزر صغير260","ضيف",null,6,"عنتر"]
[68,"2021-03-07","2021-03-07","ليزر صغير260","ضيف",null,9,"عنتر"]
[69,"2021-03-08","2021-03-08","ليزر صغير260","ضيف",null,5,"عنتر"]
[70,"2021-03-09","2021-03-09","ليزر صغير260","ضيف",null,8,"عنتر"]
[71,"2021-03-10","2021-03-10","ليزر صغير260","ضيف",null,9.5,"عنتر"]
[72,"2021-03-17","2021-03-17","ليزر صغير260","ضيف",null,8,"محمود"]
[73,"2021-03-14","2021-03-14","ليزر صغير260","ضيف",null,6.5,"انور"]
[74,"2021-03-14","2021-03-14","ليزر صغير260","ضيف",null,4.5,"انور"]
[75,"2021-03-15","2021-03-15","ليزر صغير260","ضيف",null,9.5,"انور"]
[76,"2021-03-16","2021-03-16","ليزر صغير260","ضيف",null,6,"انور"]
[77,"2021-03-17","2021-03-17","ليزر صغير260","ضيف",null,9.5,"انور"]
[78,"2021-03-11","2021-03-11","ليزر كبير 270","ضيف",null,5,"جابر"]
[79,"2021-03-13","2021-03-13","ليزر كبير 270","ضيف",null,8,"جابر"]
[80,"2021-03-14","2021-03-14","ليزر كبير 270","ضيف",null,6,"جابر"]
[81,"2021-03-21","2021-03-21","ليزر كبير 270","ضيف",null,9.5,"محمود"]
[82,"2021-03-18","2021-03-18","ليزر صغير260","ضيف",null,5,"انور"]
[83,"2021-03-20","2021-03-20","ليزر صغير260","ضيف",null,5,"انور"]
[84,"2021-03-21","2021-03-21","ليزر صغير260","ضيف",null,8,"انور"]
[85,"2021-03-22","2021-03-22","ليزر صغير260","ضيف",null,6,"انور"]
[86,"2021-03-23","2021-03-23","ليزر صغير260","ضيف",null,6.5,"انور"]
[87,"2021-03-24","2021-03-24","ليزر صغير260","ضيف",null,6.5,"انور"]
[88,"2021-03-18","2021-03-18","ليزر صغير260","ضيف",null,5,"محمود"]
[89,"2021-03-20","2021-03-20","ليزر صغير260","ضيف",null,3,"محمود"]
[90,"2021-03-21","2021-03-21","ليزر صغير260","ضيف",null,8.5,"محمود"]
[91,"2021-03-22","2021-03-22","ليزر صغير260","ضيف",null,4.5,"محمود"]
[92,"2021-03-23","2021-03-23","ليزر صغير260","ضيف",null,5,"محمود"]
[93,"2021-03-24","2021-03-24","ليزر صغير260","ضيف",null,6,"محمود"]

{"sheet":"علوان","index":5,"n_rows":27,"n_cols":8,"rows_kept":27,"cut":false,"hidden":false,"merged":[]}
[]
[]
[null,null,null,null,null,"عدد الساعات",84371.5]
[1,"2021-02-28","2021-02-28","لودر كبير","علوان",null,65.5,"عنتر"]
[2,"2021-03-07","2021-03-07","لودر كبير","علوان",null,93,"عنتر"]
[3,"2021-03-02","2021-03-02","لودر كبير","علوان",null,11,"انور"]
[4,"2021-03-03","2021-03-03","لودر كبير","علوان",null,4,"انور"]
[5,"2021-03-07","2021-03-07","لودر كبير","علوان",null,4.5,"انور"]
[6,"2021-03-08","2021-03-08","لودر كبير","علوان",null,7,"انور"]
[7,"2021-03-09","2021-03-09","لودر كبير","علوان",null,7.5,"انور"]
[8,"2021-03-10","2021-03-10","لودر كبير","علوان",null,8,"انور"]
[9,"2021-03-10","2021-03-10","لودر كبير","علوان",null,9.5,"عنتر"]
[10,"2021-03-13","2021-03-13","لودر كبير","علوان",null,4.5,"انور"]
[11,"2021-03-14","2021-03-14","لودر كبير","علوان",null,7,"انور"]
[12,"2021-03-15","2021-03-15","لودر كبير","علوان",null,8,"انور"]
[13,"2021-03-17","2021-03-17","لودر كبير","علوان",null,6,"انور"]
[14,"2021-03-18","2021-03-18","لودر كبير","علوان",null,8.5,"انور"]
[15,"2021-03-21","2021-03-21","لودر كبير","علوان",null,2.5,"انور"]
[16,"2021-03-22","2021-03-22","لودر كبير","علوان",null,9,"انور"]
[17,"2021-03-23","2021-03-23","لودر كبير","علوان",null,4.5,"انور"]
[18,"2021-03-24","2021-03-24","لودر كبير","علوان",null,1.5,"انور"]
[19,"2021-03-20","2021-03-20","لودر كبير","علوان","شغل من خارج الكلاستر (الحاج حماد)",6.25,"انور"]
[20,"2021-03-21","2021-03-21","لودر كبير","علوان","شغل من خارج الكلاستر (الحاج حماد)",4,"انور"]
[21,"2021-03-22","2021-03-22","لودر كبير","علوان","شغل من خارج الكلاستر (الحاج حماد)",0,"انور"]
[22,"2021-03-23","2021-03-23","لودر كبير","علوان","شغل من خارج الكلاستر (الحاج حماد)",4,"انور"]
[23,"2021-03-24","2021-03-24","لودر كبير","علوان","شغل من خارج الكلاستر (الحاج حماد)",8,"انور"]
[24,"2021-03-25","2021-03-25","لودر كبير","علوان","شغل من خارج الكلاستر (الحاج حماد)",6,"انور"]

{"sheet":"مجدى","index":6,"n_rows":14,"n_cols":8,"rows_kept":14,"cut":false,"hidden":false,"merged":[]}
[]
[]
[null,null,null,null,null,"عدد الساعات",84371.5]
[1,"2021-03-04","2021-03-04","سيارة مياه كبيرة وش500","مجدى",null,4,"جابر"]
[2,"2021-03-04","2021-03-04","سيارة مياه كبيرة وش500","مجدى",null,2,"عنتر"]
[3,"2021-03-04","2021-03-04","سيارة مياه كبيرة375","مجدى",null,23,"عنتر"]
[4,"2021-03-04","2021-03-04","سيارة مياه كبيرة375","مجدى",null,44,"جابر"]
[5,"2021-03-11","2021-03-11","سيارة مياه كبيرة وش500","مجدى",null,3,"جابر"]
[6,"2021-03-11","2021-03-11","سيارة مياه كبيرة وش500","مجدى",null,8,"عنتر"]
[7,"2021-03-11","2021-03-11","سيارة مياه كبيرة375","مجدى",null,14,"جابر"]
[8,"2021-03-11","2021-03-11","سيارة مياه كبيرة375","مجدى",null,20,"عنتر"]
[9,"2021-03-16","2021-03-16","سيارة مياه كبيرة375","مجدى",null,6,"انور"]
[10,"2021-03-16","2021-03-16","سيارة مياه كبيرة376","مجدى",null,6,"عنتر"]
[11,"2021-03-16","2021-03-16","سيارة مياه كبيرة377","مجدى",null,17,"جابر"]

{"sheet":"ربيع معدات","index":7,"n_rows":8,"n_cols":8,"rows_kept":8,"cut":false,"hidden":false,"merged":[]}
[]
[]
[null,null,null,null,null,"عدد الساعات",84371.5]
[1,"2021-03-07","2021-03-07","سيارة م3 بسعر2.75","ربيع معدات",null,14979,"عنتر"]
[2,"2021-03-07","2021-03-07","سيارة م3 بسعر2.75","ربيع معدات",null,14949,"جابر"]
[3,"2021-03-07","2021-03-07","سيارة م3 بسعر2.75","ربيع معدات",null,757,"اشرف شوقى"]
[4,"2021-03-17","2021-03-17",null,"ربيع معدات",null,8605.5,"انور"]
[5,"2021-03-20","2021-03-20",null,"ربيع معدات",null,37088,"محمود"]

{"sheet":"ربيع سولار","index":8,"n_rows":7,"n_cols":8,"rows_kept":7,"cut":false,"hidden":false,"merged":[]}
[]
[]
[null,null,null,null,null,"عدد الساعات",84371.5]
[1,"2021-03-07","2021-03-07","سيارة م3 بسعر2.75","ربيع سولار",null,1695,"عنتر"]
[2,"2021-03-07","2021-03-07","سيارة م3 بسعر2.75","ربيع سولار",null,1985,"جابر"]
[3,"2021-03-17","2021-03-17",null,"ربيع سولار",null,613,"انور"]
[4,"2021-03-20","2021-03-20",null,"ربيع سولار",null,2354,"محمود"]

{"sheet":"صلاح","index":9,"n_rows":20,"n_cols":8,"rows_kept":20,"cut":false,"hidden":false,"merged":[]}
[]
[]
[null,null,null,null,null,"عدد الساعات",84371.5]
[1,"2021-03-04","2021-03-04","هراس كبير","صلاح","فارس126.374",27,"عنتر"]
[2,"2021-03-04","2021-03-04","هراس كبير","صلاح","فارس126.374",2,"جابر"]
[3,"2021-03-06","2021-03-06","هراس كبير","صلاح",null,8,"عنتر"]
[4,"2021-03-07","2021-03-07","هراس كبير","صلاح",null,9,"عنتر"]
[5,"2021-03-08","2021-03-08","هراس كبير","صلاح",null,9,"عنتر"]
[6,"2021-03-09","2021-03-09","هراس كبير","صلاح",null,9,"جابر"]
[7,"2021-03-10","2021-03-10","هراس كبير","صلاح",null,6.5,"جابر"]
[8,"2021-03-11","2021-03-11","هراس كبير","صلاح",null,2.75,"جابر"]
[9,"2021-03-13","2021-03-13","هراس كبير","صلاح",null,8.5,"جابر"]
[10,"2021-03-14","2021-03-14","هراس كبير","صلاح",null,9,"جابر"]
[11,"2021-03-15","2021-03-15","هراس كبير","صلاح",null,7.75,"عنتر"]
[12,"2021-03-15","2021-03-15","هراس كبير","صلاح",null,1.25,"جابر"]
[13,"2021-03-16","2021-03-16","هراس كبير","صلاح",null,3,"جابر"]
[14,"2021-03-16","2021-03-16","هراس كبير","صلاح",null,3.5,"انور"]
[15,"2021-03-17","2021-03-17","هراس كبير","صلاح",null,1,"انور"]
[16,"2021-03-17","2021-03-17","هراس كبير","صلاح",null,7,"الشركة"]
[17,"2021-03-18","2021-03-18","هراس كبير","صلاح",null,4,"الشركة"]

{"sheet":"شريف","index":10,"n_rows":13,"n_cols":8,"rows_kept":13,"cut":false,"hidden":false,"merged":[]}
[]
[]
[null,null,null,null,null,"عدد الساعات",84371.5]
[1,"2021-03-09","2021-03-09","هراس صغير","شريف",null,8,"جابر"]
[2,"2021-03-10","2021-03-10","هراس صغير","شريف",null,5.5,"جابر"]
[3,"2021-03-11","2021-03-11","هراس صغير","شريف",null,3,"جابر"]
[4,"2021-03-13","2021-03-13","هراس صغير","شريف",null,7.5,"جابر"]
[5,"2021-03-14","2021-03-14","هراس صغير","شريف",null,9,"جابر"]
[6,"2021-03-15","2021-03-15","هراس صغير","شريف",null,4.5,"عنتر"]
[7,"2021-03-16","2021-03-16","هراس صغير","شريف",null,3.5,"انور"]
[8,"2021-03-17","2021-03-17","هراس صغير","شريف",null,7,"الشركة"]
[9,"2021-03-17","2021-03-17","هراس صغير","شريف",null,1,"انور"]
[10,"2021-03-18","2021-03-18","هراس صغير","شريف",null,4,"الشركة"]